Local authority department which incurred the expenditure,Service Division,Cost Centre,Summary of the Purpose of Expenditure,Expense Type,Expense Code,Detailed Expense Type,Date of Transaction,Transaction Number,Beneficiary,Merchant Category Number,Merchant Category,Gross Amount,VAT,Net Amount
Children and Young Peoples Services,Head of Childrens Social Care,085342,9 Cedar Drive Aycliffe,Supplies and Services,324117,Provisions E324,01-Jun-2019,000008593036461,TESCO STORES 2916,5411,Catering costs - provisions,30.20,0.00,30.20
Regeneration and Local Services,Business Durham CL0850,030699,Business Growth and Innovation General,Supplies and Services,304999,Equipment and Materials,01-Jun-2019,000008593036479,LinkedIn 3847171426 ln,5968,Misc equipment tools and materials,2.90,0.00,2.90
Regeneration and Local Services,Environmental Services,031221,North Pennines - Bowlees,Supplies and Services,324117,Provisions E324,01-Jun-2019,000008593036965,TESCO STORES 4358,5411,Catering costs - provisions,3.00,0.00,3.00
Resources BK0010,Legal & Democratic Services,069540,Charter Trust,Supplies and Services,384071,Miscellaneous Expenses,01-Jun-2019,000008593036973,DURHAM PIPE & TOBACCO,5999,Departmental hospitality,10.00,0.00,10.00
Children and Young Peoples Services,Head of Early Help Inclusion & Vulnerable Children.,085956,Lumley,Supplies and Services,324117,Provisions E324,01-Jun-2019,000008593037175,TESCO STORES 6329,5411,Catering costs - provisions,94.30,0.00,94.30
Regeneration and Local Services,Culture Sport and Tourism,054813,Gala Theatre - Technical,Supplies and Services,304259,Equipment and Materials,01-Jun-2019,000008593037203,Prime Video MN9TK0RR4,5735,Equipment-purchase and rental,5.99,0.00,5.99
Children and Young Peoples Services,Head of Childrens Social Care,085342,9 Cedar Drive Aycliffe,Supplies and Services,348037,Subsistence E348,01-Jun-2019,000008593037495,MCDONALDS,5812,Subsistence,6.38,1.06,5.32
Children and Young Peoples Services,Head of Childrens Social Care,085342,9 Cedar Drive Aycliffe,Supplies and Services,348037,Subsistence E348,01-Jun-2019,000008593037499,R.O.F. 59,5812,Subsistence,27.50,0.00,27.50
Children and Young Peoples Services,Head of Childrens Social Care,085342,9 Cedar Drive Aycliffe,Supplies and Services,348037,Subsistence E348,01-Jun-2019,000008593037503,R.O.F. 59,5812,Subsistence,6.20,0.00,6.20
Transformation and Partnerships,Business Support,052986,CYPS - Locality and Operational Support,Supplies and Services,304403,Equipment and Materials,01-Jun-2019,000008593037643,AMZNMktplace,5999,Other consumables,6.45,0.00,6.45
Children and Young Peoples Services,Head of Childrens Social Care,085333,Coxhoe Satelite Home,Supplies and Services,328041,Clothing uniforms and laundry E328,01-Jun-2019,000008593037787,B&M RETAIL,5310,Clothing uniforms and laundry,5.97,0.00,5.97
Children and Young Peoples Services,Head of Childrens Social Care,085333,Coxhoe Satelite Home,Supplies and Services,324117,Provisions E324,01-Jun-2019,000008593037791,ASDA STORES 4333,5411,Catering costs - provisions,19.00,0.00,19.00
Regeneration and Local Services,Business Durham CL0850,030671,Business Space 030671,Supplies and Services,304999,Equipment and Materials,01-Jun-2019,000008593037821,Amazon Prime,5968,Misc equipment tools and materials,-4.00,0.00,-4.00
Regeneration and Local Services,Culture Sport and Tourism,030708,VCD - Marketing & Information,Supplies and Services,304999,Equipment and Materials,02-Jun-2019,000008593036451,MAILCHIMP MONTHLY,5968,Misc equipment tools and materials,240.29,40.05,200.24
Children and Young Peoples Services,Head of Childrens Social Care,085342,9 Cedar Drive Aycliffe,Supplies and Services,348037,Subsistence E348,02-Jun-2019,000008593036465,COSTA COFFEE NEWTON AY,5812,Subsistence,6.15,0.00,6.15
Regeneration and Local Services,Business Durham CL0850,030699,Business Growth and Innovation General,Supplies and Services,304403,Equipment and Materials,02-Jun-2019,000008593036475,ADOBE CREATIVE CLOUD,5734,Other consumables,49.94,8.32,41.62
Regeneration and Local Services,Business Durham CL0850,030699,Business Growth and Innovation General,Supplies and Services,312011,Newspapers books and periodicals E312,02-Jun-2019,000008593036483,FASTHOSTS INTERNET,4816,Books-school library,66.30,11.05,55.25
Regeneration and Local Services,Business Durham CL0850,030699,Business Growth and Innovation General,Supplies and Services,312011,Newspapers books and periodicals E312,02-Jun-2019,000008593036485,FASTHOSTS INTERNET,4816,Books-school library,72.66,12.11,60.55
Children and Young Peoples Services,Head of Childrens Social Care,085352,Tow Law CU,Supplies and Services,324117,Provisions E324,02-Jun-2019,000008593036585,NISA LOCAL,5411,Catering costs - provisions,7.51,0.00,7.51
Children and Young Peoples Services,Head of Childrens Social Care,085352,Tow Law CU,Supplies and Services,328041,Clothing uniforms and laundry E328,02-Jun-2019,000008593036589,POUNDLAND LTD 1390,5310,Clothing uniforms and laundry,5.00,0.00,5.00
Children and Young Peoples Services,Head of Childrens Social Care,085352,Tow Law CU,Supplies and Services,304259,Equipment and Materials,02-Jun-2019,000008593036595,WILKO RETAIL LIMIT,5722,Equipment-purchase and rental,26.50,0.00,26.50
Children and Young Peoples Services,Head of Childrens Social Care,085342,9 Cedar Drive Aycliffe,Supplies and Services,312011,Newspapers books and periodicals E312,02-Jun-2019,000008593036893,Amazon.co.uk MN2HT6WR4,5969,Books-school library,39.46,0.00,39.46
Regeneration and Local Services,Culture Sport and Tourism,054813,Gala Theatre - Technical,Supplies and Services,384999,Miscellaneous Expenses,02-Jun-2019,000008593036929,WWW.SWANFLIGHT.COM,5948,Other expenses,112.39,0.00,112.39
Regeneration and Local Services,Culture Sport and Tourism,054813,Gala Theatre - Technical,Supplies and Services,384999,Miscellaneous Expenses,02-Jun-2019,000008593036933,WWW.SWANFLIGHT.COM,5948,Other expenses,424.83,0.00,424.83
Children and Young Peoples Services,Head of Childrens Social Care,085334,West Rainton Satelite Home,Supplies and Services,304259,Equipment and Materials,02-Jun-2019,000008593036981,DOLPHIN CENTRE,9399,Equipment-purchase and rental,6.30,0.00,6.30
Children and Young Peoples Services,Head of Childrens Social Care,085334,West Rainton Satelite Home,Supplies and Services,324117,Provisions E324,02-Jun-2019,000008593036987,TESCO STORES 2371,5411,Catering costs - provisions,56.49,0.00,56.49
Children and Young Peoples Services,Head of Childrens Social Care,085334,West Rainton Satelite Home,Supplies and Services,304221,Equipment and Materials,02-Jun-2019,000008593036991,B & Q 1343,5211,Direct materials,20.06,0.00,20.06
Children and Young Peoples Services,Head of Childrens Social Care,085334,West Rainton Satelite Home,Supplies and Services,328041,Clothing uniforms and laundry E328,02-Jun-2019,000008593036995,B & M RETAIL,5310,Clothing uniforms and laundry,7.98,0.00,7.98
Children and Young Peoples Services,Head of Childrens Social Care,085334,West Rainton Satelite Home,Supplies and Services,384999,Miscellaneous Expenses,02-Jun-2019,000008593037003,4MOTION DARLINGTON,7997,Other expenses,7.00,0.00,7.00
Children and Young Peoples Services,Head of Early Help Inclusion & Vulnerable Children.,085954,Walworth,Supplies and Services,324117,Provisions E324,02-Jun-2019,000008593037183,TESCO STORES 6329,5411,Catering costs - provisions,87.39,0.00,87.39
Resources BK0010,Resources Management CK0450,069000,Resources Management 069000,Supplies and Services,324117,Provisions E324,02-Jun-2019,000008593037457,SAINSBURYS SACAT (2303,5411,Catering costs - provisions,3.30,0.00,3.30
Children and Young Peoples Services,Head of Childrens Social Care,085342,9 Cedar Drive Aycliffe,Supplies and Services,324117,Provisions E324,02-Jun-2019,000008593037507,TESCO STORES 2916,5411,Catering costs - provisions,11.15,0.00,11.15
Regeneration and Local Services,Transport and Contracted Services,031701,Care Connect All Localities,Supplies and Services,304245,Equipment and Materials,02-Jun-2019,000008593037693,AMZNMktplace,5999,Materials,203.32,0.00,203.32
Children and Young Peoples Services,Head of Education and Skills,070169,Durham SSP,Supplies and Services,304403,Equipment and Materials,02-Jun-2019,000008593037851,AMZNMKTPLACE AMAZON.CO,5999,Other consumables,5.99,0.00,5.99
Regeneration and Local Services,Development and Housing,030544,Rural Employability - Client Engagement,Transport,235057,Public Transport,02-Jun-2019,000008601100323,ARRIVA NORTH EAST,4131,Staff travelling,26.20,0.00,26.20
Regeneration and Local Services,Culture Sport and Tourism,054813,Gala Theatre - Technical,Supplies and Services,312011,Newspapers books and periodicals E312,02-Jun-2019,000008601100623,LEDKIA,5251,Books-school library,121.56,0.00,121.56
Children and Young Peoples Services,Head of Education and Skills,070169,Durham SSP,Supplies and Services,304403,Equipment and Materials,02-Jun-2019,000008601101045,AMZNMKTPLACE AMAZON.CO,5999,Other consumables,26.92,0.00,26.92
Transformation and Partnerships,Business Support,065461,Business Support 065461,Supplies and Services,304403,Equipment and Materials,03-Jun-2019,000008593036397,CODEREADR,5734,Other consumables,0.66,0.00,0.66
Regeneration and Local Services,Development and Housing,030554,International Relations 030554,Supplies and Services,384926,Miscellaneous Expenses,03-Jun-2019,000008593038115,PASTERIX C CONTA,7996,International visits,16.23,0.00,16.23
Regeneration and Local Services,Development and Housing,030554,International Relations 030554,Supplies and Services,384926,Miscellaneous Expenses,03-Jun-2019,000008593038119,PASTERIX C CONTA,7996,International visits,18.08,0.00,18.08
Children and Young Peoples Services,Head of Education and Skills,071801,Selby Cottage Childcare Centre,Supplies and Services,324117,Provisions E324,03-Jun-2019,000008601100117,TESCO STORES 2278,5411,Catering costs - provisions,18.36,0.00,18.36
Children and Young Peoples Services,Head of Education and Skills,071801,Selby Cottage Childcare Centre,Supplies and Services,324117,Provisions E324,03-Jun-2019,000008601100121,TESCO STORES 2278,5411,Catering costs - provisions,2.98,0.00,2.98
Children and Young Peoples Services,Head of Education and Skills,071801,Selby Cottage Childcare Centre,Supplies and Services,304221,Equipment and Materials,03-Jun-2019,000008601100125,B & Q 1203,5211,Direct materials,64.00,0.00,64.00
Regeneration and Local Services,Environmental Services,010301,C&G - North Grounds Maintenance,Third Party Payments 4THIRD,430100,Rendered by Private Contractors,03-Jun-2019,000008601100149,WILLOWCRETE MAN,5039,Payments to sub-contractors,128.40,21.40,107.00
Adult and Health Services,Head of Adults,055302,Durham Pathways,Supplies and Services,324117,Provisions E324,03-Jun-2019,000008601100205,ASDA SUPERSTORE,5411,Catering costs - provisions,24.04,0.00,24.04
Children and Young Peoples Services,Head of Childrens Social Care,085342,9 Cedar Drive Aycliffe,Supplies and Services,324117,Provisions E324,03-Jun-2019,000008601100217,TESCO STORES 2916,5411,Catering costs - provisions,34.92,0.00,34.92
Regeneration and Local Services,Development and Housing,030544,Rural Employability - Client Engagement,Transport,235057,Public Transport,03-Jun-2019,000008601100325,ARRIVA NORTH EAST,4131,Staff travelling,16.00,0.00,16.00
Regeneration and Local Services,Development and Housing,030544,Rural Employability - Client Engagement,Transport,235057,Public Transport,03-Jun-2019,000008601100333,GO NORTH EAST LIMITED,4131,Staff travelling,40.20,0.00,40.20
Regeneration and Local Services,Corporate Property and Land,021242,Catering - County Hall,Supplies and Services,324117,Provisions E324,03-Jun-2019,000008601100341,FREEMAN CATERING BUTCH,5422,Catering costs - provisions,176.66,0.00,176.66
Regeneration and Local Services,Corporate Property and Land,021242,Catering - County Hall,Supplies and Services,324117,Provisions E324,03-Jun-2019,000008601100349,JR HOLLAND FOODSERVICE,5499,Catering costs - provisions,6.90,0.00,6.90
Regeneration and Local Services,Corporate Property and Land,021242,Catering - County Hall,Supplies and Services,324117,Provisions E324,03-Jun-2019,000008601100355,JR HOLLAND FOODSERVICE,5499,Catering costs - provisions,67.99,0.00,67.99
Regeneration and Local Services,Culture Sport and Tourism,054812,Gala Theatre - Catering etc,Supplies and Services,324117,Provisions E324,03-Jun-2019,000008601100385,FREEMAN CATERING BUTCH,5422,Catering costs - provisions,70.40,0.00,70.40
Children and Young Peoples Services,Head of Childrens Social Care,085333,Coxhoe Satelite Home,Employees,040149,Recruitment Instruction and Training,03-Jun-2019,000008601100485,BRITISH HEART FOUNDATI,8398,Training-all costs,5.00,0.00,5.00
Children and Young Peoples Services,Head of Childrens Social Care,085333,Coxhoe Satelite Home,Supplies and Services,328041,Clothing uniforms and laundry E328,03-Jun-2019,000008601100491,W BOYES & CO LTD NEWTO,5310,Clothing uniforms and laundry,1.10,0.00,1.10
Children and Young Peoples Services,Head of Childrens Social Care,085333,Coxhoe Satelite Home,Supplies and Services,328041,Clothing uniforms and laundry E328,03-Jun-2019,000008601100493,B & M RETAIL,5310,Clothing uniforms and laundry,9.69,0.00,9.69
Children and Young Peoples Services,Head of Childrens Social Care,085333,Coxhoe Satelite Home,Supplies and Services,324117,Provisions E324,03-Jun-2019,000008601100499,ALDI 74 774,5411,Catering costs - provisions,4.97,0.00,4.97
Children and Young Peoples Services,Head of Childrens Social Care,085333,Coxhoe Satelite Home,Supplies and Services,324117,Provisions E324,03-Jun-2019,000008601100503,ALDI 74 774,5411,Catering costs - provisions,7.16,1.19,5.97
Children and Young Peoples Services,Head of Education and Skills,071732,Dean Bank Childcare,Supplies and Services,324117,Provisions E324,03-Jun-2019,000008601100607,SAINSBURYS SACAT (2303,5411,Catering costs - provisions,2.20,0.00,2.20
Children and Young Peoples Services,Head of Education and Skills,071732,Dean Bank Childcare,Supplies and Services,324117,Provisions E324,03-Jun-2019,000008601100611,ASDA GROCERIES ONLINE,5411,Catering costs - provisions,45.29,0.00,45.29
Children and Young Peoples Services,Head of Education and Skills,071732,Dean Bank Childcare,Supplies and Services,324117,Provisions E324,03-Jun-2019,000008601100617,TESCO STORES 2971,5411,Catering costs - provisions,4.60,0.00,4.60
Children and Young Peoples Services,Head of Childrens Social Care,085334,West Rainton Satelite Home,Supplies and Services,308011,Furniture,03-Jun-2019,000008601100655,HOUGHTON CARPET CENTRE,5713,Furniture repair and replacement,190.00,0.00,190.00
Children and Young Peoples Services,Head of Childrens Social Care,085334,West Rainton Satelite Home,Supplies and Services,324117,Provisions E324,03-Jun-2019,000008601100659,TESCO STORES 2371,5411,Catering costs - provisions,105.43,0.00,105.43
Children and Young Peoples Services,Head of Childrens Social Care,085334,West Rainton Satelite Home,Supplies and Services,324117,Provisions E324,03-Jun-2019,000008601100663,TESCO STORES 2371,5411,Catering costs - provisions,23.70,0.00,23.70
Regeneration and Local Services,Development and Housing,031500,Housing Solutions - Core Team,Supplies and Services,352001,Conference Expenses,03-Jun-2019,000008601100701,AYCLIFFE BIZ,7011,Conferencesseminars fees etc,40.00,0.00,40.00
Children and Young Peoples Services,Head of Early Help Inclusion & Vulnerable Children.,085952,Secure Education,Supplies and Services,324117,Provisions E324,03-Jun-2019,000008601100723,TESCO STORES 6329,5411,Catering costs - provisions,247.58,0.00,247.58
Regeneration and Local Services,Culture Sport and Tourism,054813,Gala Theatre - Technical,Supplies and Services,304403,Equipment and Materials,03-Jun-2019,000008601100727,AMZNMktplace,5999,Other consumables,29.97,0.00,29.97
Regeneration and Local Services,Culture Sport and Tourism,054813,Gala Theatre - Technical,Supplies and Services,304403,Equipment and Materials,03-Jun-2019,000008601100731,AMZNMktplace,5999,Other consumables,30.32,0.00,30.32
Regeneration and Local Services,Environmental Services,011060,C&G - Hardwick Park Catering,Supplies and Services,324117,Provisions E324,03-Jun-2019,000008601100755,FREEMAN CATERING BUTCH,5422,Catering costs - provisions,67.17,0.00,67.17
Regeneration and Local Services,Environmental Services,011060,C&G - Hardwick Park Catering,Supplies and Services,324117,Provisions E324,03-Jun-2019,000008601100759,FREEMAN CATERING BUTCH,5422,Catering costs - provisions,45.17,0.00,45.17
Regeneration and Local Services,Environmental Services,011060,C&G - Hardwick Park Catering,Supplies and Services,324117,Provisions E324,03-Jun-2019,000008601100763,JR HOLLAND FOODSERVICE,5499,Catering costs - provisions,53.67,0.00,53.67
Regeneration and Local Services,Environmental Services,011060,C&G - Hardwick Park Catering,Supplies and Services,324117,Provisions E324,03-Jun-2019,000008601100765,JR HOLLAND FOODSERVICE,5499,Catering costs - provisions,57.92,0.00,57.92
Regeneration and Local Services,Corporate Property and Land,021234,Catering - Locomotion,Supplies and Services,324117,Provisions E324,03-Jun-2019,000008601100789,FREEMAN CATERING BUTCH,5422,Catering costs - provisions,134.30,0.00,134.30
Regeneration and Local Services,Corporate Property and Land,021234,Catering - Locomotion,Supplies and Services,324117,Provisions E324,03-Jun-2019,000008601100793,JR HOLLAND FOODSERVICE,5499,Catering costs - provisions,100.76,0.00,100.76
Regeneration and Local Services,Culture Sport and Tourism,010991,County-wide FISCH,Supplies and Services,324117,Provisions E324,03-Jun-2019,000008601100799,ASDA SUPERSTORE,5411,Catering costs - provisions,2.30,0.00,2.30
Regeneration and Local Services,Business Durham CL0850,030671,Business Space 030671,Supplies and Services,324117,Provisions E324,03-Jun-2019,000008601100831,SAINSBURYS (2303),5411,Catering costs - provisions,26.20,0.00,26.20
Resources BK0010,Corporate Finance & Commercial Services,069800,Corporate Procurement 069800,Supplies and Services,340001,Postages E340,03-Jun-2019,000008601100835,ROYAL MAIL ONLINE SHOP,9402,Postages,122.00,0.00,122.00
Children and Young Peoples Services,Head of Early Help Inclusion & Vulnerable Children.,088116,South Area - Teenage Parent Programme,Supplies and Services,384871,Miscellaneous Expenses,03-Jun-2019,000008601100843,GYMNASTICS CLUB,5941,Training-other activities,36.00,0.00,36.00
Resources BK0010,Finance & Transactional Services,065180,Collections,Supplies and Services,338048,Services,03-Jun-2019,000008601100887,HMCOURT-SERVICES.G,9222,Court costs 338048,110.00,0.00,110.00
Regeneration and Local Services,Development and Housing,031500,Housing Solutions - Core Team,Supplies and Services,384999,Miscellaneous Expenses,03-Jun-2019,000008601100891,WWW.DURHAM.GOV.UK,9399,Other expenses,11.00,0.00,11.00
Children and Young Peoples Services,Head of Childrens Social Care,085333,Coxhoe Satelite Home,Supplies and Services,324117,Provisions E324,03-Jun-2019,000008601100895,ALDI 59 774,5411,Catering costs - provisions,4.53,0.00,4.53
Regeneration and Local Services,Corporate Property and Land,030691,Catering - Durham Dales Centre,Supplies and Services,324117,Provisions E324,03-Jun-2019,000008601100903,FREEMAN CATERING BUTCH,5422,Catering costs - provisions,64.64,0.00,64.64
Regeneration and Local Services,Corporate Property and Land,030691,Catering - Durham Dales Centre,Supplies and Services,324117,Provisions E324,03-Jun-2019,000008601100909,FREEMAN CATERING BUTCH,5422,Catering costs - provisions,109.49,0.00,109.49
Regeneration and Local Services,Corporate Property and Land,030691,Catering - Durham Dales Centre,Supplies and Services,324117,Provisions E324,03-Jun-2019,000008601100911,JR HOLLAND FOODSERVICE,5499,Catering costs - provisions,219.43,0.00,219.43
Regeneration and Local Services,Corporate Property and Land,030691,Catering - Durham Dales Centre,Supplies and Services,324117,Provisions E324,03-Jun-2019,000008601100917,JR HOLLAND FOODSERVICE,5499,Catering costs - provisions,-12.40,0.00,-12.40
Adult and Health Services,Head of Adults,055643,Hawthorn House LD Respite Unit,Supplies and Services,324117,Provisions E324,03-Jun-2019,000008601100923,FREEMAN CATERING BUTCH,5422,Catering costs - provisions,47.17,0.00,47.17
Adult and Health Services,Head of Adults,055643,Hawthorn House LD Respite Unit,Supplies and Services,324117,Provisions E324,03-Jun-2019,000008601100929,JR HOLLAND FOODSERVICE,5499,Catering costs - provisions,20.28,0.00,20.28
Adult and Health Services,Head of Adults,055643,Hawthorn House LD Respite Unit,Supplies and Services,324117,Provisions E324,03-Jun-2019,000008601100933,JR HOLLAND FOODSERVICE,5499,Catering costs - provisions,12.39,0.00,12.39
Children and Young Peoples Services,Head of Education and Skills,070264,EDC Premises,Supplies and Services,324117,Provisions E324,03-Jun-2019,000008601100951,HOME BARGAINS,5251,Catering costs - provisions,6.45,0.00,6.45
Children and Young Peoples Services,Head of Education and Skills,075444,Durham Leadership Centre,Supplies and Services,304259,Equipment and Materials,03-Jun-2019,000008601100953,ARGOS BISHOP AUCKL,5310,Equipment-purchase and rental,39.98,6.66,33.32
Children and Young Peoples Services,Head of Early Help Inclusion & Vulnerable Children.,071445,Chester le Street One Point Hub,Supplies and Services,372009,Subscriptions E372,03-Jun-2019,000008601100957,WWW.GBLF.CO.UK,8111,Subscriptions 372009,215.00,0.00,215.00
Resources BK0010,Digital and Customer Services,065335,School Services - Implementations,Supplies and Services,304221,Equipment and Materials,03-Jun-2019,000008601100969,WWW.AVPARTMASTER.NET,7622,Direct materials,206.28,0.00,206.28
Children and Young Peoples Services,Head of Early Help Inclusion & Vulnerable Children.,085957,Secure Management,Supplies and Services,324117,Provisions E324,03-Jun-2019,000008601100989,WILKO.COM,5399,Catering costs - provisions,68.00,0.00,68.00
Children and Young Peoples Services,Head of Early Help Inclusion & Vulnerable Children.,085957,Secure Management,Supplies and Services,304999,Equipment and Materials,03-Jun-2019,000008601100995,FRUUGO,7278,Misc equipment tools and materials,35.34,0.00,35.34
Adult and Health Services,Public Health CC0450,057096,Drug and Alcohol Commissioning,Supplies and Services,342033,Computers and Communications,03-Jun-2019,000008601101001,COMODO CA LIMITED,7399,Computer hardware,226.08,0.00,226.08
Regeneration and Local Services,Transport and Contracted Services,031701,Care Connect All Localities,Supplies and Services,304245,Equipment and Materials,03-Jun-2019,000008601101009,AMZNMktplace,5999,Materials,375.05,0.00,375.05
Regeneration and Local Services,Environmental Services,026591,C&G - Hardwick Park,Supplies and Services,332047,Printing Stationery and Gen Off Exps,03-Jun-2019,000008601101011,AMZNMktplace,5999,Stationery,13.11,2.19,10.92
Regeneration and Local Services,Environmental Services,011060,C&G - Hardwick Park Catering,Supplies and Services,304083,Equipment and Materials,03-Jun-2019,000008601101013,WWW.NISBETS.COM,5964,Catering equipment,73.17,12.20,60.97
Regeneration and Local Services,Corporate Property and Land,021324,Catering - Meadowfield,Supplies and Services,324117,Provisions E324,03-Jun-2019,000008601101015,FREEMAN CATERING BUTCH,5422,Catering costs - provisions,15.56,0.00,15.56
Regeneration and Local Services,Corporate Property and Land,021324,Catering - Meadowfield,Supplies and Services,324117,Provisions E324,03-Jun-2019,000008601101017,FREEMAN CATERING BUTCH,5422,Catering costs - provisions,46.11,0.00,46.11
Regeneration and Local Services,Corporate Property and Land,021324,Catering - Meadowfield,Supplies and Services,324117,Provisions E324,03-Jun-2019,000008601101019,JR HOLLAND FOODSERVICE,5499,Catering costs - provisions,56.00,0.00,56.00
Regeneration and Local Services,Corporate Property and Land,021324,Catering - Meadowfield,Supplies and Services,324117,Provisions E324,03-Jun-2019,000008601101021,JR HOLLAND FOODSERVICE,5499,Catering costs - provisions,-9.30,0.00,-9.30
Children and Young Peoples Services,Head of Education and Skills,070169,Durham SSP,Supplies and Services,304403,Equipment and Materials,03-Jun-2019,000008601101043,AMZNMKTPLACE AMAZON.CO,5999,Other consumables,10.84,0.00,10.84
Regeneration and Local Services,Culture Sport and Tourism,054233,Bishop Auckland Town Hall Library,Employees,040149,Recruitment Instruction and Training,03-Jun-2019,000008601101071,WWW.FILMBANK.CO.UK,7829,Training-all costs,99.60,16.60,83.00
Adult and Health Services,Head of Adults,055807,Newton Aycliffe Pathways,Supplies and Services,312011,Newspapers books and periodicals E312,03-Jun-2019,000008601101089,Amazon.co.uk MN0RR9YN4,5969,Books-school library,21.99,0.00,21.99
Adult and Health Services,Head of Adults,055807,Newton Aycliffe Pathways,Supplies and Services,312011,Newspapers books and periodicals E312,03-Jun-2019,000008601101091,Amazon.co.uk MN4EO6YZ4,5969,Books-school library,17.70,0.00,17.70
Adult and Health Services,Head of Adults,055807,Newton Aycliffe Pathways,Supplies and Services,324117,Provisions E324,03-Jun-2019,000008601101093,ASDA SUPERSTORE 4987,5411,Catering costs - provisions,1.58,0.00,1.58
Adult and Health Services,Head of Adults,055306,Spennymoor Pathways,Supplies and Services,324117,Provisions E324,03-Jun-2019,000008601101099,EARLY NOON & NIGHT,5411,Catering costs - provisions,2.60,0.00,2.60
Regeneration and Local Services,Corporate Property and Land,021235,Catering - Wharton Park,Supplies and Services,324117,Provisions E324,03-Jun-2019,000008601101103,JR HOLLAND FOODSERVICE,5499,Catering costs - provisions,41.30,0.00,41.30
Regeneration and Local Services,Corporate Property and Land,021235,Catering - Wharton Park,Supplies and Services,324117,Provisions E324,03-Jun-2019,000008601101105,JR HOLLAND FOODSERVICE,5499,Catering costs - provisions,3.40,0.00,3.40
Children and Young Peoples Services,Head of Childrens Social Care,085363,LAC & Permanence Team 3,Supplies and Services,304259,Equipment and Materials,03-Jun-2019,000008601101109,HM PASSPORT OFFICE,9399,Equipment-purchase and rental,49.00,0.00,49.00
Children and Young Peoples Services,Head of Childrens Social Care,085363,LAC & Permanence Team 3,Supplies and Services,328041,Clothing uniforms and laundry E328,03-Jun-2019,000008601101111,WWW.ARGOS.CO.UK,5310,Clothing uniforms and laundry,130.94,0.00,130.94
Regeneration and Local Services,Business Durham CL0850,030694,Plexus 2,Supplies and Services,324117,Provisions E324,03-Jun-2019,000008601101129,SAINSBURYS (2303),5411,Catering costs - provisions,24.44,0.00,24.44
Children and Young Peoples Services,Head of Early Help Inclusion & Vulnerable Children.,085810,CDYOS - Interventions Team,Supplies and Services,324117,Provisions E324,03-Jun-2019,000008601101131,WILKO.COM,5399,Catering costs - provisions,90.00,15.00,75.00
Transformation and Partnerships,Business Support,065461,Business Support 065461,Supplies and Services,304403,Equipment and Materials,03-Jun-2019,000008605391299,AMZNMKTPLACE AMAZON.CO,5999,Other consumables,29.97,0.00,29.97
Regeneration and Local Services,Corporate Property and Land,021242,Catering - County Hall,Supplies and Services,324117,Provisions E324,03-Jun-2019,000008605391501,WWW.ADELIEFOODS.CO.UK,5499,Catering costs - provisions,49.66,0.00,49.66
Regeneration and Local Services,Corporate Property and Land,021242,Catering - County Hall,Supplies and Services,324117,Provisions E324,03-Jun-2019,000008605391507,WWW.ADELIEFOODS.CO.UK,5499,Catering costs - provisions,55.12,0.00,55.12
Regeneration and Local Services,Corporate Property and Land,021242,Catering - County Hall,Supplies and Services,324117,Provisions E324,03-Jun-2019,000008605391511,WWW.ADELIEFOODS.CO.UK,5499,Catering costs - provisions,41.52,0.00,41.52
Regeneration and Local Services,Culture Sport and Tourism,054812,Gala Theatre - Catering etc,Supplies and Services,324117,Provisions E324,03-Jun-2019,000008605391543,BATLEYS PERTH,5300,Catering costs - provisions,57.66,9.61,48.05
Regeneration and Local Services,Culture Sport and Tourism,054812,Gala Theatre - Catering etc,Supplies and Services,324117,Provisions E324,03-Jun-2019,000008605391543 - 1,BATLEYS PERTH,5300,Catering costs - provisions,99.92,,99.92
Regeneration and Local Services,Development and Housing,031576,B& B - Temp Accom,Employees,040149,Recruitment Instruction and Training,03-Jun-2019,000008605391549,PREMIER INN,3811,Training-all costs,202.00,33.67,168.33
Regeneration and Local Services,Development and Housing,031576,B& B - Temp Accom,Employees,040149,Recruitment Instruction and Training,03-Jun-2019,000008605391661,PREMIER INN,3811,Training-all costs,202.00,33.67,168.33
Regeneration and Local Services,Corporate Property and Land,021234,Catering - Locomotion,Supplies and Services,324117,Provisions E324,03-Jun-2019,000008605391881,WWW.ADELIEFOODS.CO.UK,5499,Catering costs - provisions,99.40,0.00,99.40
Regeneration and Local Services,Corporate Property and Land,021234,Catering - Locomotion,Supplies and Services,324117,Provisions E324,03-Jun-2019,000008605391883,WWW.ADELIEFOODS.CO.UK,5499,Catering costs - provisions,151.76,0.00,151.76
Regeneration and Local Services,Corporate Property and Land,021234,Catering - Locomotion,Supplies and Services,324117,Provisions E324,03-Jun-2019,000008605391887,WWW.ADELIEFOODS.CO.UK,5499,Catering costs - provisions,155.42,0.00,155.42
Regeneration and Local Services,Corporate Property and Land,021234,Catering - Locomotion,Supplies and Services,324117,Provisions E324,03-Jun-2019,000008605391891,WWW.ADELIEFOODS.CO.UK,5499,Catering costs - provisions,37.44,0.00,37.44
Regeneration and Local Services,Corporate Property and Land,010525,Catering - Green Lane,Supplies and Services,324117,Provisions E324,03-Jun-2019,000008605391923,WWW.ADELIEFOODS.CO.UK,5499,Catering costs - provisions,34.60,0.00,34.60
Regeneration and Local Services,Corporate Property and Land,030691,Catering - Durham Dales Centre,Supplies and Services,324117,Provisions E324,03-Jun-2019,000008605392043,BATLEYS PERTH,5300,Catering costs - provisions,108.06,18.01,90.05
Regeneration and Local Services,Corporate Property and Land,030691,Catering - Durham Dales Centre,Supplies and Services,324117,Provisions E324,03-Jun-2019,000008605392043 - 1,BATLEYS PERTH,5300,Catering costs - provisions,174.78,,174.78
Regeneration and Local Services,Corporate Property and Land,030691,Catering - Durham Dales Centre,Supplies and Services,324117,Provisions E324,03-Jun-2019,000008605392047,BATLEYS PERTH,5300,Catering costs - provisions,1.85,0.00,1.85
Regeneration and Local Services,Corporate Property and Land,021324,Catering - Meadowfield,Supplies and Services,324117,Provisions E324,03-Jun-2019,000008605392147,WWW.ADELIEFOODS.CO.UK,5499,Catering costs - provisions,38.21,0.00,38.21
Regeneration and Local Services,Corporate Property and Land,021235,Catering - Wharton Park,Supplies and Services,324117,Provisions E324,03-Jun-2019,000008605392369,BATLEYS PERTH,5300,Catering costs - provisions,59.28,9.88,49.40
Regeneration and Local Services,Corporate Property and Land,021235,Catering - Wharton Park,Supplies and Services,324117,Provisions E324,03-Jun-2019,000008605392369 - 1,BATLEYS PERTH,5300,Catering costs - provisions,18.35,,18.35
Resources BK0010,Corporate Finance & Commercial Services,069800,Corporate Procurement 069800,Supplies and Services,304403,Equipment and Materials,03-Jun-2019,000008616074287,WWW.BUYSPARES.CO.UK,5065,Other consumables,44.72,7.45,37.27
Adult and Health Services,Public Health CC0450,057096,Drug and Alcohol Commissioning,Supplies and Services,344033,Telephones,04-Jun-2019,000008601101003,COMODO CA LIMITED,7399,Telephones general-all costs,6.22,0.00,6.22
Children and Young Peoples Services,Head of Education and Skills,071801,Selby Cottage Childcare Centre,Supplies and Services,324117,Provisions E324,04-Jun-2019,000008605391263,TESCO STORES 2278,5411,Catering costs - provisions,8.60,0.00,8.60
Children and Young Peoples Services,Head of Education and Skills,054640,Durham Learning Resources 054640,Supplies and Services,304403,Equipment and Materials,04-Jun-2019,000008605391281,AMZNMKTPLACE AMAZON.CO,5999,Other consumables,35.97,0.00,35.97
Children and Young Peoples Services,Head of Education and Skills,054640,Durham Learning Resources 054640,Supplies and Services,304403,Equipment and Materials,04-Jun-2019,000008605391283,AMZNMktplace,5999,Other consumables,70.76,0.00,70.76
Children and Young Peoples Services,Head of Education and Skills,054640,Durham Learning Resources 054640,Supplies and Services,304403,Equipment and Materials,04-Jun-2019,000008605391287,AMZNMktplace,5999,Other consumables,6.73,0.00,6.73
Transformation and Partnerships,Business Support,065461,Business Support 065461,Supplies and Services,352001,Conference Expenses,04-Jun-2019,000008605391295,BITEABLE PTY LTD,7392,Conferencesseminars fees etc,22.99,0.00,22.99
Transformation and Partnerships,Business Support,065461,Business Support 065461,Employees,040149,Recruitment Instruction and Training,04-Jun-2019,000008605391303,SAMSUNG UK,7629,Training-all costs,169.00,28.17,140.83
Transformation and Partnerships,Business Support,065461,Business Support 065461,Supplies and Services,312011,Newspapers books and periodicals E312,04-Jun-2019,000008605391307,Amazon.co.uk M68P39CL4,5969,Books-school library,58.28,0.00,58.28
Transformation and Partnerships,Business Support,065461,Business Support 065461,Supplies and Services,304403,Equipment and Materials,04-Jun-2019,000008605391311,AMZNMktplace,5999,Other consumables,23.99,0.00,23.99
Transformation and Partnerships,Business Support,065461,Business Support 065461,Supplies and Services,304403,Equipment and Materials,04-Jun-2019,000008605391315,AMZNMktplace,5999,Other consumables,6.79,1.13,5.66
Regeneration and Local Services,Development and Housing,030771,Durham Advance Flexible Fund,Transport,215995,Running Costs of Vehicles,04-Jun-2019,000008605391323,TESCO PAY AT PUMP 4088,5542,Vehicle running expenses,39.48,6.58,32.90
Adult and Health Services,Head of Adults,051622,OP/PD Dales 051622,Supplies and Services,304240,Equipment and Materials,04-Jun-2019,000008605391341,WWW.ARGOS.CO.UK,5310,Equipment purchased from donations,112.99,0.00,112.99
Adult and Health Services,Head of Adults,051622,OP/PD Dales 051622,Supplies and Services,304240,Equipment and Materials,04-Jun-2019,000008605391345,WWW.ARGOS.CO.UK,5310,Equipment purchased from donations,171.94,0.00,171.94
Adult and Health Services,Head of Adults,055302,Durham Pathways,Supplies and Services,328041,Clothing uniforms and laundry E328,04-Jun-2019,000008605391359,WWW.THEWORKS.CO.UK,5310,Clothing uniforms and laundry,7.00,0.00,7.00
Children and Young Peoples Services,Head of Childrens Social Care,085332,Middlestone Moor CU,Supplies and Services,324117,Provisions E324,04-Jun-2019,000008605391373,ASDA SUPERSTORE 4987,5411,Catering costs - provisions,30.15,0.00,30.15
Regeneration and Local Services,Business Durham CL0850,030699,Business Growth and Innovation General,Supplies and Services,342033,Computers and Communications,04-Jun-2019,000008605391379,STK Shutterstock,7333,Computer hardware,19.00,0.00,19.00
Regeneration and Local Services,Business Durham CL0850,030699,Business Growth and Innovation General,Supplies and Services,304403,Equipment and Materials,04-Jun-2019,000008605391383,MEETEDGAR MONTHLY,5734,Other consumables,38.76,0.00,38.76
Regeneration and Local Services,Business Durham CL0850,030699,Business Growth and Innovation General,Supplies and Services,312011,Newspapers books and periodicals E312,04-Jun-2019,000008605391387,FASTHOSTS INTERNET,4816,Books-school library,6.34,1.06,5.28
Regeneration and Local Services,Culture Sport and Tourism,054233,Bishop Auckland Town Hall Library,Supplies and Services,304403,Equipment and Materials,04-Jun-2019,000008605391519,AMZNMktplace,5999,Other consumables,6.80,0.00,6.80
Regeneration and Local Services,Culture Sport and Tourism,054233,Bishop Auckland Town Hall Library,Supplies and Services,304403,Equipment and Materials,04-Jun-2019,000008605391525,AMZNMktplace,5999,Other consumables,52.96,8.84,44.12
Regeneration and Local Services,Development and Housing,030773,CLLD North,Supplies and Services,304259,Equipment and Materials,04-Jun-2019,000008605391615,Durham County CNCL,9399,Equipment-purchase and rental,35.00,0.00,35.00
Children and Young Peoples Services,Head of Childrens Social Care,085333,Coxhoe Satelite Home,Supplies and Services,328041,Clothing uniforms and laundry E328,04-Jun-2019,000008605391619,NEW LOOK,5621,Clothing uniforms and laundry,37.98,0.00,37.98
Children and Young Peoples Services,Head of Childrens Social Care,085333,Coxhoe Satelite Home,Supplies and Services,324117,Provisions E324,04-Jun-2019,000008605391623,MARKS&SPENCER PLC,5411,Catering costs - provisions,16.05,0.00,16.05
Children and Young Peoples Services,Head of Childrens Social Care,085333,Coxhoe Satelite Home,Supplies and Services,324117,Provisions E324,04-Jun-2019,000008605391625,CO-OP GROUP 310016,5411,Catering costs - provisions,8.00,0.00,8.00
Children and Young Peoples Services,Head of Childrens Social Care,085333,Coxhoe Satelite Home,Supplies and Services,304403,Equipment and Materials,04-Jun-2019,000008605391637,AMZNMktplace,5999,Other consumables,9.99,0.00,9.99
Regeneration and Local Services,Development and Housing,031576,B& B - Temp Accom,Supplies and Services,352001,Conference Expenses,04-Jun-2019,000008605391663,HAYAT HOTEL,7011,Conferencesseminars fees etc,89.00,14.83,74.17
Transformation and Partnerships,Business Support,052986,CYPS - Locality and Operational Support,Supplies and Services,324117,Provisions E324,04-Jun-2019,000008605391699,TESCO STORES 2916,5411,Catering costs - provisions,9.58,0.00,9.58
Children and Young Peoples Services,Head of Education and Skills,071732,Dean Bank Childcare,Supplies and Services,328041,Clothing uniforms and laundry E328,04-Jun-2019,000008605391717,B&M RETAIL LTD,5310,Clothing uniforms and laundry,21.00,0.00,21.00
Regeneration and Local Services,Environmental Services,010314,Nei.Prot - Bereavement Services,Supplies and Services,304259,Equipment and Materials,04-Jun-2019,000008605391729,Durham County CNCL,9399,Equipment-purchase and rental,11.00,0.00,11.00
Regeneration and Local Services,Development and Housing,031500,Housing Solutions - Core Team,Transport,235057,Public Transport,04-Jun-2019,000008605391773,NATIONAL EXPRESS LIMIT,4131,Staff travelling,20.40,0.00,20.40
Children and Young Peoples Services,Head of Early Help Inclusion & Vulnerable Children.,085954,Walworth,Supplies and Services,328041,Clothing uniforms and laundry E328,04-Jun-2019,000008605391813,FOOTASYLUM PLC,5691,Clothing uniforms and laundry,77.97,0.00,77.97
Children and Young Peoples Services,Head of Early Help Inclusion & Vulnerable Children.,085956,Lumley,Supplies and Services,328041,Clothing uniforms and laundry E328,04-Jun-2019,000008605391819,BOOHOO.COM,5691,Clothing uniforms and laundry,8.20,0.00,8.20
Children and Young Peoples Services,Head of Early Help Inclusion & Vulnerable Children.,085956,Lumley,Supplies and Services,328041,Clothing uniforms and laundry E328,04-Jun-2019,000008605391821,PRETTYLITTLETHING.COM,5691,Clothing uniforms and laundry,29.99,0.00,29.99
Children and Young Peoples Services,Head of Early Help Inclusion & Vulnerable Children.,085957,Secure Management,Supplies and Services,312011,Newspapers books and periodicals E312,04-Jun-2019,000008605391827,Amazon.co.uk M67BP6CH4,5969,Books-school library,39.59,0.00,39.59
Children and Young Peoples Services,Head of Early Help Inclusion & Vulnerable Children.,085957,Secure Management,Supplies and Services,312011,Newspapers books and periodicals E312,04-Jun-2019,000008605391831,Amazon.co.uk M64QE7CP4,5969,Books-school library,33.88,0.00,33.88
Regeneration and Local Services,Culture Sport and Tourism,054813,Gala Theatre - Technical,Supplies and Services,304999,Equipment and Materials,04-Jun-2019,000008605391833,Prime Video,5968,Misc equipment tools and materials,7.99,0.00,7.99
Regeneration and Local Services,Culture Sport and Tourism,054813,Gala Theatre - Technical,Supplies and Services,304403,Equipment and Materials,04-Jun-2019,000008605391837,AMZNMktplace,5999,Other consumables,9.95,0.00,9.95
Regeneration and Local Services,Culture Sport and Tourism,054813,Gala Theatre - Technical,Supplies and Services,304403,Equipment and Materials,04-Jun-2019,000008605391839,AMZNMktplace,5999,Other consumables,81.00,0.00,81.00
Regeneration and Local Services,Culture Sport and Tourism,054813,Gala Theatre - Technical,Supplies and Services,324117,Provisions E324,04-Jun-2019,000008605391843,TESCO STORES 6029,5411,Catering costs - provisions,8.40,0.00,8.40
Regeneration and Local Services,Culture Sport and Tourism,054813,Gala Theatre - Technical,Transport,215995,Running Costs of Vehicles,04-Jun-2019,000008605391845,PAYPAL EAGLE4X4LIM,5533,Vehicle running expenses,265.00,0.00,265.00
Regeneration and Local Services,Culture Sport and Tourism,054813,Gala Theatre - Technical,Transport,215995,Running Costs of Vehicles,04-Jun-2019,000008605391849,STORM XCESSORIES,5533,Vehicle running expenses,193.80,0.00,193.80
Regeneration and Local Services,Culture Sport and Tourism,054813,Gala Theatre - Technical,Transport,235005,Public Transport,04-Jun-2019,000008605391853,FAST AUTOCARE NE,7538,Contract tickets,131.80,0.00,131.80
Regeneration and Local Services,Corporate Property and Land,010525,Catering - Green Lane,Premises,145009,Cleaning and Domestic Supplies,04-Jun-2019,000008605391919,ALLIANCE DISPOSABLES L,2842,Other cleaning and domestic costs,46.20,7.70,38.50
Children and Young Peoples Services,Head of Childrens Social Care,085551,Short Break Services-Park Hse Sher,Supplies and Services,324117,Provisions E324,04-Jun-2019,000008605391927,ICELAND,5411,Catering costs - provisions,26.55,0.00,26.55
Children and Young Peoples Services,Head of Childrens Social Care,085551,Short Break Services-Park Hse Sher,Supplies and Services,324117,Provisions E324,04-Jun-2019,000008605391933,ALDI 12 774,5411,Catering costs - provisions,56.94,9.49,47.45
Children and Young Peoples Services,Head of Childrens Social Care,085551,Short Break Services-Park Hse Sher,Supplies and Services,324117,Provisions E324,04-Jun-2019,000008605391933 - 1,ALDI 12 774,5411,Catering costs - provisions,11.62,,11.62
Regeneration and Local Services,Development and Housing,030554,International Relations 030554,Transport,235057,Public Transport,04-Jun-2019,000008605391955,WALKERGATE CAR PAR,7523,Staff travelling,1.80,0.00,1.80
Children and Young Peoples Services,Head of Childrens Social Care,085334,West Rainton Satelite Home,Supplies and Services,304221,Equipment and Materials,04-Jun-2019,000008605392003,B & Q 1343,5211,Direct materials,13.71,0.00,13.71
Regeneration and Local Services,Culture Sport and Tourism,011214,Volunteer & Skills 011214,Supplies and Services,324117,Provisions E324,04-Jun-2019,000008605392031,ASDA SUPERSTORE 4987,5411,Catering costs - provisions,20.85,3.48,17.37
Children and Young Peoples Services,Head of Early Help Inclusion & Vulnerable Children.,074000,TTF-Attachment and Results,Transfer Payments,525033,Other,04-Jun-2019,000008605392067,ASDA GEORGE COM LEEDS,5411,Grants to individuals,217.85,36.31,181.54
Children and Young Peoples Services,Head of Early Help Inclusion & Vulnerable Children.,074000,TTF-Attachment and Results,Transfer Payments,525033,Other,04-Jun-2019,000008605392071,ASDA GEORGE COM LEEDS,5411,Grants to individuals,217.85,36.31,181.54
Children and Young Peoples Services,Head of Early Help Inclusion & Vulnerable Children.,071445,Chester le Street One Point Hub,Supplies and Services,304403,Equipment and Materials,04-Jun-2019,000008605392075,AMZNMktplace,5999,Other consumables,92.80,0.00,92.80
Resources BK0010,Digital and Customer Services,065335,School Services - Implementations,Supplies and Services,304259,Equipment and Materials,04-Jun-2019,000008605392081,box.co.uk,5732,Equipment-purchase and rental,149.85,24.98,124.87
Regeneration and Local Services,Development and Housing,030771,Durham Advance Flexible Fund,Supplies and Services,304221,Equipment and Materials,04-Jun-2019,000008605392095,SCREWFIX CHESTER L,5211,Direct materials,47.17,7.86,39.31
Children and Young Peoples Services,Head of Early Help Inclusion & Vulnerable Children.,085957,Secure Management,Supplies and Services,304403,Equipment and Materials,04-Jun-2019,000008605392099,AMZNMktplace,5999,Other consumables,12.99,2.17,10.82
Children and Young Peoples Services,Head of Early Help Inclusion & Vulnerable Children.,085957,Secure Management,Supplies and Services,304403,Equipment and Materials,04-Jun-2019,000008605392101,AMZNMktplace,5999,Other consumables,2.69,0.45,2.24
Children and Young Peoples Services,Head of Early Help Inclusion & Vulnerable Children.,085957,Secure Management,Supplies and Services,304403,Equipment and Materials,04-Jun-2019,000008605392105,AMZNMktplace,5999,Other consumables,11.98,2.00,9.98
Children and Young Peoples Services,Head of Early Help Inclusion & Vulnerable Children.,085957,Secure Management,Supplies and Services,304403,Equipment and Materials,04-Jun-2019,000008605392109,AMZNMktplace,5999,Other consumables,5.99,1.00,4.99
Adult and Health Services,Head of Adults,055301,Stanley Pathways,Supplies and Services,328041,Clothing uniforms and laundry E328,04-Jun-2019,000008605392167,Argos Durham Arnis,5310,Clothing uniforms and laundry,15.00,2.50,12.50
Children and Young Peoples Services,Head of Childrens Social Care,085333,Coxhoe Satelite Home,Supplies and Services,324117,Provisions E324,04-Jun-2019,000008605392205,TESCO STORES 2916,5411,Catering costs - provisions,37.17,0.00,37.17
Transformation and Partnerships,Business Support,069010,Administration 069010,Supplies and Services,336005,Advertising E336,04-Jun-2019,000008605392357,FACEBK JTGP9K25B2,7311,Advertising other than for staff,318.78,0.00,318.78
Transformation and Partnerships,Business Support,052986,CYPS - Locality and Operational Support,Supplies and Services,348037,Subsistence E348,04-Jun-2019,000008605392501,SAMBUCA SOUTH SHIELDS,5812,Subsistence,106.40,0.00,106.40
Regeneration and Local Services,Corporate Property and Land,021242,Catering - County Hall,Supplies and Services,324117,Provisions E324,04-Jun-2019,000008610590553,BATLEYS PERTH,5300,Catering costs - provisions,387.90,64.65,323.25
Regeneration and Local Services,Corporate Property and Land,021242,Catering - County Hall,Supplies and Services,324117,Provisions E324,04-Jun-2019,000008610590553 - 1,BATLEYS PERTH,5300,Catering costs - provisions,193.61,,193.61
Regeneration and Local Services,Corporate Property and Land,021242,Catering - County Hall,Supplies and Services,324117,Provisions E324,04-Jun-2019,000008610590593,JR HOLLAND FOODSERVICE,5499,Catering costs - provisions,149.08,0.00,149.08
Regeneration and Local Services,Corporate Property and Land,021242,Catering - County Hall,Supplies and Services,324117,Provisions E324,04-Jun-2019,000008610590599,JR HOLLAND FOODSERVICE,5499,Catering costs - provisions,31.51,0.00,31.51
Regeneration and Local Services,Corporate Property and Land,021242,Catering - County Hall,Supplies and Services,324117,Provisions E324,04-Jun-2019,000008610590605,JR HOLLAND FOODSERVICE,5499,Catering costs - provisions,169.10,0.00,169.10
Regeneration and Local Services,Environmental Services,011060,C&G - Hardwick Park Catering,Supplies and Services,324117,Provisions E324,04-Jun-2019,000008610590977,BATLEYS PERTH,5300,Catering costs - provisions,203.10,33.85,169.25
Regeneration and Local Services,Environmental Services,011060,C&G - Hardwick Park Catering,Supplies and Services,324117,Provisions E324,04-Jun-2019,000008610590977 - 1,BATLEYS PERTH,5300,Catering costs - provisions,183.65,,183.65
Regeneration and Local Services,Environmental Services,011060,C&G - Hardwick Park Catering,Supplies and Services,324117,Provisions E324,04-Jun-2019,000008610590993,JR HOLLAND FOODSERVICE,5499,Catering costs - provisions,42.60,0.00,42.60
Regeneration and Local Services,Corporate Property and Land,021234,Catering - Locomotion,Supplies and Services,324117,Provisions E324,04-Jun-2019,000008610591041,BATLEYS PERTH,5300,Catering costs - provisions,110.58,18.43,92.15
Regeneration and Local Services,Corporate Property and Land,021234,Catering - Locomotion,Supplies and Services,324117,Provisions E324,04-Jun-2019,000008610591041 - 1,BATLEYS PERTH,5300,Catering costs - provisions,48.58,,48.58
Regeneration and Local Services,Corporate Property and Land,010525,Catering - Green Lane,Supplies and Services,324117,Provisions E324,04-Jun-2019,000008610591079,BATLEYS PERTH,5300,Catering costs - provisions,89.88,14.98,74.90
Regeneration and Local Services,Corporate Property and Land,010525,Catering - Green Lane,Supplies and Services,324117,Provisions E324,04-Jun-2019,000008610591079 - 1,BATLEYS PERTH,5300,Catering costs - provisions,54.69,,54.69
Regeneration and Local Services,Corporate Property and Land,010525,Catering - Green Lane,Supplies and Services,324117,Provisions E324,04-Jun-2019,000008610591095,JR HOLLAND FOODSERVICE,5499,Catering costs - provisions,60.05,0.00,60.05
Adult and Health Services,Head of Adults,055643,Hawthorn House LD Respite Unit,Supplies and Services,324117,Provisions E324,04-Jun-2019,000008610591305,JR HOLLAND FOODSERVICE,5499,Catering costs - provisions,17.38,0.00,17.38
Adult and Health Services,Head of Adults,055643,Hawthorn House LD Respite Unit,Supplies and Services,324117,Provisions E324,04-Jun-2019,000008610591311,JR HOLLAND FOODSERVICE,5499,Catering costs - provisions,5.52,0.00,5.52
Regeneration and Local Services,Culture Sport and Tourism,054235,Bishop Auckland Town Hall Cafe,Supplies and Services,324117,Provisions E324,04-Jun-2019,000008610591383,BATLEYS PERTH,5300,Catering costs - provisions,61.56,10.26,51.30
Regeneration and Local Services,Culture Sport and Tourism,054235,Bishop Auckland Town Hall Cafe,Supplies and Services,324117,Provisions E324,04-Jun-2019,000008610591383 - 1,BATLEYS PERTH,5300,Catering costs - provisions,90.88,,90.88
Regeneration and Local Services,Culture Sport and Tourism,054235,Bishop Auckland Town Hall Cafe,Supplies and Services,324117,Provisions E324,04-Jun-2019,000008610591391,JR HOLLAND FOODSERVICE,5499,Catering costs - provisions,53.01,0.00,53.01
Regeneration and Local Services,Corporate Property and Land,021324,Catering - Meadowfield,Supplies and Services,324117,Provisions E324,04-Jun-2019,000008610591405,BATLEYS PERTH,5300,Catering costs - provisions,111.06,18.51,92.55
Regeneration and Local Services,Corporate Property and Land,021324,Catering - Meadowfield,Supplies and Services,324117,Provisions E324,04-Jun-2019,000008610591405 - 1,BATLEYS PERTH,5300,Catering costs - provisions,122.57,,122.57
Regeneration and Local Services,Corporate Property and Land,021324,Catering - Meadowfield,Supplies and Services,324117,Provisions E324,04-Jun-2019,000008610591417,JR HOLLAND FOODSERVICE,5499,Catering costs - provisions,14.19,0.00,14.19
Regeneration and Local Services,Corporate Property and Land,021324,Catering - Meadowfield,Supplies and Services,324117,Provisions E324,04-Jun-2019,000008610591425,JR HOLLAND FOODSERVICE,5499,Catering costs - provisions,22.80,0.00,22.80
Transformation and Partnerships,Business Support,065461,Business Support 065461,Supplies and Services,352001,Conference Expenses,05-Jun-2019,000008605391319,BITEABLE PTY LTD,7392,Conferencesseminars fees etc,0.63,0.00,0.63
Regeneration and Local Services,Business Durham CL0850,030699,Business Growth and Innovation General,Supplies and Services,304403,Equipment and Materials,05-Jun-2019,000008605391391,MEETEDGAR MONTHLY,5734,Other consumables,1.07,0.00,1.07
Children and Young Peoples Services,Head of Education and Skills,071801,Selby Cottage Childcare Centre,Supplies and Services,324117,Provisions E324,05-Jun-2019,000008610590283,ASDA GROCERIES ONLINE,5411,Catering costs - provisions,75.43,0.00,75.43
Children and Young Peoples Services,Head of Education and Skills,054640,Durham Learning Resources 054640,Supplies and Services,312011,Newspapers books and periodicals E312,05-Jun-2019,000008610590297,Amazon.co.uk M67ZD0FB4,5969,Books-school library,25.68,4.28,21.40
Regeneration and Local Services,Development and Housing,031576,B& B - Temp Accom,Supplies and Services,352001,Conference Expenses,05-Jun-2019,000008610590305,HAYAT HOTEL,7011,Conferencesseminars fees etc,89.00,0.00,89.00
Transformation and Partnerships,Business Support,065461,Business Support 065461,Supplies and Services,304403,Equipment and Materials,05-Jun-2019,000008610590311,AMZNMktplace,5999,Other consumables,9.99,0.00,9.99
Transformation and Partnerships,Business Support,065461,Business Support 065461,Supplies and Services,304403,Equipment and Materials,05-Jun-2019,000008610590317,AMZNMktplace,5999,Other consumables,23.88,0.00,23.88
Transformation and Partnerships,Business Support,065461,Business Support 065461,Transport,235057,Public Transport,05-Jun-2019,000008610590321,Oyster Online,4112,Staff travelling,50.00,0.00,50.00
Transformation and Partnerships,Business Support,065461,Business Support 065461,Transport,235057,Public Transport,05-Jun-2019,000008610590327,Oyster Online,4112,Staff travelling,50.00,0.00,50.00
Regeneration and Local Services,Development and Housing,030771,Durham Advance Flexible Fund,Employees,040029,Recruitment Instruction and Training,05-Jun-2019,000008610590345,ARRIVA NORTH EAST,4131,Interview expenses,26.20,0.00,26.20
Adult and Health Services,Head of Adults,051622,OP/PD Dales 051622,Supplies and Services,304240,Equipment and Materials,05-Jun-2019,000008610590383,CURRYS ONLINE,5732,Equipment purchased from donations,235.00,39.17,195.83
Adult and Health Services,Head of Adults,055302,Durham Pathways,Supplies and Services,324117,Provisions E324,05-Jun-2019,000008610590397,ASDA SUPERSTORE,5411,Catering costs - provisions,36.46,0.00,36.46
Adult and Health Services,Head of Adults,055302,Durham Pathways,Supplies and Services,324117,Provisions E324,05-Jun-2019,000008610590403,ASDA SUPERSTORE,5411,Catering costs - provisions,3.65,0.00,3.65
Children and Young Peoples Services,Head of Childrens Social Care,085342,9 Cedar Drive Aycliffe,Supplies and Services,324117,Provisions E324,05-Jun-2019,000008610590437,TESCO STORES 2916,5411,Catering costs - provisions,19.85,0.00,19.85
Children and Young Peoples Services,Head of Childrens Social Care,085342,9 Cedar Drive Aycliffe,Supplies and Services,324117,Provisions E324,05-Jun-2019,000008610590449,TESCO STORES 2916,5411,Catering costs - provisions,15.90,0.00,15.90
Children and Young Peoples Services,Head of Childrens Social Care,085332,Middlestone Moor CU,Supplies and Services,324117,Provisions E324,05-Jun-2019,000008610590465,TESCO STORES 2916,5411,Catering costs - provisions,31.53,0.00,31.53
Resources BK0010,Finance & Transactional Services,065180,Collections,Supplies and Services,338045,Services,05-Jun-2019,000008610590485,WWW.GOV.UK,8999,Legal expenses 338045,10.00,0.00,10.00
Regeneration and Local Services,Environmental Services,010367,C&G - South Grounds Maintenance,Supplies and Services,304403,Equipment and Materials,05-Jun-2019,000008610590507,MAXWELLS DIY,5231,Other consumables,2.98,0.50,2.48
Regeneration and Local Services,Development and Housing,030544,Rural Employability - Client Engagement,Supplies and Services,312011,Newspapers books and periodicals E312,05-Jun-2019,000008610590545,Amazon.co.uk M62D53FV4,5969,Books-school library,27.19,0.00,27.19
Regeneration and Local Services,Corporate Property and Land,021242,Catering - County Hall,Premises,145009,Cleaning and Domestic Supplies,05-Jun-2019,000008610590573,ALLIANCE DISPOSABLES L,2842,Other cleaning and domestic costs,475.38,79.23,396.15
Regeneration and Local Services,Corporate Property and Land,021242,Catering - County Hall,Premises,145009,Cleaning and Domestic Supplies,05-Jun-2019,000008610590573 - 1,ALLIANCE DISPOSABLES L,2842,Other cleaning and domestic costs,0.03,,0.03
Regeneration and Local Services,Corporate Property and Land,021242,Catering - County Hall,Supplies and Services,324117,Provisions E324,05-Jun-2019,000008610590583,JR HOLLAND FOODSERVICE,5499,Catering costs - provisions,13.80,0.00,13.80
Regeneration and Local Services,Corporate Property and Land,021242,Catering - County Hall,Supplies and Services,324117,Provisions E324,05-Jun-2019,000008610590587,JR HOLLAND FOODSERVICE,5499,Catering costs - provisions,148.42,0.00,148.42
Regeneration and Local Services,Development and Housing,030544,Rural Employability - Client Engagement,Supplies and Services,324117,Provisions E324,05-Jun-2019,000008610590631,COUNTY HALL CANTEEN,9399,Catering costs - provisions,2.85,0.00,2.85
Regeneration and Local Services,Culture Sport and Tourism,054812,Gala Theatre - Catering etc,Premises,145009,Cleaning and Domestic Supplies,05-Jun-2019,000008610590641,ALLIANCE DISPOSABLES L,2842,Other cleaning and domestic costs,85.70,14.28,71.42
Regeneration and Local Services,Culture Sport and Tourism,054812,Gala Theatre - Catering etc,Supplies and Services,324117,Provisions E324,05-Jun-2019,000008610590647,JR HOLLAND FOODSERVICE,5499,Catering costs - provisions,77.44,0.00,77.44
Regeneration and Local Services,Corporate Property and Land,021242,Catering - County Hall,Supplies and Services,324117,Provisions E324,05-Jun-2019,000008610590669,SAINSBURYS LOC4634,5411,Catering costs - provisions,8.60,0.00,8.60
Children and Young Peoples Services,Head of Childrens Social Care,085333,Coxhoe Satelite Home,Supplies and Services,324117,Provisions E324,05-Jun-2019,000008610590697,ASDA SUPERSTORE 4987,5411,Catering costs - provisions,14.25,0.00,14.25
Children and Young Peoples Services,Head of Education and Skills,071732,Dean Bank Childcare,Supplies and Services,324117,Provisions E324,05-Jun-2019,000008610590817,CO-OP GROUP 310027,5411,Catering costs - provisions,4.40,0.00,4.40
Regeneration and Local Services,Environmental Services,010301,C&G - North Grounds Maintenance,Supplies and Services,304221,Equipment and Materials,05-Jun-2019,000008610590885,AZTEC CHEMICALS LTD,5169,Direct materials,454.50,75.75,378.75
Regeneration and Local Services,Environmental Services,010301,C&G - North Grounds Maintenance,Supplies and Services,304221,Equipment and Materials,05-Jun-2019,000008610590891,AZTEC CHEMICALS LTD,5169,Direct materials,468.65,78.11,390.54
Regeneration and Local Services,Development and Housing,030771,Durham Advance Flexible Fund,Supplies and Services,324117,Provisions E324,05-Jun-2019,000008610590897,STARBUCKS,5814,Catering costs - provisions,5.55,0.93,4.62
Children and Young Peoples Services,Head of Early Help Inclusion & Vulnerable Children.,085955,Auckland,Supplies and Services,328041,Clothing uniforms and laundry E328,05-Jun-2019,000008610590921,Amazon.co.uk M673J8O34,5969,Clothing uniforms and laundry,16.00,2.67,13.33
Children and Young Peoples Services,Head of Early Help Inclusion & Vulnerable Children.,085952,Secure Education,Employees,040149,Recruitment Instruction and Training,05-Jun-2019,000008610590927,TWINKL LTD,8699,Training-all costs,67.44,11.24,56.20
Children and Young Peoples Services,Head of Early Help Inclusion & Vulnerable Children.,085956,Lumley,Supplies and Services,304403,Equipment and Materials,05-Jun-2019,000008610590933,AMZNMktplace,5999,Other consumables,7.92,0.00,7.92
Children and Young Peoples Services,Head of Early Help Inclusion & Vulnerable Children.,085962,Aycliffe Secure - Durham,Supplies and Services,324117,Provisions E324,05-Jun-2019,000008610590939,TESCO STORES 6329,5411,Catering costs - provisions,103.81,0.00,103.81
Children and Young Peoples Services,Head of Early Help Inclusion & Vulnerable Children.,085965,Barnard,Supplies and Services,304649,Equipment and Materials,05-Jun-2019,000008610590945,Amazon.co.uk M67OQ4F14,5969,Toys,24.99,4.17,20.82
Regeneration and Local Services,Culture Sport and Tourism,054813,Gala Theatre - Technical,Supplies and Services,304403,Equipment and Materials,05-Jun-2019,000008610590949,ADD TO EVENT LTD,5734,Other consumables,76.80,0.00,76.80
Regeneration and Local Services,Culture Sport and Tourism,054813,Gala Theatre - Technical,Supplies and Services,304403,Equipment and Materials,05-Jun-2019,000008610590953,AMZNMktplace,5999,Other consumables,37.16,0.00,37.16
Transformation and Partnerships,Business Support,052986,CYPS - Locality and Operational Support,Supplies and Services,384999,Miscellaneous Expenses,05-Jun-2019,000008610590963,ROSEBUD CERAMICS,5945,Other expenses,205.00,0.00,205.00
Regeneration and Local Services,Environmental Services,010367,C&G - South Grounds Maintenance,Supplies and Services,384999,Miscellaneous Expenses,05-Jun-2019,000008610590969,GUSTHARTS.COM,5046,Other expenses,286.28,47.71,238.57
Regeneration and Local Services,Environmental Services,011060,C&G - Hardwick Park Catering,Supplies and Services,324117,Provisions E324,05-Jun-2019,000008610590989,JR HOLLAND FOODSERVICE,5499,Catering costs - provisions,38.63,0.00,38.63
Regeneration and Local Services,Culture Sport and Tourism,054815,Gala Theatre Stage School,Supplies and Services,312011,Newspapers books and periodicals E312,05-Jun-2019,000008610591021,Amazon.co.uk M62T34ON4,5969,Books-school library,7.90,0.00,7.90
Regeneration and Local Services,Culture Sport and Tourism,054815,Gala Theatre Stage School,Supplies and Services,312011,Newspapers books and periodicals E312,05-Jun-2019,000008610591025,Amazon.co.uk M64AN8FL4,5969,Books-school library,51.35,0.00,51.35
Regeneration and Local Services,Environmental Services,010919,C&G - Countryside Site Management,Supplies and Services,304259,Equipment and Materials,05-Jun-2019,000008610591033,WILKO DURHAM 426,5722,Equipment-purchase and rental,15.00,0.00,15.00
Regeneration and Local Services,Corporate Property and Land,021234,Catering - Locomotion,Supplies and Services,324117,Provisions E324,05-Jun-2019,000008610591053,JR HOLLAND FOODSERVICE,5499,Catering costs - provisions,27.57,0.00,27.57
Regeneration and Local Services,Corporate Property and Land,010525,Catering - Green Lane,Supplies and Services,324117,Provisions E324,05-Jun-2019,000008610591089,JR HOLLAND FOODSERVICE,5499,Catering costs - provisions,4.00,0.00,4.00
Children and Young Peoples Services,Head of Childrens Social Care,085551,Short Break Services-Park Hse Sher,Supplies and Services,324117,Provisions E324,05-Jun-2019,000008610591127,ALDI 59 774,5411,Catering costs - provisions,4.62,0.77,3.85
Children and Young Peoples Services,Head of Childrens Social Care,085551,Short Break Services-Park Hse Sher,Supplies and Services,324117,Provisions E324,05-Jun-2019,000008610591127 - 1,ALDI 59 774,5411,Catering costs - provisions,5.85,,5.85
Children and Young Peoples Services,Head of Early Help Inclusion & Vulnerable Children.,071443,Stanley One Point Hub,Supplies and Services,332047,Printing Stationery and Gen Off Exps,05-Jun-2019,000008610591163,WWW.PHOTOPAPERDIRE,5943,Stationery,32.78,0.00,32.78
Regeneration and Local Services,Development and Housing,031500,Housing Solutions - Core Team,Supplies and Services,384999,Miscellaneous Expenses,05-Jun-2019,000008610591233,WWW.DURHAM.GOV.UK,9399,Other expenses,11.00,0.00,11.00
Regeneration and Local Services,Development and Housing,031500,Housing Solutions - Core Team,Supplies and Services,384999,Miscellaneous Expenses,05-Jun-2019,000008610591239,WWW.DURHAM.GOV.UK,9399,Other expenses,11.00,0.00,11.00
Children and Young Peoples Services,Head of Childrens Social Care,085352,Tow Law CU,Supplies and Services,324117,Provisions E324,05-Jun-2019,000008610591261,ASDA SUPERSTORE 4987,5411,Catering costs - provisions,125.43,0.00,125.43
Adult and Health Services,Head of Adults,055643,Hawthorn House LD Respite Unit,Supplies and Services,324117,Provisions E324,05-Jun-2019,000008610591299,JR HOLLAND FOODSERVICE,5499,Catering costs - provisions,11.60,0.00,11.60
Children and Young Peoples Services,Head of Early Help Inclusion & Vulnerable Children.,071445,Chester le Street One Point Hub,Supplies and Services,304403,Equipment and Materials,05-Jun-2019,000008610591349,AMZNMktplace,5999,Other consumables,51.90,0.00,51.90
Regeneration and Local Services,Development and Housing,030771,Durham Advance Flexible Fund,Supplies and Services,348037,Subsistence E348,05-Jun-2019,000008610591355,COSTA COFFEE,5814,Subsistence,3.80,0.63,3.17
Children and Young Peoples Services,Head of Early Help Inclusion & Vulnerable Children.,085957,Secure Management,Supplies and Services,312011,Newspapers books and periodicals E312,05-Jun-2019,000008610591363,Amazon.co.uk M66Q39OF4,5969,Books-school library,26.89,4.48,22.41
Children and Young Peoples Services,Head of Early Help Inclusion & Vulnerable Children.,085957,Secure Management,Supplies and Services,304403,Equipment and Materials,05-Jun-2019,000008610591369,AMZNMktplace,5999,Other consumables,7.99,0.00,7.99
Children and Young Peoples Services,Head of Early Help Inclusion & Vulnerable Children.,085957,Secure Management,Supplies and Services,304221,Equipment and Materials,05-Jun-2019,000008610591375,SCREWFIX DIRECT,5200,Direct materials,111.42,18.57,92.85
Regeneration and Local Services,Environmental Services,026591,C&G - Hardwick Park,Supplies and Services,332047,Printing Stationery and Gen Off Exps,05-Jun-2019,000008610591397,WWW.TTS-GROUPS.CO.UK,5943,Stationery,143.64,23.94,119.70
Regeneration and Local Services,Corporate Property and Land,021324,Catering - Meadowfield,Premises,145009,Cleaning and Domestic Supplies,05-Jun-2019,000008610591411,ALLIANCE DISPOSABLES L,2842,Other cleaning and domestic costs,38.84,6.47,32.37
Regeneration and Local Services,Culture Sport and Tourism,011263,Louisa Centre 011263,Supplies and Services,312011,Newspapers books and periodicals E312,05-Jun-2019,000008610591511,MAIN BROTHERS DIY,5251,Books-school library,17.50,0.00,17.50
Regeneration and Local Services,Culture Sport and Tourism,011263,Louisa Centre 011263,Supplies and Services,304259,Equipment and Materials,05-Jun-2019,000008610591517,PRICE BUSTERS,5722,Equipment-purchase and rental,28.92,0.00,28.92
Regeneration and Local Services,Environmental Services,031200,North Pennines Core,Supplies and Services,304403,Equipment and Materials,05-Jun-2019,000008610591549,WWW.WEATHERWRITER.COM,5999,Other consumables,81.48,13.58,67.90
Regeneration and Local Services,Environmental Services,031200,North Pennines Core,Supplies and Services,324117,Provisions E324,05-Jun-2019,000008610591555,SCOTMID CO-OP STANHOPE,5411,Catering costs - provisions,3.94,0.00,3.94
Transformation and Partnerships,Business Support,069010,Administration 069010,Supplies and Services,312011,Newspapers books and periodicals E312,05-Jun-2019,000008610591659,TEESDALE MERCURY LTD,5942,Books-school library,130.40,0.00,130.40
Regeneration and Local Services,Corporate Property and Land,021235,Catering - Wharton Park,Supplies and Services,324117,Provisions E324,05-Jun-2019,000008610591667,JR HOLLAND FOODSERVICE,5499,Catering costs - provisions,16.07,0.00,16.07
Regeneration and Local Services,Culture Sport and Tourism,011265,Empire Theatre (Operations),Supplies and Services,304221,Equipment and Materials,05-Jun-2019,000008610591747,COMPUTER CENTRE,7622,Direct materials,29.00,0.00,29.00
Regeneration and Local Services,Corporate Property and Land,030691,Catering - Durham Dales Centre,Supplies and Services,324117,Provisions E324,05-Jun-2019,000008610591791,COTTAGE DELIGHT LTD,5499,Catering costs - provisions,191.81,31.97,159.84
Regeneration and Local Services,Corporate Property and Land,021242,Catering - County Hall,Supplies and Services,324117,Provisions E324,05-Jun-2019,000008616073819,BATLEYS PERTH,5300,Catering costs - provisions,-25.76,-3.38,-22.38
Regeneration and Local Services,Culture Sport and Tourism,054815,Gala Theatre Stage School,Supplies and Services,304403,Equipment and Materials,05-Jun-2019,000008616074199,AMZNMKTPLACE AMAZON.CO,5999,Other consumables,14.99,0.00,14.99
Transformation and Partnerships,Business Support,065461,Business Support 065461,Employees,040149,Recruitment Instruction and Training,06-Jun-2019,000008616073625,SAMSUNG UK,7629,Training-all costs,169.00,28.17,140.83
Transformation and Partnerships,Business Support,065461,Business Support 065461,Supplies and Services,352001,Conference Expenses,06-Jun-2019,000008616073629,PAYPAL PARKTHATBIK,7392,Conferencesseminars fees etc,218.32,0.00,218.32
Regeneration and Local Services,Development and Housing,030771,Durham Advance Flexible Fund,Employees,040029,Recruitment Instruction and Training,06-Jun-2019,000008616073649,ARRIVA NORTH EAST,4131,Interview expenses,7.50,0.00,7.50
Regeneration and Local Services,Development and Housing,030771,Durham Advance Flexible Fund,Employees,040029,Recruitment Instruction and Training,06-Jun-2019,000008616073653,ARRIVA NORTH EAST,4131,Interview expenses,7.50,0.00,7.50
Adult and Health Services,Head of Adults,055302,Durham Pathways,Supplies and Services,324117,Provisions E324,06-Jun-2019,000008616073695,SAINSBURYS SACAT 0776,5411,Catering costs - provisions,3.00,0.00,3.00
Children and Young Peoples Services,Head of Childrens Social Care,085621,Families First Aycliffe,Supplies and Services,338045,Services,06-Jun-2019,000008616073705,DARLINGTON BC INTERNET,9399,Legal expenses 338045,11.00,0.00,11.00
Children and Young Peoples Services,Head of Childrens Social Care,085332,Middlestone Moor CU,Supplies and Services,312011,Newspapers books and periodicals E312,06-Jun-2019,000008616073709,Amazon.co.uk M66LA74D4,5969,Books-school library,12.25,0.00,12.25
Children and Young Peoples Services,Head of Childrens Social Care,085332,Middlestone Moor CU,Supplies and Services,312011,Newspapers books and periodicals E312,06-Jun-2019,000008616073713,HOME BARGAINS SPENNYMO,5251,Books-school library,21.26,0.00,21.26
Children and Young Peoples Services,Head of Childrens Social Care,085332,Middlestone Moor CU,Supplies and Services,324117,Provisions E324,06-Jun-2019,000008616073717,ASDA SUPERSTORE 4987,5411,Catering costs - provisions,79.85,0.00,79.85
Children and Young Peoples Services,Head of Childrens Social Care,085352,Tow Law CU,Supplies and Services,304221,Equipment and Materials,06-Jun-2019,000008616073793,B & Q 1120,5211,Direct materials,29.24,0.00,29.24
Children and Young Peoples Services,Head of Childrens Social Care,085352,Tow Law CU,Supplies and Services,304259,Equipment and Materials,06-Jun-2019,000008616073795,WILKO RETAIL LIMIT,5722,Equipment-purchase and rental,32.75,0.00,32.75
Regeneration and Local Services,Development and Housing,030544,Rural Employability - Client Engagement,Transport,235057,Public Transport,06-Jun-2019,000008616073805,GO NORTH EAST LIMITED,4131,Staff travelling,31.20,0.00,31.20
Regeneration and Local Services,Corporate Property and Land,021242,Catering - County Hall,Premises,145009,Cleaning and Domestic Supplies,06-Jun-2019,000008616073809,ALLIANCE DISPOSABLES L,2842,Other cleaning and domestic costs,86.54,14.42,72.12
Regeneration and Local Services,Corporate Property and Land,021242,Catering - County Hall,Supplies and Services,324117,Provisions E324,06-Jun-2019,000008616073813,JR HOLLAND FOODSERVICE,5499,Catering costs - provisions,194.85,0.00,194.85
Regeneration and Local Services,Corporate Property and Land,021242,Catering - County Hall,Supplies and Services,324117,Provisions E324,06-Jun-2019,000008616073815,JR HOLLAND FOODSERVICE,5499,Catering costs - provisions,13.80,0.00,13.80
Children and Young Peoples Services,Head of Childrens Social Care,085362,LAC & Permanence Team 2,Supplies and Services,384999,Miscellaneous Expenses,06-Jun-2019,000008616073871,HM PASSPORT OFFICE,9399,Other expenses,49.00,0.00,49.00
Children and Young Peoples Services,Head of Childrens Social Care,085361,LAC & Permanence Team 1,Supplies and Services,384999,Miscellaneous Expenses,06-Jun-2019,000008616073877,HM PASSPORT OFFICE,9399,Other expenses,49.00,0.00,49.00
Children and Young Peoples Services,Head of Childrens Social Care,085362,LAC & Permanence Team 2,Supplies and Services,384999,Miscellaneous Expenses,06-Jun-2019,000008616073883,HM PASSPORT OFFICE,9399,Other expenses,49.00,0.00,49.00
Children and Young Peoples Services,Head of Childrens Social Care,085334,West Rainton Satelite Home,Supplies and Services,324117,Provisions E324,06-Jun-2019,000008616073905,TESCO STORES 2371,5411,Catering costs - provisions,43.81,0.00,43.81
Children and Young Peoples Services,Head of Childrens Social Care,085334,West Rainton Satelite Home,Supplies and Services,324117,Provisions E324,06-Jun-2019,000008616073913,BAINBRIDGE FRESH PRODU,5411,Catering costs - provisions,6.00,0.00,6.00
Transformation and Partnerships,Business Support,052986,CYPS - Locality and Operational Support,Supplies and Services,324117,Provisions E324,06-Jun-2019,000008616073929,TESCO STORES 2916,5411,Catering costs - provisions,47.42,0.00,47.42
Transformation and Partnerships,Business Support,052986,CYPS - Locality and Operational Support,Supplies and Services,328041,Clothing uniforms and laundry E328,06-Jun-2019,000008616073935,W BOYES & CO LTD NEWTO,5310,Clothing uniforms and laundry,19.20,0.00,19.20
Children and Young Peoples Services,Head of Education and Skills,071732,Dean Bank Childcare,Supplies and Services,324117,Provisions E324,06-Jun-2019,000008616073953,TESCO STORES 2916,5411,Catering costs - provisions,23.96,0.00,23.96
Regeneration and Local Services,Culture Sport and Tourism,054813,Gala Theatre - Technical,Supplies and Services,304403,Equipment and Materials,06-Jun-2019,000008616073957,WWW.SIMPLYLAMPS.CO.UK,5065,Other consumables,75.52,0.00,75.52
Regeneration and Local Services,Culture Sport and Tourism,011223,Operations Locality 1,Supplies and Services,328041,Clothing uniforms and laundry E328,06-Jun-2019,000008616073965,WWW.ARGOS.CO.UK,5310,Clothing uniforms and laundry,253.94,42.32,211.62
Regeneration and Local Services,Development and Housing,030771,Durham Advance Flexible Fund,Transport,235057,Public Transport,06-Jun-2019,000008616074053,ARRIVA NORTH EAST,4131,Staff travelling,26.20,0.00,26.20
Regeneration and Local Services,Development and Housing,030771,Durham Advance Flexible Fund,Supplies and Services,324117,Provisions E324,06-Jun-2019,000008616074061,COSTA COFFEE 43038640,5814,Catering costs - provisions,4.35,0.73,3.62
Regeneration and Local Services,Development and Housing,030771,Durham Advance Flexible Fund,Transport,235057,Public Transport,06-Jun-2019,000008616074067,WALKERGATE CAR PAR,7523,Staff travelling,5.00,0.83,4.17
Regeneration and Local Services,Business Durham CL0850,030674,Business Services General,Supplies and Services,304403,Equipment and Materials,06-Jun-2019,000008616074075,iZ Tin and Tile,5999,Other consumables,230.00,38.33,191.67
Children and Young Peoples Services,Head of Early Help Inclusion & Vulnerable Children.,085957,Secure Management,Supplies and Services,304649,Equipment and Materials,06-Jun-2019,000008616074097,AMZNMktplace,5999,Toys,14.74,0.00,14.74
Children and Young Peoples Services,Head of Early Help Inclusion & Vulnerable Children.,085957,Secure Management,Supplies and Services,304999,Equipment and Materials,06-Jun-2019,000008616074101,DECO TROPHIES & ENGRAV,2791,Misc equipment tools and materials,115.00,0.00,115.00
Children and Young Peoples Services,Head of Early Help Inclusion & Vulnerable Children.,085955,Auckland,Supplies and Services,324117,Provisions E324,06-Jun-2019,000008616074107,TESCO STORES 6329,5411,Catering costs - provisions,137.62,0.00,137.62
Children and Young Peoples Services,Head of Early Help Inclusion & Vulnerable Children.,085957,Secure Management,Supplies and Services,304999,Equipment and Materials,06-Jun-2019,000008616074115,TESCO DELIVERY SAVER2,5968,Misc equipment tools and materials,6.99,0.00,6.99
Children and Young Peoples Services,Head of Early Help Inclusion & Vulnerable Children.,085952,Secure Education,Supplies and Services,324117,Provisions E324,06-Jun-2019,000008616074121,WWW.ARGOS.CO.UK,5310,Catering costs - provisions,93.92,0.00,93.92
Children and Young Peoples Services,Head of Early Help Inclusion & Vulnerable Children.,085952,Secure Education,Supplies and Services,324117,Provisions E324,06-Jun-2019,000008616074127,LAKELAND.LIMITED,5399,Catering costs - provisions,79.99,13.33,66.66
Regeneration and Local Services,Culture Sport and Tourism,054813,Gala Theatre - Technical,Supplies and Services,324117,Provisions E324,06-Jun-2019,000008616074137,TESCO STORES 2971,5411,Catering costs - provisions,113.34,0.00,113.34
Regeneration and Local Services,Culture Sport and Tourism,054813,Gala Theatre - Technical,Supplies and Services,304221,Equipment and Materials,06-Jun-2019,000008616074143,B & Q 1221,5211,Direct materials,-5.00,0.00,-5.00
Regeneration and Local Services,Environmental Services,031200,North Pennines Core,Supplies and Services,348037,Subsistence E348,06-Jun-2019,000008616074149,CAFE VISITORS CENTRE,5813,Subsistence,22.48,0.00,22.48
Regeneration and Local Services,Environmental Services,010919,C&G - Countryside Site Management,Third Party Payments 4THIRD,430100,Rendered by Private Contractors,06-Jun-2019,000008616074155,S&A BUILDERS MERCHANTS,5039,Payments to sub-contractors,57.60,9.60,48.00
Regeneration and Local Services,Environmental Services,011060,C&G - Hardwick Park Catering,Supplies and Services,324117,Provisions E324,06-Jun-2019,000008616074161,JR HOLLAND FOODSERVICE,5499,Catering costs - provisions,0.93,0.00,0.93
Regeneration and Local Services,Culture Sport and Tourism,054815,Gala Theatre Stage School,Supplies and Services,304403,Equipment and Materials,06-Jun-2019,000008616074205,AMZNMKTPLACE AMAZON.CO,5999,Other consumables,52.98,0.00,52.98
Regeneration and Local Services,Culture Sport and Tourism,054815,Gala Theatre Stage School,Supplies and Services,304403,Equipment and Materials,06-Jun-2019,000008616074209,AMZNMKTPLACE AMAZON.CO,5999,Other consumables,13.98,0.00,13.98
Regeneration and Local Services,Culture Sport and Tourism,054815,Gala Theatre Stage School,Supplies and Services,304403,Equipment and Materials,06-Jun-2019,000008616074215,M W L S LIMITED,5947,Other consumables,44.85,0.00,44.85
Regeneration and Local Services,Culture Sport and Tourism,054815,Gala Theatre Stage School,Employees,040149,Recruitment Instruction and Training,06-Jun-2019,000008616074221,SPOTLIGHT,8699,Training-all costs,252.00,0.00,252.00
Regeneration and Local Services,Culture Sport and Tourism,054815,Gala Theatre Stage School,Supplies and Services,304403,Equipment and Materials,06-Jun-2019,000008616074227,AMZNMKTPLACE AMAZON.CO,5999,Other consumables,4.90,0.00,4.90
Regeneration and Local Services,Corporate Property and Land,010525,Catering - Green Lane,Supplies and Services,324117,Provisions E324,06-Jun-2019,000008616074253,JR HOLLAND FOODSERVICE,5499,Catering costs - provisions,95.22,0.00,95.22
Children and Young Peoples Services,Head of Childrens Social Care,085551,Short Break Services-Park Hse Sher,Supplies and Services,324117,Provisions E324,06-Jun-2019,000008616074273,ASDA STORES,5411,Catering costs - provisions,23.17,0.00,23.17
Resources BK0010,Corporate Finance & Commercial Services,069800,Corporate Procurement 069800,Employees,040149,Recruitment Instruction and Training,06-Jun-2019,000008616074281,SKILLS FOR CARE,8398,Training-all costs,144.00,24.00,120.00
Children and Young Peoples Services,Head of Early Help Inclusion & Vulnerable Children.,071443,Stanley One Point Hub,Supplies and Services,324117,Provisions E324,06-Jun-2019,000008616074301,BESTWAY WHOLESALE,5451,Catering costs - provisions,38.41,0.00,38.41
Children and Young Peoples Services,Head of Early Help Inclusion & Vulnerable Children.,071443,Stanley One Point Hub,Supplies and Services,324117,Provisions E324,06-Jun-2019,000008616074307,BESTWAY WHOLESALE,5451,Catering costs - provisions,61.81,0.00,61.81
Children and Young Peoples Services,Head of Early Help Inclusion & Vulnerable Children.,071443,Stanley One Point Hub,Supplies and Services,384999,Miscellaneous Expenses,06-Jun-2019,000008616074311,ROSEBUD CERAMICS,5945,Other expenses,285.00,0.00,285.00
Children and Young Peoples Services,Head of Early Help Inclusion & Vulnerable Children.,071443,Stanley One Point Hub,Supplies and Services,324117,Provisions E324,06-Jun-2019,000008616074317,ASDA GROCERIES ONLINE,5411,Catering costs - provisions,37.10,0.00,37.10
Regeneration and Local Services,Environmental Services,010367,C&G - South Grounds Maintenance,Supplies and Services,304221,Equipment and Materials,06-Jun-2019,000008616074353,VALE ENGINEERING (YORK,7394,Direct materials,40.56,6.76,33.80
Regeneration and Local Services,Development and Housing,031500,Housing Solutions - Core Team,Supplies and Services,384999,Miscellaneous Expenses,06-Jun-2019,000008616074375,WWW.GOV.UK,8999,Other expenses,10.00,0.00,10.00
Regeneration and Local Services,Development and Housing,030771,Durham Advance Flexible Fund,Supplies and Services,304259,Equipment and Materials,06-Jun-2019,000008616074381,GEN REGISTER OFFICE,9399,Equipment-purchase and rental,14.00,0.00,14.00
Children and Young Peoples Services,Head of Childrens Social Care,085333,Coxhoe Satelite Home,Supplies and Services,324117,Provisions E324,06-Jun-2019,000008616074387,ASDA SUPERSTORE 4987,5411,Catering costs - provisions,137.40,0.00,137.40
Regeneration and Local Services,Development and Housing,031500,Housing Solutions - Core Team,Supplies and Services,352001,Conference Expenses,06-Jun-2019,000008616074393,HOTEL 52,7011,Conferencesseminars fees etc,153.50,25.58,127.92
Regeneration and Local Services,Development and Housing,031500,Housing Solutions - Core Team,Supplies and Services,352001,Conference Expenses,06-Jun-2019,000008616074399,HOTEL 52,7011,Conferencesseminars fees etc,400.00,66.67,333.33
Children and Young Peoples Services,Head of Childrens Social Care,085342,9 Cedar Drive Aycliffe,Supplies and Services,328041,Clothing uniforms and laundry E328,06-Jun-2019,000008616074407,ARGOS RETAIL GROUP,5310,Clothing uniforms and laundry,30.00,0.00,30.00
Children and Young Peoples Services,Head of Childrens Social Care,085342,9 Cedar Drive Aycliffe,Supplies and Services,328041,Clothing uniforms and laundry E328,06-Jun-2019,000008616074415,ARGOS RETAIL GROUP,5310,Clothing uniforms and laundry,59.99,0.00,59.99
Regeneration and Local Services,Corporate Property and Land,030691,Catering - Durham Dales Centre,Supplies and Services,324117,Provisions E324,06-Jun-2019,000008616074457,JR HOLLAND FOODSERVICE,5499,Catering costs - provisions,134.14,0.00,134.14
Regeneration and Local Services,Corporate Property and Land,030691,Catering - Durham Dales Centre,Supplies and Services,324117,Provisions E324,06-Jun-2019,000008616074465,JR HOLLAND FOODSERVICE,5499,Catering costs - provisions,-80.67,0.00,-80.67
Regeneration and Local Services,Development and Housing,031576,B& B - Temp Accom,Supplies and Services,364320,Grants to Voluntary Organisations,06-Jun-2019,000008616074509,HOTEL 52,7011,Accommodation assistance,117.00,19.50,97.50
Adult and Health Services,Head of Adults,055643,Hawthorn House LD Respite Unit,Supplies and Services,324117,Provisions E324,06-Jun-2019,000008616074525,JR HOLLAND FOODSERVICE,5499,Catering costs - provisions,10.55,0.00,10.55
Adult and Health Services,Head of Adults,055643,Hawthorn House LD Respite Unit,Supplies and Services,324117,Provisions E324,06-Jun-2019,000008616074531,JR HOLLAND FOODSERVICE,5499,Catering costs - provisions,6.74,0.00,6.74
Regeneration and Local Services,Culture Sport and Tourism,054604,Seven Hills Spennymoor,Supplies and Services,304259,Equipment and Materials,06-Jun-2019,000008616074539,DVLA DIGITAL TACHO,9399,Equipment-purchase and rental,19.00,0.00,19.00
Regeneration and Local Services,Environmental Services,010301,C&G - North Grounds Maintenance,Third Party Payments 4THIRD,430100,Rendered by Private Contractors,06-Jun-2019,000008616074567,JOHN WARREN (ANIMAL BY,7399,Payments to sub-contractors,12.00,0.00,12.00
Transformation and Partnerships,Business Support,052986,CYPS - Locality and Operational Support,Supplies and Services,352001,Conference Expenses,06-Jun-2019,000008616074577,HAYAT HOTEL,7011,Conferencesseminars fees etc,574.00,95.67,478.33
Children and Young Peoples Services,Head of Early Help Inclusion & Vulnerable Children.,074000,TTF-Attachment and Results,Transfer Payments,525033,Other,06-Jun-2019,000008616074605,J DODDS CARPETS LTD,5713,Grants to individuals,84.78,14.13,70.65
Children and Young Peoples Services,Head of Early Help Inclusion & Vulnerable Children.,074000,TTF-Attachment and Results,Transfer Payments,525033,Other,06-Jun-2019,000008616074605 - 1,J DODDS CARPETS LTD,5713,Grants to individuals,65.22,,65.22
Children and Young Peoples Services,Head of Early Help Inclusion & Vulnerable Children.,071445,Chester le Street One Point Hub,Supplies and Services,304403,Equipment and Materials,06-Jun-2019,000008616074611,AMZNMktplace,5999,Other consumables,99.80,0.00,99.80
Children and Young Peoples Services,Head of Early Help Inclusion & Vulnerable Children.,071445,Chester le Street One Point Hub,Supplies and Services,312011,Newspapers books and periodicals E312,06-Jun-2019,000008616074613,Amazon.co.uk M66J39FM4,5969,Books-school library,34.98,0.00,34.98
Resources BK0010,Digital and Customer Services,065335,School Services - Implementations,Supplies and Services,304403,Equipment and Materials,06-Jun-2019,000008616074619,AMZNMktplace,5999,Other consumables,22.93,3.82,19.11
Children and Young Peoples Services,Head of Childrens Social Care,085342,9 Cedar Drive Aycliffe,Employees,040149,Recruitment Instruction and Training,06-Jun-2019,000008616074627,PARENTPAY E-COM R,8220,Training-all costs,28.00,0.00,28.00
Transformation and Partnerships,Business Support,052986,CYPS - Locality and Operational Support,Supplies and Services,304259,Equipment and Materials,06-Jun-2019,000008616074651,HM PASSPORT,9399,Equipment-purchase and rental,127.00,0.00,127.00
Transformation and Partnerships,Business Support,052986,CYPS - Locality and Operational Support,Supplies and Services,308011,Furniture,06-Jun-2019,000008616074655,WWW.IKEA.COM,5712,Furniture repair and replacement,144.00,0.00,144.00
Transformation and Partnerships,Business Support,052986,CYPS - Locality and Operational Support,Third Party Payments 4THIRD,430100,Rendered by Private Contractors,06-Jun-2019,000008616074661,WWW.PAY.UKCRS.COM,7399,Payments to sub-contractors,40.00,0.00,40.00
Regeneration and Local Services,Culture Sport and Tourism,011204,Festival and Events,Supplies and Services,324117,Provisions E324,06-Jun-2019,000008616074687,SAINSBURYS 0776,5411,Catering costs - provisions,31.30,0.00,31.30
Regeneration and Local Services,Corporate Property and Land,021324,Catering - Meadowfield,Supplies and Services,324117,Provisions E324,06-Jun-2019,000008616074693,JR HOLLAND FOODSERVICE,5499,Catering costs - provisions,10.35,0.00,10.35
Regeneration and Local Services,Corporate Property and Land,021324,Catering - Meadowfield,Supplies and Services,324117,Provisions E324,06-Jun-2019,000008616074699,JR HOLLAND FOODSERVICE,5499,Catering costs - provisions,46.83,0.00,46.83
Resources BK0010,Corporate Finance & Commercial Services,069800,Corporate Procurement 069800,Employees,040149,Recruitment Instruction and Training,06-Jun-2019,000008616074777,WWW.CIPS.ORG,8699,Training-all costs,42.95,0.00,42.95
Regeneration and Local Services,Development and Housing,030554,International Relations 030554,Supplies and Services,384926,Miscellaneous Expenses,06-Jun-2019,000008616074783,WWW.FARNE-ISLANDS.COM,4411,International visits,470.00,0.00,470.00
Adult and Health Services,Head of Adults,055807,Newton Aycliffe Pathways,Supplies and Services,324117,Provisions E324,06-Jun-2019,000008616074899,ASDA SUPERSTORE 4987,5411,Catering costs - provisions,8.83,0.00,8.83
Adult and Health Services,Head of Adults,055807,Newton Aycliffe Pathways,Supplies and Services,312011,Newspapers books and periodicals E312,06-Jun-2019,000008616074905,AMZ Amazon.co.uk,5969,Books-school library,-22.18,0.00,-22.18
Adult and Health Services,Head of Adults,055306,Spennymoor Pathways,Supplies and Services,324117,Provisions E324,06-Jun-2019,000008616074913,ASDA SUPERSTORE 4987,5411,Catering costs - provisions,1.09,0.00,1.09
Regeneration and Local Services,Corporate Property and Land,021242,Catering - County Hall,Supplies and Services,324117,Provisions E324,06-Jun-2019,000008622932783,BATLEYS PERTH,5300,Catering costs - provisions,586.08,97.68,488.40
Regeneration and Local Services,Corporate Property and Land,021242,Catering - County Hall,Supplies and Services,324117,Provisions E324,06-Jun-2019,000008622932783 - 1,BATLEYS PERTH,5300,Catering costs - provisions,149.66,,149.66
Regeneration and Local Services,Corporate Property and Land,021242,Catering - County Hall,Supplies and Services,324117,Provisions E324,06-Jun-2019,000008622932803,BATLEYS PERTH,5300,Catering costs - provisions,-2.73,0.00,-2.73
Regeneration and Local Services,Culture Sport and Tourism,054812,Gala Theatre - Catering etc,Supplies and Services,324117,Provisions E324,06-Jun-2019,000008622932833,BATLEYS PERTH,5300,Catering costs - provisions,-3.00,0.00,-3.00
Regeneration and Local Services,Culture Sport and Tourism,054813,Gala Theatre - Technical,Supplies and Services,304403,Equipment and Materials,06-Jun-2019,000008622933013,AMZNMKTPLACE AMAZON.CO,5999,Other consumables,5.69,0.00,5.69
Regeneration and Local Services,Culture Sport and Tourism,054813,Gala Theatre - Technical,Supplies and Services,304403,Equipment and Materials,06-Jun-2019,000008622933015,AMZNMKTPLACE AMAZON.CO,5999,Other consumables,5.85,0.00,5.85
Regeneration and Local Services,Environmental Services,011060,C&G - Hardwick Park Catering,Supplies and Services,324117,Provisions E324,06-Jun-2019,000008622933165,BATLEYS PERTH,5300,Catering costs - provisions,127.20,21.20,106.00
Regeneration and Local Services,Environmental Services,011060,C&G - Hardwick Park Catering,Supplies and Services,324117,Provisions E324,06-Jun-2019,000008622933165 - 1,BATLEYS PERTH,5300,Catering costs - provisions,123.40,,123.40
Regeneration and Local Services,Environmental Services,011060,C&G - Hardwick Park Catering,Supplies and Services,324117,Provisions E324,06-Jun-2019,000008622933171,BATLEYS PERTH,5300,Catering costs - provisions,9.90,1.65,8.25
Regeneration and Local Services,Environmental Services,011060,C&G - Hardwick Park Catering,Supplies and Services,324117,Provisions E324,06-Jun-2019,000008622933171 - 1,BATLEYS PERTH,5300,Catering costs - provisions,13.55,,13.55
Regeneration and Local Services,Culture Sport and Tourism,054815,Gala Theatre Stage School,Supplies and Services,304403,Equipment and Materials,06-Jun-2019,000008622933209,AMZNMKTPLACE AMAZON.CO,5999,Other consumables,42.35,0.00,42.35
Regeneration and Local Services,Corporate Property and Land,010525,Catering - Green Lane,Supplies and Services,324117,Provisions E324,06-Jun-2019,000008622933313,BATLEYS PERTH,5300,Catering costs - provisions,-3.75,0.00,-3.75
Regeneration and Local Services,Development and Housing,031576,B& B - Temp Accom,Supplies and Services,364320,Grants to Voluntary Organisations,06-Jun-2019,000008622933563,PREMIER INN,3811,Accommodation assistance,306.00,51.00,255.00
Regeneration and Local Services,Development and Housing,031576,B& B - Temp Accom,Supplies and Services,364320,Grants to Voluntary Organisations,06-Jun-2019,000008622933567,PREMIER INN,3811,Accommodation assistance,306.00,51.00,255.00
Regeneration and Local Services,Development and Housing,030554,International Relations 030554,Supplies and Services,328041,Clothing uniforms and laundry E328,06-Jun-2019,000008622933855,PASTERIX C CONTA,7996,Clothing uniforms and laundry,760.78,0.00,760.78
Regeneration and Local Services,Development and Housing,030554,International Relations 030554,Supplies and Services,328041,Clothing uniforms and laundry E328,06-Jun-2019,000008622933859,PASTERIX C CONTA,7996,Clothing uniforms and laundry,845.31,0.00,845.31
Regeneration and Local Services,Corporate Property and Land,021235,Catering - Wharton Park,Supplies and Services,324117,Provisions E324,06-Jun-2019,000008622933925,BATLEYS PERTH,5300,Catering costs - provisions,189.96,31.66,158.30
Regeneration and Local Services,Corporate Property and Land,021235,Catering - Wharton Park,Supplies and Services,324117,Provisions E324,06-Jun-2019,000008622933925 - 1,BATLEYS PERTH,5300,Catering costs - provisions,14.64,,14.64
Regeneration and Local Services,Corporate Property and Land,021235,Catering - Wharton Park,Supplies and Services,324117,Provisions E324,06-Jun-2019,000008622933937,BATLEYS PERTH,5300,Catering costs - provisions,-0.36,0.00,-0.36
Children and Young Peoples Services,Head of Education and Skills,070264,EDC Premises,Supplies and Services,324117,Provisions E324,07-Jun-2019,000006404728672,BATLEYS PERTH,5300,Catering costs - provisions,76.84,0.00,76.84
Regeneration and Local Services,Corporate Property and Land,010525,Catering - Green Lane,Supplies and Services,324117,Provisions E324,07-Jun-2019,000006404729626,BATLEYS PERTH,5300,Catering costs - provisions,206.70,34.45,172.25
Regeneration and Local Services,Corporate Property and Land,010525,Catering - Green Lane,Supplies and Services,324117,Provisions E324,07-Jun-2019,000006404729626 - 1,BATLEYS PERTH,5300,Catering costs - provisions,33.59,,33.59
Adult and Health Services,Head of Adults,055643,Hawthorn House LD Respite Unit,Supplies and Services,324117,Provisions E324,07-Jun-2019,000006404729896,BATLEYS PERTH,5300,Catering costs - provisions,27.72,4.62,23.10
Adult and Health Services,Head of Adults,055643,Hawthorn House LD Respite Unit,Supplies and Services,324117,Provisions E324,07-Jun-2019,000006404729896 - 1,BATLEYS PERTH,5300,Catering costs - provisions,36.78,,36.78
Regeneration and Local Services,Culture Sport and Tourism,054815,Gala Theatre Stage School,Supplies and Services,304403,Equipment and Materials,07-Jun-2019,000008616074231,AMZNMktplace,5999,Other consumables,27.80,0.00,27.80
Transformation and Partnerships,Business Support,065461,Business Support 065461,Employees,080025,Agency Staff,07-Jun-2019,000008622932593,WWW.REED.CO.UK,7361,Agency supply staff,38.00,6.33,31.67
Regeneration and Local Services,Development and Housing,030771,Durham Advance Flexible Fund,Employees,040029,Recruitment Instruction and Training,07-Jun-2019,000008622932605,ARRIVA NORTH EAST,4131,Interview expenses,-7.50,0.00,-7.50
Children and Young Peoples Services,Head of Education and Skills,070264,EDC Premises,Supplies and Services,324117,Provisions E324,07-Jun-2019,000008622932607,HOPWELLS LTD,5811,Catering costs - provisions,414.82,0.00,414.82
Regeneration and Local Services,Environmental Services,031239,North Pennines - Carbon Connect,Supplies and Services,352001,Conference Expenses,07-Jun-2019,000008622932621,B.com 1776910-8SEP7 Ra,7011,Conferencesseminars fees etc,70.99,11.83,59.16
Children and Young Peoples Services,Head of Childrens Social Care,085332,Middlestone Moor CU,Supplies and Services,324117,Provisions E324,07-Jun-2019,000008622932647,SAINSBURYS 2199,5411,Catering costs - provisions,6.10,0.00,6.10
Children and Young Peoples Services,Head of Childrens Social Care,085332,Middlestone Moor CU,Supplies and Services,328041,Clothing uniforms and laundry E328,07-Jun-2019,000008622932651,ARGOS RETAIL GROUP,5310,Clothing uniforms and laundry,249.00,0.00,249.00
Transformation and Partnerships,Business Support,052986,CYPS - Locality and Operational Support,Supplies and Services,324117,Provisions E324,07-Jun-2019,000008622932739,ASDA STORES,5411,Catering costs - provisions,27.17,0.00,27.17
Regeneration and Local Services,Corporate Property and Land,021242,Catering - County Hall,Supplies and Services,324117,Provisions E324,07-Jun-2019,000008622932787,HOPWELLS LTD,5811,Catering costs - provisions,223.65,0.00,223.65
Regeneration and Local Services,Corporate Property and Land,021242,Catering - County Hall,Supplies and Services,324117,Provisions E324,07-Jun-2019,000008622932791,HOPWELLS LTD,5811,Catering costs - provisions,65.46,10.91,54.55
Regeneration and Local Services,Corporate Property and Land,021242,Catering - County Hall,Supplies and Services,324117,Provisions E324,07-Jun-2019,000008622932791 - 1,HOPWELLS LTD,5811,Catering costs - provisions,369.76,,369.76
Regeneration and Local Services,Corporate Property and Land,021242,Catering - County Hall,Supplies and Services,324117,Provisions E324,07-Jun-2019,000008622932795,JR HOLLAND FOODSERVICE,5499,Catering costs - provisions,107.77,0.00,107.77
Regeneration and Local Services,Corporate Property and Land,021242,Catering - County Hall,Supplies and Services,324117,Provisions E324,07-Jun-2019,000008622932799,JR HOLLAND FOODSERVICE,5499,Catering costs - provisions,6.94,0.00,6.94
Regeneration and Local Services,Culture Sport and Tourism,054812,Gala Theatre - Catering etc,Supplies and Services,324117,Provisions E324,07-Jun-2019,000008622932821,HOPWELLS LTD,5811,Catering costs - provisions,45.17,0.00,45.17
Regeneration and Local Services,Culture Sport and Tourism,054812,Gala Theatre - Catering etc,Premises,145009,Cleaning and Domestic Supplies,07-Jun-2019,000008622932825,ALLIANCE DISPOSABLES L,2842,Other cleaning and domestic costs,265.63,44.28,221.35
Children and Young Peoples Services,Head of Childrens Social Care,085362,LAC & Permanence Team 2,Supplies and Services,384999,Miscellaneous Expenses,07-Jun-2019,000008622932887,WWW.DURHAM.GOV.UK,9399,Other expenses,11.00,0.00,11.00
Transformation and Partnerships,Business Support,052986,CYPS - Locality and Operational Support,Supplies and Services,324117,Provisions E324,07-Jun-2019,000008622932969,ASDA STORES,5411,Catering costs - provisions,31.00,0.00,31.00
Regeneration and Local Services,Development and Housing,030771,Durham Advance Flexible Fund,Transport,235057,Public Transport,07-Jun-2019,000008622933095,PRINCE BISHOP SHOPPING,7523,Staff travelling,2.10,0.35,1.75
Regeneration and Local Services,Development and Housing,030771,Durham Advance Flexible Fund,Supplies and Services,328041,Clothing uniforms and laundry E328,07-Jun-2019,000008622933097,NEXT RETAIL LTD,5651,Clothing uniforms and laundry,95.05,0.00,95.05
Regeneration and Local Services,Development and Housing,030771,Durham Advance Flexible Fund,Supplies and Services,324117,Provisions E324,07-Jun-2019,000008622933105,Seventeen,5812,Catering costs - provisions,4.50,0.75,3.75
Children and Young Peoples Services,Head of Early Help Inclusion & Vulnerable Children.,085965,Barnard,Supplies and Services,324117,Provisions E324,07-Jun-2019,000008622933117,TESCO STORES 6329,5411,Catering costs - provisions,83.53,0.00,83.53
Regeneration and Local Services,Environmental Services,010301,C&G - North Grounds Maintenance,Third Party Payments 4THIRD,430100,Rendered by Private Contractors,07-Jun-2019,000008622933161,JOHN WARREN (ANIMAL BY,7399,Payments to sub-contractors,12.00,0.00,12.00
Regeneration and Local Services,Environmental Services,011060,C&G - Hardwick Park Catering,Supplies and Services,324117,Provisions E324,07-Jun-2019,000008622933177,HOPWELLS LTD,5811,Catering costs - provisions,168.18,28.03,140.15
Regeneration and Local Services,Environmental Services,011060,C&G - Hardwick Park Catering,Supplies and Services,324117,Provisions E324,07-Jun-2019,000008622933177 - 1,HOPWELLS LTD,5811,Catering costs - provisions,94.69,,94.69
Regeneration and Local Services,Environmental Services,011060,C&G - Hardwick Park Catering,Premises,145009,Cleaning and Domestic Supplies,07-Jun-2019,000008622933185,ALLIANCE DISPOSABLES L,2842,Other cleaning and domestic costs,146.72,24.45,122.27
Regeneration and Local Services,Environmental Services,011060,C&G - Hardwick Park Catering,Supplies and Services,324117,Provisions E324,07-Jun-2019,000008622933191,JR HOLLAND FOODSERVICE,5499,Catering costs - provisions,31.76,0.00,31.76
Regeneration and Local Services,Environmental Services,011060,C&G - Hardwick Park Catering,Supplies and Services,324117,Provisions E324,07-Jun-2019,000008622933197,JR HOLLAND FOODSERVICE,5499,Catering costs - provisions,-9.20,0.00,-9.20
Regeneration and Local Services,Culture Sport and Tourism,054815,Gala Theatre Stage School,Supplies and Services,304403,Equipment and Materials,07-Jun-2019,000008622933201,AMZNMktplace,5999,Other consumables,100.99,0.00,100.99
Regeneration and Local Services,Culture Sport and Tourism,054815,Gala Theatre Stage School,Supplies and Services,312011,Newspapers books and periodicals E312,07-Jun-2019,000008622933203,Amazon.co.uk M61GJ64N4,5969,Books-school library,49.89,0.00,49.89
Regeneration and Local Services,Culture Sport and Tourism,054815,Gala Theatre Stage School,Supplies and Services,304403,Equipment and Materials,07-Jun-2019,000008622933205,AMZNMktplace,5999,Other consumables,93.60,0.00,93.60
Regeneration and Local Services,Development and Housing,030755,Durham Employment & Skills - Other Training,Employees,040149,Recruitment Instruction and Training,07-Jun-2019,000008622933229,NCS VUE CITB HS&E REV,8299,Training-all costs,483.00,0.00,483.00
Regeneration and Local Services,Development and Housing,030755,Durham Employment & Skills - Other Training,Employees,040149,Recruitment Instruction and Training,07-Jun-2019,000008622933231,WWW.CSKILLS.ORG,8249,Training-all costs,36.00,6.00,30.00
Regeneration and Local Services,Development and Housing,030755,Durham Employment & Skills - Other Training,Employees,040149,Recruitment Instruction and Training,07-Jun-2019,000008622933235,WWW.CSKILLS.ORG,8249,Training-all costs,36.00,6.00,30.00
Regeneration and Local Services,Corporate Property and Land,021234,Catering - Locomotion,Supplies and Services,324117,Provisions E324,07-Jun-2019,000008622933243,HOPWELLS LTD,5811,Catering costs - provisions,86.34,14.39,71.95
Regeneration and Local Services,Corporate Property and Land,021234,Catering - Locomotion,Supplies and Services,324117,Provisions E324,07-Jun-2019,000008622933243 - 1,HOPWELLS LTD,5811,Catering costs - provisions,341.83,,341.83
Regeneration and Local Services,Corporate Property and Land,021234,Catering - Locomotion,Premises,145009,Cleaning and Domestic Supplies,07-Jun-2019,000008622933249,ALLIANCE DISPOSABLES L,2842,Other cleaning and domestic costs,108.78,18.13,90.65
Regeneration and Local Services,Corporate Property and Land,021234,Catering - Locomotion,Supplies and Services,324117,Provisions E324,07-Jun-2019,000008622933255,JR HOLLAND FOODSERVICE,5499,Catering costs - provisions,60.60,0.00,60.60
Regeneration and Local Services,Development and Housing,031576,B& B - Temp Accom,Supplies and Services,364320,Grants to Voluntary Organisations,07-Jun-2019,000008622933291,HOTEL 52,7011,Accommodation assistance,444.85,0.00,444.85
Regeneration and Local Services,Development and Housing,031576,B& B - Temp Accom,Supplies and Services,364320,Grants to Voluntary Organisations,07-Jun-2019,000008622933293,HOTEL 52,7011,Accommodation assistance,62.55,0.00,62.55
Regeneration and Local Services,Corporate Property and Land,010525,Catering - Green Lane,Supplies and Services,324117,Provisions E324,07-Jun-2019,000008622933299,HOPWELLS LTD,5811,Catering costs - provisions,51.07,0.00,51.07
Regeneration and Local Services,Corporate Property and Land,010525,Catering - Green Lane,Supplies and Services,324117,Provisions E324,07-Jun-2019,000008622933305,HOPWELLS LTD,5811,Catering costs - provisions,67.06,0.00,67.06
Regeneration and Local Services,Corporate Property and Land,021234,Catering - Locomotion,Supplies and Services,324117,Provisions E324,07-Jun-2019,000008622933355,ASDA SUPERSTORE 4987,5411,Catering costs - provisions,6.60,0.00,6.60
Children and Young Peoples Services,Head of Childrens Social Care,085331,New Lea Childrens Home,Supplies and Services,384999,Miscellaneous Expenses,07-Jun-2019,000008622933359,SP STATIONERY ISLAND,5970,Other expenses,10.99,1.83,9.16
Children and Young Peoples Services,Head of Childrens Social Care,085331,New Lea Childrens Home,Supplies and Services,308011,Furniture,07-Jun-2019,000008622933363,WWW.SHOP.JUST-BLINDS.C,5714,Furniture repair and replacement,32.67,5.45,27.22
Children and Young Peoples Services,Head of Childrens Social Care,085331,New Lea Childrens Home,Supplies and Services,324117,Provisions E324,07-Jun-2019,000008622933367,ASDA SUPERSTORE,5411,Catering costs - provisions,64.05,0.00,64.05
Regeneration and Local Services,Development and Housing,031500,Housing Solutions - Core Team,Supplies and Services,352001,Conference Expenses,07-Jun-2019,000008622933503,HAYAT HOTEL,7011,Conferencesseminars fees etc,150.00,0.00,150.00
Children and Young Peoples Services,Head of Childrens Social Care,085342,9 Cedar Drive Aycliffe,Supplies and Services,332047,Printing Stationery and Gen Off Exps,07-Jun-2019,000008622933511,Vue Cinemas,7832,Stationery,19.94,0.00,19.94
Children and Young Peoples Services,Head of Childrens Social Care,085352,Tow Law CU,Supplies and Services,324117,Provisions E324,07-Jun-2019,000008622933533,TESCO STORES 6329,5411,Catering costs - provisions,37.16,0.00,37.16
Regeneration and Local Services,Corporate Property and Land,030691,Catering - Durham Dales Centre,Supplies and Services,324117,Provisions E324,07-Jun-2019,000008622933537,HOPWELLS LTD,5811,Catering costs - provisions,289.31,0.00,289.31
Regeneration and Local Services,Corporate Property and Land,030691,Catering - Durham Dales Centre,Supplies and Services,324117,Provisions E324,07-Jun-2019,000008622933543,JR HOLLAND FOODSERVICE,5499,Catering costs - provisions,76.67,0.00,76.67
Transformation and Partnerships,Business Support,052986,CYPS - Locality and Operational Support,Supplies and Services,352001,Conference Expenses,07-Jun-2019,000008622933633,HAYAT HOTEL,7011,Conferencesseminars fees etc,574.00,95.67,478.33
Transformation and Partnerships,Business Support,052986,CYPS - Locality and Operational Support,Supplies and Services,352001,Conference Expenses,07-Jun-2019,000008622933637,HAYAT HOTEL,7011,Conferencesseminars fees etc,574.00,95.67,478.33
Transformation and Partnerships,Business Support,052986,CYPS - Locality and Operational Support,Supplies and Services,304403,Equipment and Materials,07-Jun-2019,000008622933659,WWW.LAMAZETOYS.CO.UK,5947,Other consumables,96.86,0.00,96.86
Children and Young Peoples Services,Head of Early Help Inclusion & Vulnerable Children.,085957,Secure Management,Supplies and Services,304403,Equipment and Materials,07-Jun-2019,000008622933673,AMZNMKTPLACE AMAZON.CO,5999,Other consumables,25.39,4.23,21.16
Children and Young Peoples Services,Head of Early Help Inclusion & Vulnerable Children.,085957,Secure Management,Supplies and Services,304221,Equipment and Materials,07-Jun-2019,000008622933677,Richards Hose Limited,5085,Direct materials,43.20,7.20,36.00
Regeneration and Local Services,Culture Sport and Tourism,054235,Bishop Auckland Town Hall Cafe,Supplies and Services,324117,Provisions E324,07-Jun-2019,000008622933723,JR HOLLAND FOODSERVICE,5499,Catering costs - provisions,17.59,0.00,17.59
Regeneration and Local Services,Culture Sport and Tourism,011204,Festival and Events,Supplies and Services,348037,Subsistence E348,07-Jun-2019,000008622933729,THE LAMP ROOM,5812,Subsistence,14.05,0.00,14.05
Regeneration and Local Services,Corporate Property and Land,021324,Catering - Meadowfield,Supplies and Services,324117,Provisions E324,07-Jun-2019,000008622933763,HOPWELLS LTD,5811,Catering costs - provisions,58.07,0.00,58.07
Adult and Health Services,Head of Adults,055807,Newton Aycliffe Pathways,Transport,235005,Public Transport,07-Jun-2019,000008622933919,ARRIVA PASSENGER S,7538,Contract tickets,90.00,0.00,90.00
Regeneration and Local Services,Corporate Property and Land,021235,Catering - Wharton Park,Supplies and Services,324117,Provisions E324,07-Jun-2019,000008622933931,HOPWELLS LTD,5811,Catering costs - provisions,225.72,37.62,188.10
Regeneration and Local Services,Corporate Property and Land,021235,Catering - Wharton Park,Supplies and Services,324117,Provisions E324,07-Jun-2019,000008622933931 - 1,HOPWELLS LTD,5811,Catering costs - provisions,51.39,,51.39
Regeneration and Local Services,Business Durham CL0850,030694,Plexus 2,Supplies and Services,304403,Equipment and Materials,07-Jun-2019,000008622933999,AMZNMKTPLACE AMAZON.CO,5999,Other consumables,22.18,0.00,22.18
Regeneration and Local Services,Business Durham CL0850,030694,Plexus 2,Supplies and Services,324117,Provisions E324,07-Jun-2019,000008622934003,SAINSBURYS SACAT (2303,5411,Catering costs - provisions,2.50,0.00,2.50
Regeneration and Local Services,Corporate Property and Land,030691,Catering - Durham Dales Centre,Supplies and Services,304403,Equipment and Materials,07-Jun-2019,000008622934009,AMZNMKTPLACE AMAZON.CO,5999,Other consumables,18.75,0.00,18.75
Children and Young Peoples Services,Head of Education and Skills,071801,Selby Cottage Childcare Centre,Supplies and Services,304999,Equipment and Materials,08-Jun-2019,000008622932583,Amazon Prime M63HE7434,5968,Misc equipment tools and materials,7.99,0.00,7.99
Transformation and Partnerships,Business Support,065461,Business Support 065461,Supplies and Services,304259,Equipment and Materials,08-Jun-2019,000008622932589,APPLE.COM/UK,5732,Equipment-purchase and rental,225.00,0.00,225.00
Children and Young Peoples Services,Head of Childrens Social Care,085342,9 Cedar Drive Aycliffe,Supplies and Services,304999,Equipment and Materials,08-Jun-2019,000008622932985,SAVERS HEALTH & BEAUTY,5912,Misc equipment tools and materials,13.98,0.00,13.98
Regeneration and Local Services,Culture Sport and Tourism,054813,Gala Theatre - Technical,Supplies and Services,328041,Clothing uniforms and laundry E328,08-Jun-2019,000008622933021,ARGOS LTD,5310,Clothing uniforms and laundry,199.00,0.00,199.00
Children and Young Peoples Services,Head of Early Help Inclusion & Vulnerable Children.,085956,Lumley,Supplies and Services,324117,Provisions E324,08-Jun-2019,000008622933123,TESCO STORES 6329,5411,Catering costs - provisions,88.25,0.00,88.25
Regeneration and Local Services,Culture Sport and Tourism,054813,Gala Theatre - Technical,Supplies and Services,304221,Equipment and Materials,08-Jun-2019,000008622933143,B&Q DIRECT,5200,Direct materials,210.00,0.00,210.00
Regeneration and Local Services,Culture Sport and Tourism,054815,Gala Theatre Stage School,Supplies and Services,328041,Clothing uniforms and laundry E328,08-Jun-2019,000008622933211,WWW.SHEIN.COM,5621,Clothing uniforms and laundry,109.87,0.00,109.87
Regeneration and Local Services,Culture Sport and Tourism,054815,Gala Theatre Stage School,Supplies and Services,312011,Newspapers books and periodicals E312,08-Jun-2019,000008622933215,Amazon.co.uk M68AL3LA4,5969,Books-school library,10.74,0.00,10.74
Regeneration and Local Services,Culture Sport and Tourism,054815,Gala Theatre Stage School,Supplies and Services,328041,Clothing uniforms and laundry E328,08-Jun-2019,000008622933219,SILKFRED,5691,Clothing uniforms and laundry,143.00,0.00,143.00
Regeneration and Local Services,Culture Sport and Tourism,054815,Gala Theatre Stage School,Supplies and Services,304403,Equipment and Materials,08-Jun-2019,000008622933225,SP DLSB,5734,Other consumables,37.98,0.00,37.98
Children and Young Peoples Services,Head of Childrens Social Care,085551,Short Break Services-Park Hse Sher,Supplies and Services,324117,Provisions E324,08-Jun-2019,000008622933323,ASDA STORES,5411,Catering costs - provisions,18.29,0.00,18.29
Children and Young Peoples Services,Head of Childrens Social Care,085333,Coxhoe Satelite Home,Supplies and Services,328041,Clothing uniforms and laundry E328,08-Jun-2019,000008622933467,POUNDLAND LTD,5310,Clothing uniforms and laundry,14.00,0.00,14.00
Children and Young Peoples Services,Head of Childrens Social Care,085333,Coxhoe Satelite Home,Supplies and Services,328041,Clothing uniforms and laundry E328,08-Jun-2019,000008622933471,H & M,5691,Clothing uniforms and laundry,8.09,1.35,6.74
Children and Young Peoples Services,Head of Childrens Social Care,085333,Coxhoe Satelite Home,Supplies and Services,348037,Subsistence E348,08-Jun-2019,000008622933475,SUBWAY,5814,Subsistence,9.59,1.60,7.99
Children and Young Peoples Services,Head of Childrens Social Care,085333,Coxhoe Satelite Home,Supplies and Services,328041,Clothing uniforms and laundry E328,08-Jun-2019,000008622933479,NEW LOOK 2036,5621,Clothing uniforms and laundry,7.44,0.00,7.44
Transformation and Partnerships,Business Support,065461,Business Support 065461,Supplies and Services,304403,Equipment and Materials,09-Jun-2019,000008622932595,AMZNMKTPLACE AMAZON.CO,5999,Other consumables,19.98,3.33,16.65
Transformation and Partnerships,Business Support,065461,Business Support 065461,Supplies and Services,304403,Equipment and Materials,09-Jun-2019,000008622932595 - 1,AMZNMKTPLACE AMAZON.CO,5999,Other consumables,10.00,,10.00
Regeneration and Local Services,Business Durham CL0850,030699,Business Growth and Innovation General,Supplies and Services,304999,Equipment and Materials,09-Jun-2019,000008622932657,MAILCHIMP MONTHLY,5968,Misc equipment tools and materials,63.04,0.00,63.04
Regeneration and Local Services,Business Durham CL0850,030699,Business Growth and Innovation General,Supplies and Services,342033,Computers and Communications,09-Jun-2019,000008622932659,SLICKPLAN.COM,7372,Computer hardware,7.87,0.00,7.87
Children and Young Peoples Services,Head of Childrens Social Care,085333,Coxhoe Satelite Home,Supplies and Services,324117,Provisions E324,09-Jun-2019,000008622932907,CO-OP GROUP 310016,5411,Catering costs - provisions,8.48,0.00,8.48
Children and Young Peoples Services,Head of Childrens Social Care,085333,Coxhoe Satelite Home,Supplies and Services,348037,Subsistence E348,09-Jun-2019,000008622932911,MCDONALDS,5812,Subsistence,4.20,0.70,3.50
Children and Young Peoples Services,Head of Childrens Social Care,085333,Coxhoe Satelite Home,Supplies and Services,348037,Subsistence E348,09-Jun-2019,000008622932911 - 1,MCDONALDS,5812,Subsistence,1.59,,1.59
Children and Young Peoples Services,Head of Childrens Social Care,085342,9 Cedar Drive Aycliffe,Supplies and Services,348037,Subsistence E348,09-Jun-2019,000008622932989,MCDONALDS,5812,Subsistence,27.48,4.58,22.90
Children and Young Peoples Services,Head of Childrens Social Care,085342,9 Cedar Drive Aycliffe,Supplies and Services,348037,Subsistence E348,09-Jun-2019,000008622932989 - 1,MCDONALDS,5812,Subsistence,0.03,,0.03
Regeneration and Local Services,Culture Sport and Tourism,054813,Gala Theatre - Technical,Supplies and Services,304403,Equipment and Materials,09-Jun-2019,000008622933025,AMZNMKTPLACE AMAZON.CO,5999,Other consumables,23.99,0.00,23.99
Regeneration and Local Services,Culture Sport and Tourism,054813,Gala Theatre - Technical,Supplies and Services,304221,Equipment and Materials,09-Jun-2019,000008622933031,SCREWFIX DIRECT,5200,Direct materials,37.58,0.00,37.58
Regeneration and Local Services,Culture Sport and Tourism,054813,Gala Theatre - Technical,Supplies and Services,304221,Equipment and Materials,09-Jun-2019,000008622933035,SCREWFIX DIRECT,5200,Direct materials,185.67,0.00,185.67
Regeneration and Local Services,Culture Sport and Tourism,054813,Gala Theatre - Technical,Supplies and Services,304221,Equipment and Materials,09-Jun-2019,000008622933041,SCREWFIX DIRECT,5200,Direct materials,20.04,0.00,20.04
Children and Young Peoples Services,Head of Early Help Inclusion & Vulnerable Children.,085954,Walworth,Supplies and Services,324117,Provisions E324,09-Jun-2019,000008622933125,TESCO STORES 6329,5411,Catering costs - provisions,65.74,0.00,65.74
Regeneration and Local Services,Culture Sport and Tourism,054813,Gala Theatre - Technical,Supplies and Services,304403,Equipment and Materials,09-Jun-2019,000008622933141,AMZNMktplace,5999,Other consumables,4.29,0.00,4.29
Regeneration and Local Services,Culture Sport and Tourism,054813,Gala Theatre - Technical,Supplies and Services,304403,Equipment and Materials,09-Jun-2019,000008622933147,AMZNMktplace,5999,Other consumables,17.98,0.00,17.98
Resources BK0010,Resources Management CK0450,069000,Resources Management 069000,Supplies and Services,324117,Provisions E324,09-Jun-2019,000008622933495,SAINSBURYS (2303),5411,Catering costs - provisions,25.30,0.00,25.30
Children and Young Peoples Services,Head of Childrens Social Care,085342,9 Cedar Drive Aycliffe,Supplies and Services,332047,Printing Stationery and Gen Off Exps,09-Jun-2019,000008622933515,Vue Cinemas,7832,Stationery,22.66,0.00,22.66
Children and Young Peoples Services,Head of Early Help Inclusion & Vulnerable Children.,085957,Secure Management,Supplies and Services,304403,Equipment and Materials,09-Jun-2019,000008622933681,AMZNMktplace,5999,Other consumables,24.78,0.00,24.78
Regeneration and Local Services,Culture Sport and Tourism,011204,Festival and Events,Supplies and Services,348037,Subsistence E348,09-Jun-2019,000008622933733,THE SHIPS BELL CAFE,5812,Subsistence,300.00,0.00,300.00
Regeneration and Local Services,Culture Sport and Tourism,011204,Festival and Events,Supplies and Services,348037,Subsistence E348,09-Jun-2019,000008622933735,THE SHIPS BELL CAFE,5812,Subsistence,12.60,0.00,12.60
Children and Young Peoples Services,Head of Childrens Social Care,085334,West Rainton Satelite Home,Supplies and Services,304259,Equipment and Materials,09-Jun-2019,000008622933963,DOLPHIN CENTRE,9399,Equipment-purchase and rental,6.30,0.00,6.30
Regeneration and Local Services,Culture Sport and Tourism,054812,Gala Theatre - Catering etc,Supplies and Services,324117,Provisions E324,10-Jun-2019,000006404729046,BATLEYS PERTH,5300,Catering costs - provisions,123.00,20.50,102.50
Regeneration and Local Services,Culture Sport and Tourism,054812,Gala Theatre - Catering etc,Supplies and Services,324117,Provisions E324,10-Jun-2019,000006404729046 - 1,BATLEYS PERTH,5300,Catering costs - provisions,103.27,,103.27
Regeneration and Local Services,Environmental Services,011060,C&G - Hardwick Park Catering,Supplies and Services,324117,Provisions E324,10-Jun-2019,000006404729528,BATLEYS PERTH,5300,Catering costs - provisions,153.00,25.50,127.50
Regeneration and Local Services,Environmental Services,011060,C&G - Hardwick Park Catering,Supplies and Services,324117,Provisions E324,10-Jun-2019,000006404729528 - 1,BATLEYS PERTH,5300,Catering costs - provisions,151.80,,151.80
Regeneration and Local Services,Corporate Property and Land,030691,Catering - Durham Dales Centre,Supplies and Services,324117,Provisions E324,10-Jun-2019,000006404729854,BATLEYS PERTH,5300,Catering costs - provisions,52.44,8.74,43.70
Regeneration and Local Services,Corporate Property and Land,030691,Catering - Durham Dales Centre,Supplies and Services,324117,Provisions E324,10-Jun-2019,000006404729854 - 1,BATLEYS PERTH,5300,Catering costs - provisions,105.44,,105.44
Regeneration and Local Services,Business Durham CL0850,030699,Business Growth and Innovation General,Supplies and Services,304999,Equipment and Materials,10-Jun-2019,000008622932663,MAILCHIMP MONTHLY,5968,Misc equipment tools and materials,1.73,0.00,1.73
Regeneration and Local Services,Business Durham CL0850,030699,Business Growth and Innovation General,Supplies and Services,342033,Computers and Communications,10-Jun-2019,000008622932665,SLICKPLAN.COM,7372,Computer hardware,0.22,0.00,0.22
Children and Young Peoples Services,Head of Early Help Inclusion & Vulnerable Children.,085957,Secure Management,Supplies and Services,304403,Equipment and Materials,10-Jun-2019,000008622933685,AMZNMktplace,5999,Other consumables,15.99,2.67,13.32
Regeneration and Local Services,Development and Housing,030554,International Relations 030554,Supplies and Services,384926,Miscellaneous Expenses,10-Jun-2019,000008622933863,PASTERIX C CONTA,7996,International visits,20.92,0.00,20.92
Regeneration and Local Services,Development and Housing,030554,International Relations 030554,Supplies and Services,384926,Miscellaneous Expenses,10-Jun-2019,000008622933865,PASTERIX C CONTA,7996,International visits,23.25,0.00,23.25
Children and Young Peoples Services,Head of Education and Skills,071801,Selby Cottage Childcare Centre,Supplies and Services,324117,Provisions E324,10-Jun-2019,000008630983281,ALDI 32 774,5411,Catering costs - provisions,67.60,0.00,67.60
Children and Young Peoples Services,Head of Education and Skills,071801,Selby Cottage Childcare Centre,Supplies and Services,324117,Provisions E324,10-Jun-2019,000008630983287,TESCO STORES 2278,5411,Catering costs - provisions,27.75,0.00,27.75
Adult and Health Services,Head of Adults,055302,Durham Pathways,Supplies and Services,338057,Services,10-Jun-2019,000008630983325,MEDISAVE,5047,Medical fees 338057,76.67,12.78,63.89
Regeneration and Local Services,Culture Sport and Tourism,011198,Culture & Sport Management 011198,Supplies and Services,384999,Miscellaneous Expenses,10-Jun-2019,000008630983329,XL DISPLAYS LTD,5099,Other expenses,713.40,118.90,594.50
Children and Young Peoples Services,Head of Childrens Social Care,085332,Middlestone Moor CU,Supplies and Services,324117,Provisions E324,10-Jun-2019,000008630983331,ALDI 74 774,5411,Catering costs - provisions,22.94,0.00,22.94
Children and Young Peoples Services,Head of Childrens Social Care,085352,Tow Law CU,Supplies and Services,348037,Subsistence E348,10-Jun-2019,000008630983353,MCDONALDS,5812,Subsistence,3.37,0.00,3.37
Regeneration and Local Services,Development and Housing,030544,Rural Employability - Client Engagement,Transport,235057,Public Transport,10-Jun-2019,000008630983359,GO NORTH EAST LIMITED,4131,Staff travelling,40.20,0.00,40.20
Regeneration and Local Services,Corporate Property and Land,021242,Catering - County Hall,Supplies and Services,324117,Provisions E324,10-Jun-2019,000008630983363,FREEMAN CATERING BUTCH,5422,Catering costs - provisions,256.16,0.00,256.16
Regeneration and Local Services,Corporate Property and Land,021242,Catering - County Hall,Supplies and Services,324117,Provisions E324,10-Jun-2019,000008630983367,JR HOLLAND FOODSERVICE,5499,Catering costs - provisions,63.36,0.00,63.36
Regeneration and Local Services,Corporate Property and Land,021242,Catering - County Hall,Supplies and Services,324117,Provisions E324,10-Jun-2019,000008630983371,JR HOLLAND FOODSERVICE,5499,Catering costs - provisions,15.50,0.00,15.50
Regeneration and Local Services,Corporate Property and Land,021242,Catering - County Hall,Supplies and Services,324117,Provisions E324,10-Jun-2019,000008630983377,WWW.ADELIEFOODS.CO.UK,5499,Catering costs - provisions,41.52,0.00,41.52
Regeneration and Local Services,Corporate Property and Land,021242,Catering - County Hall,Supplies and Services,324117,Provisions E324,10-Jun-2019,000008630983381,WWW.ADELIEFOODS.CO.UK,5499,Catering costs - provisions,150.08,0.00,150.08
Regeneration and Local Services,Corporate Property and Land,021242,Catering - County Hall,Supplies and Services,324117,Provisions E324,10-Jun-2019,000008630983385,WWW.ADELIEFOODS.CO.UK,5499,Catering costs - provisions,49.66,0.00,49.66
Regeneration and Local Services,Corporate Property and Land,021242,Catering - County Hall,Supplies and Services,324117,Provisions E324,10-Jun-2019,000008630983387,WWW.ADELIEFOODS.CO.UK,5499,Catering costs - provisions,139.01,0.00,139.01
Children and Young Peoples Services,Head of Childrens Social Care,085650,Pre Birth Team,Supplies and Services,338045,Services,10-Jun-2019,000008630983395,WWW.DURHAM.GOV.UK,9399,Legal expenses 338045,35.00,0.00,35.00
Regeneration and Local Services,Culture Sport and Tourism,054812,Gala Theatre - Catering etc,Supplies and Services,324117,Provisions E324,10-Jun-2019,000008630983407,JR HOLLAND FOODSERVICE,5499,Catering costs - provisions,31.23,0.00,31.23
Regeneration and Local Services,Development and Housing,030773,CLLD North,Supplies and Services,324117,Provisions E324,10-Jun-2019,000008630983441,ASDA SUPERSTORE 4987,5411,Catering costs - provisions,41.00,6.83,34.17
Children and Young Peoples Services,Head of Childrens Social Care,085334,West Rainton Satelite Home,Supplies and Services,324117,Provisions E324,10-Jun-2019,000008630983493,TESCO STORES 2371,5411,Catering costs - provisions,71.51,0.00,71.51
Children and Young Peoples Services,Head of Childrens Social Care,085334,West Rainton Satelite Home,Supplies and Services,312011,Newspapers books and periodicals E312,10-Jun-2019,000008630983495,HOME BARGAINS,5251,Books-school library,17.94,0.00,17.94
Children and Young Peoples Services,Head of Childrens Social Care,085334,West Rainton Satelite Home,Supplies and Services,312011,Newspapers books and periodicals E312,10-Jun-2019,000008630983499,HOME BARGAINS,5251,Books-school library,15.91,0.00,15.91
Transformation and Partnerships,Business Support,052986,CYPS - Locality and Operational Support,Supplies and Services,324117,Provisions E324,10-Jun-2019,000008630983505,ASDA STORES,5411,Catering costs - provisions,2.00,0.00,2.00
Children and Young Peoples Services,Head of Childrens Social Care,085342,9 Cedar Drive Aycliffe,Supplies and Services,304403,Equipment and Materials,10-Jun-2019,000008630983515,AMZNMktplace,5999,Other consumables,17.90,0.00,17.90
Children and Young Peoples Services,Head of Early Help Inclusion & Vulnerable Children.,085952,Secure Education,Supplies and Services,324117,Provisions E324,10-Jun-2019,000008630983561,TESCO STORES 6329,5411,Catering costs - provisions,152.20,0.00,152.20
Regeneration and Local Services,Environmental Services,011060,C&G - Hardwick Park Catering,Supplies and Services,324117,Provisions E324,10-Jun-2019,000008630983567,FREEMAN CATERING BUTCH,5422,Catering costs - provisions,34.63,0.00,34.63
Regeneration and Local Services,Environmental Services,011060,C&G - Hardwick Park Catering,Supplies and Services,324117,Provisions E324,10-Jun-2019,000008630983573,JR HOLLAND FOODSERVICE,5499,Catering costs - provisions,3.32,0.00,3.32
Regeneration and Local Services,Environmental Services,011060,C&G - Hardwick Park Catering,Supplies and Services,324117,Provisions E324,10-Jun-2019,000008630983577,JR HOLLAND FOODSERVICE,5499,Catering costs - provisions,47.87,0.00,47.87
Regeneration and Local Services,Environmental Services,011060,C&G - Hardwick Park Catering,Supplies and Services,324117,Provisions E324,10-Jun-2019,000008630983583,JR HOLLAND FOODSERVICE,5499,Catering costs - provisions,81.01,0.00,81.01
Regeneration and Local Services,Corporate Property and Land,021234,Catering - Locomotion,Supplies and Services,324117,Provisions E324,10-Jun-2019,000008630983591,FREEMAN CATERING BUTCH,5422,Catering costs - provisions,20.15,0.00,20.15
Regeneration and Local Services,Corporate Property and Land,021234,Catering - Locomotion,Supplies and Services,324117,Provisions E324,10-Jun-2019,000008630983597,FREEMAN CATERING BUTCH,5422,Catering costs - provisions,31.12,0.00,31.12
Regeneration and Local Services,Corporate Property and Land,021234,Catering - Locomotion,Supplies and Services,324117,Provisions E324,10-Jun-2019,000008630983603,FREEMAN CATERING BUTCH,5422,Catering costs - provisions,67.92,0.00,67.92
Regeneration and Local Services,Corporate Property and Land,021234,Catering - Locomotion,Supplies and Services,324117,Provisions E324,10-Jun-2019,000008630983607,FREEMAN CATERING BUTCH,5422,Catering costs - provisions,67.92,0.00,67.92
Regeneration and Local Services,Corporate Property and Land,021234,Catering - Locomotion,Supplies and Services,324117,Provisions E324,10-Jun-2019,000008630983611,WWW.ADELIEFOODS.CO.UK,5499,Catering costs - provisions,112.12,0.00,112.12
Regeneration and Local Services,Corporate Property and Land,021234,Catering - Locomotion,Supplies and Services,324117,Provisions E324,10-Jun-2019,000008630983617,WWW.ADELIEFOODS.CO.UK,5499,Catering costs - provisions,71.50,0.00,71.50
Regeneration and Local Services,Corporate Property and Land,021234,Catering - Locomotion,Supplies and Services,324117,Provisions E324,10-Jun-2019,000008630983621,WWW.ADELIEFOODS.CO.UK,5499,Catering costs - provisions,42.47,0.00,42.47
Regeneration and Local Services,Culture Sport and Tourism,010991,County-wide FISCH,Supplies and Services,324117,Provisions E324,10-Jun-2019,000008630983627,ASDA SUPERSTORE,5411,Catering costs - provisions,2.40,0.00,2.40
Regeneration and Local Services,Corporate Property and Land,010525,Catering - Green Lane,Supplies and Services,324117,Provisions E324,10-Jun-2019,000008630983645,FREEMAN CATERING BUTCH,5422,Catering costs - provisions,36.80,0.00,36.80
Regeneration and Local Services,Corporate Property and Land,010525,Catering - Green Lane,Supplies and Services,324117,Provisions E324,10-Jun-2019,000008630983649,JR HOLLAND FOODSERVICE,5499,Catering costs - provisions,6.63,0.00,6.63
Regeneration and Local Services,Corporate Property and Land,010525,Catering - Green Lane,Supplies and Services,324117,Provisions E324,10-Jun-2019,000008630983653,WWW.ADELIEFOODS.CO.UK,5499,Catering costs - provisions,96.00,0.00,96.00
Regeneration and Local Services,Corporate Property and Land,010525,Catering - Green Lane,Supplies and Services,324117,Provisions E324,10-Jun-2019,000008630983655,WWW.ADELIEFOODS.CO.UK,5499,Catering costs - provisions,41.52,0.00,41.52
Children and Young Peoples Services,Head of Childrens Social Care,085551,Short Break Services-Park Hse Sher,Supplies and Services,324117,Provisions E324,10-Jun-2019,000008630983675,ALDI 59 774,5411,Catering costs - provisions,4.50,0.75,3.75
Regeneration and Local Services,EnvironmentHealth & Consumer Protection,010809,Env HealthConsumer Protection Manag,Supplies and Services,304259,Equipment and Materials,10-Jun-2019,000008630983679,PAYPAL 3DZ,5732,Equipment-purchase and rental,15.00,0.00,15.00
Children and Young Peoples Services,Head of Early Help Inclusion & Vulnerable Children.,088108,Spennymoor & Shildon 0-19 Targeted Family Support,Supplies and Services,384999,Miscellaneous Expenses,10-Jun-2019,000008630983711,ASDA STORES,5411,Other expenses,4.00,0.00,4.00
Regeneration and Local Services,Environmental Services,010367,C&G - South Grounds Maintenance,Supplies and Services,324117,Provisions E324,10-Jun-2019,000008630983763,J M RAINE,5399,Catering costs - provisions,160.00,0.00,160.00
Regeneration and Local Services,Business Durham CL0850,030674,Business Services General,Supplies and Services,348037,Subsistence E348,10-Jun-2019,000008630983779,THE COUNTY RESTAURANT,5813,Subsistence,52.40,0.00,52.40
Regeneration and Local Services,Development and Housing,030771,Durham Advance Flexible Fund,Transport,235057,Public Transport,10-Jun-2019,000008630983785,WALKERGATE CAR PAR,7523,Staff travelling,1.80,0.00,1.80
Regeneration and Local Services,Development and Housing,031500,Housing Solutions - Core Team,Supplies and Services,352001,Conference Expenses,10-Jun-2019,000008630983801,HOTEL 52,7011,Conferencesseminars fees etc,134.95,22.49,112.46
Adult and Health Services,Head of Adults,055301,Stanley Pathways,Supplies and Services,324117,Provisions E324,10-Jun-2019,000008630983811,SAINSBURYS SACAT 0776,5411,Catering costs - provisions,1.45,0.00,1.45
Children and Young Peoples Services,Head of Childrens Social Care,085342,9 Cedar Drive Aycliffe,Supplies and Services,332047,Printing Stationery and Gen Off Exps,10-Jun-2019,000008630983817,RYMAN,5943,Stationery,34.34,5.72,28.62
Children and Young Peoples Services,Head of Childrens Social Care,085352,Tow Law CU,Supplies and Services,328041,Clothing uniforms and laundry E328,10-Jun-2019,000008630983831,POUNDLAND LTD 1554,5310,Clothing uniforms and laundry,4.00,0.00,4.00
Regeneration and Local Services,Corporate Property and Land,030691,Catering - Durham Dales Centre,Supplies and Services,324117,Provisions E324,10-Jun-2019,000008630983833,FREEMAN CATERING BUTCH,5422,Catering costs - provisions,71.36,0.00,71.36
Regeneration and Local Services,Corporate Property and Land,030691,Catering - Durham Dales Centre,Supplies and Services,324117,Provisions E324,10-Jun-2019,000008630983841,FREEMAN CATERING BUTCH,5422,Catering costs - provisions,25.70,0.00,25.70
Regeneration and Local Services,Corporate Property and Land,030691,Catering - Durham Dales Centre,Supplies and Services,324117,Provisions E324,10-Jun-2019,000008630983843,FREEMAN CATERING BUTCH,5422,Catering costs - provisions,134.06,0.00,134.06
Regeneration and Local Services,Corporate Property and Land,030691,Catering - Durham Dales Centre,Supplies and Services,324117,Provisions E324,10-Jun-2019,000008630983847,JR HOLLAND FOODSERVICE,5499,Catering costs - provisions,12.40,0.00,12.40
Regeneration and Local Services,Corporate Property and Land,030691,Catering - Durham Dales Centre,Supplies and Services,324117,Provisions E324,10-Jun-2019,000008630983849,JR HOLLAND FOODSERVICE,5499,Catering costs - provisions,149.14,0.00,149.14
Regeneration and Local Services,Corporate Property and Land,030691,Catering - Durham Dales Centre,Supplies and Services,324117,Provisions E324,10-Jun-2019,000008630983853,JR HOLLAND FOODSERVICE,5499,Catering costs - provisions,8.50,0.00,8.50
Adult and Health Services,Head of Adults,055643,Hawthorn House LD Respite Unit,Supplies and Services,324117,Provisions E324,10-Jun-2019,000008630983865,FREEMAN CATERING BUTCH,5422,Catering costs - provisions,20.41,0.00,20.41
Adult and Health Services,Head of Adults,055643,Hawthorn House LD Respite Unit,Supplies and Services,324117,Provisions E324,10-Jun-2019,000008630983869,JR HOLLAND FOODSERVICE,5499,Catering costs - provisions,20.28,0.00,20.28
Adult and Health Services,Head of Adults,055643,Hawthorn House LD Respite Unit,Supplies and Services,324117,Provisions E324,10-Jun-2019,000008630983871,JR HOLLAND FOODSERVICE,5499,Catering costs - provisions,15.21,0.00,15.21
Children and Young Peoples Services,Head of Early Help Inclusion & Vulnerable Children.,074000,TTF-Attachment and Results,Transfer Payments,525033,Other,10-Jun-2019,000008630983911,AMZNMktplace,5999,Grants to individuals,140.90,23.50,117.40
Children and Young Peoples Services,Head of Early Help Inclusion & Vulnerable Children.,074000,TTF-Attachment and Results,Transfer Payments,525033,Other,10-Jun-2019,000008630983915,AMZNMKTPLACE AMAZON.CO,5999,Grants to individuals,140.90,23.50,117.40
Children and Young Peoples Services,Head of Early Help Inclusion & Vulnerable Children.,074000,TTF-Attachment and Results,Transfer Payments,525033,Other,10-Jun-2019,000008630983917,AMZNMktplace,5999,Grants to individuals,149.80,0.00,149.80
Resources BK0010,Digital and Customer Services,065335,School Services - Implementations,Supplies and Services,342033,Computers and Communications,10-Jun-2019,000008630983923,WWW.ALIEXPRESS.COM,5964,Computer hardware,27.16,0.00,27.16
Resources BK0010,Digital and Customer Services,065335,School Services - Implementations,Supplies and Services,342033,Computers and Communications,10-Jun-2019,000008630983929,PAYPAL ITINSTOCK,7372,Computer hardware,319.20,53.20,266.00
Regeneration and Local Services,Corporate Property and Land,021324,Catering - Meadowfield,Supplies and Services,324117,Provisions E324,10-Jun-2019,000008630983965,FREEMAN CATERING BUTCH,5422,Catering costs - provisions,41.26,0.00,41.26
Regeneration and Local Services,Corporate Property and Land,021324,Catering - Meadowfield,Supplies and Services,324117,Provisions E324,10-Jun-2019,000008630983971,FREEMAN CATERING BUTCH,5422,Catering costs - provisions,14.28,0.00,14.28
Regeneration and Local Services,Corporate Property and Land,021324,Catering - Meadowfield,Supplies and Services,324117,Provisions E324,10-Jun-2019,000008630983977,FREEMAN CATERING BUTCH,5422,Catering costs - provisions,65.91,0.00,65.91
Regeneration and Local Services,Corporate Property and Land,021324,Catering - Meadowfield,Supplies and Services,324117,Provisions E324,10-Jun-2019,000008630983983,WWW.ADELIEFOODS.CO.UK,5499,Catering costs - provisions,38.21,0.00,38.21
Regeneration and Local Services,EnvironmentHealth & Consumer Protection,010809,Env HealthConsumer Protection Manag,Supplies and Services,304259,Equipment and Materials,10-Jun-2019,000008630983995,PAYPAL 3DZ,5732,Equipment-purchase and rental,90.00,0.00,90.00
Children and Young Peoples Services,Head of Childrens Social Care,085333,Coxhoe Satelite Home,Supplies and Services,324117,Provisions E324,10-Jun-2019,000008630984019,TESCO STORES 2916,5411,Catering costs - provisions,211.07,0.00,211.07
Adult and Health Services,Head of Adults,055807,Newton Aycliffe Pathways,Supplies and Services,312011,Newspapers books and periodicals E312,10-Jun-2019,000008630984097,Amazon.co.uk M62NO3ZY4,5969,Books-school library,14.08,0.00,14.08
Adult and Health Services,Head of Adults,055807,Newton Aycliffe Pathways,Supplies and Services,304403,Equipment and Materials,10-Jun-2019,000008630984103,AMZNMktplace,5999,Other consumables,9.98,0.00,9.98
Regeneration and Local Services,Corporate Property and Land,021235,Catering - Wharton Park,Supplies and Services,324117,Provisions E324,10-Jun-2019,000008630984121,JR HOLLAND FOODSERVICE,5499,Catering costs - provisions,27.53,0.00,27.53
Regeneration and Local Services,Corporate Property and Land,021235,Catering - Wharton Park,Supplies and Services,324117,Provisions E324,10-Jun-2019,000008630984125,WWW.ADELIEFOODS.CO.UK,5499,Catering costs - provisions,31.14,0.00,31.14
Regeneration and Local Services,Corporate Property and Land,021235,Catering - Wharton Park,Supplies and Services,324117,Provisions E324,10-Jun-2019,000008630984127,WWW.ADELIEFOODS.CO.UK,5499,Catering costs - provisions,31.14,0.00,31.14
Children and Young Peoples Services,Head of Education and Skills,076001,Music Service,Supplies and Services,304403,Equipment and Materials,10-Jun-2019,000008630984159,WWW.TROPHYSTORE.CO.UK,5947,Other consumables,17.48,0.00,17.48
Transformation and Partnerships,Business Support,065461,Business Support 065461,Supplies and Services,304403,Equipment and Materials,10-Jun-2019,000008635234979,AMZNMKTPLACE AMAZON.CO,5999,Other consumables,59.90,10.00,49.90
Transformation and Partnerships,Business Support,065461,Business Support 065461,Supplies and Services,304403,Equipment and Materials,10-Jun-2019,000008635234985,AMZNMKTPLACE AMAZON.CO,5999,Other consumables,8.95,1.49,7.46
Regeneration and Local Services,Development and Housing,031576,B& B - Temp Accom,Employees,040149,Recruitment Instruction and Training,10-Jun-2019,000008635235227,PREMIER INN,3811,Training-all costs,201.00,33.50,167.50
Regeneration and Local Services,Development and Housing,031576,B& B - Temp Accom,Employees,040149,Recruitment Instruction and Training,10-Jun-2019,000008635235233,PREMIER INN,3811,Training-all costs,203.00,33.83,169.17
Children and Young Peoples Services,Head of Education and Skills,071732,Dean Bank Childcare,Supplies and Services,324117,Provisions E324,10-Jun-2019,000008635235395,ASDA GROCERIES ONLINE,5411,Catering costs - provisions,51.97,0.00,51.97
Children and Young Peoples Services,Head of Education and Skills,071732,Dean Bank Childcare,Supplies and Services,324117,Provisions E324,10-Jun-2019,000008635235405,ASDA GROCERIES ONLINE,5411,Catering costs - provisions,-2.00,0.00,-2.00
Children and Young Peoples Services,Head of Early Help Inclusion & Vulnerable Children.,074000,TTF-Attachment and Results,Transfer Payments,525033,Other,10-Jun-2019,000008635235835,AMZNMKTPLACE AMAZON.CO,5999,Grants to individuals,149.80,0.00,149.80
Regeneration and Local Services,Corporate Property and Land,021242,Catering - County Hall,Supplies and Services,324117,Provisions E324,11-Jun-2019,000006404728982,BATLEYS PERTH,5300,Catering costs - provisions,157.56,26.26,131.30
Regeneration and Local Services,Corporate Property and Land,021242,Catering - County Hall,Supplies and Services,324117,Provisions E324,11-Jun-2019,000006404728982 - 1,BATLEYS PERTH,5300,Catering costs - provisions,126.65,,126.65
Regeneration and Local Services,Environmental Services,011060,C&G - Hardwick Park Catering,Supplies and Services,324117,Provisions E324,11-Jun-2019,000006404729538,BATLEYS PERTH,5300,Catering costs - provisions,22.26,3.71,18.55
Regeneration and Local Services,Environmental Services,011060,C&G - Hardwick Park Catering,Supplies and Services,324117,Provisions E324,11-Jun-2019,000006404729538 - 1,BATLEYS PERTH,5300,Catering costs - provisions,60.70,,60.70
Regeneration and Local Services,Corporate Property and Land,021234,Catering - Locomotion,Supplies and Services,324117,Provisions E324,11-Jun-2019,000006404729580,BATLEYS PERTH,5300,Catering costs - provisions,224.22,37.37,186.85
Regeneration and Local Services,Corporate Property and Land,021234,Catering - Locomotion,Supplies and Services,324117,Provisions E324,11-Jun-2019,000006404729580 - 1,BATLEYS PERTH,5300,Catering costs - provisions,50.44,,50.44
Regeneration and Local Services,Corporate Property and Land,021324,Catering - Meadowfield,Supplies and Services,324117,Provisions E324,11-Jun-2019,000006404730064,BATLEYS PERTH,5300,Catering costs - provisions,57.84,9.64,48.20
Regeneration and Local Services,Corporate Property and Land,021324,Catering - Meadowfield,Supplies and Services,324117,Provisions E324,11-Jun-2019,000006404730064 - 1,BATLEYS PERTH,5300,Catering costs - provisions,110.74,,110.74
Regeneration and Local Services,Development and Housing,031617,Project Beta Sustainability Fund,Supplies and Services,342033,Computers and Communications,11-Jun-2019,000008635234959,WWW.SECURE-PAYMENT-SER,7372,Computer hardware,20.00,0.00,20.00
Children and Young Peoples Services,Head of Education and Skills,054640,Durham Learning Resources 054640,Supplies and Services,312011,Newspapers books and periodicals E312,11-Jun-2019,000008635234975,WWW.STANFORDS.CO.UK,5942,Books-school library,29.97,5.00,24.97
Transformation and Partnerships,Business Support,065461,Business Support 065461,Supplies and Services,304403,Equipment and Materials,11-Jun-2019,000008635234987,AMZNMKTPLACE AMAZON.CO,5999,Other consumables,99.20,0.00,99.20
Regeneration and Local Services,Development and Housing,030771,Durham Advance Flexible Fund,Supplies and Services,328041,Clothing uniforms and laundry E328,11-Jun-2019,000008635234999,ALEXANDRA WEBSITE,5137,Clothing uniforms and laundry,62.95,10.49,52.46
Regeneration and Local Services,Development and Housing,030773,CLLD North,Supplies and Services,304403,Equipment and Materials,11-Jun-2019,000008635235007,AMZNMktplace,5999,Other consumables,98.99,0.00,98.99
Children and Young Peoples Services,Head of Education and Skills,078411,16-19 Education & Training,Supplies and Services,304259,Equipment and Materials,11-Jun-2019,000008635235021,HARTLEPOOL BC CNP,9399,Equipment-purchase and rental,11.00,0.00,11.00
Adult and Health Services,Head of Adults,055302,Durham Pathways,Supplies and Services,324117,Provisions E324,11-Jun-2019,000008635235031,ASDA SUPERSTORE,5411,Catering costs - provisions,29.27,0.00,29.27
Regeneration and Local Services,Culture Sport and Tourism,054820,Gala Theatre - Overheads,Supplies and Services,384999,Miscellaneous Expenses,11-Jun-2019,000008635235035,LLM HANDLING EQUIPMENT,5046,Other expenses,221.03,36.84,184.19
Children and Young Peoples Services,Head of Childrens Social Care,085332,Middlestone Moor CU,Supplies and Services,324117,Provisions E324,11-Jun-2019,000008635235063,TESCO STORES 2916,5411,Catering costs - provisions,26.39,0.00,26.39
Children and Young Peoples Services,Head of Childrens Social Care,085332,Middlestone Moor CU,Supplies and Services,328041,Clothing uniforms and laundry E328,11-Jun-2019,000008635235065,W BOYES & CO LTD NEWTO,5310,Clothing uniforms and laundry,15.96,0.00,15.96
Children and Young Peoples Services,Head of Childrens Social Care,085332,Middlestone Moor CU,Supplies and Services,324117,Provisions E324,11-Jun-2019,000008635235069,ALDI 74 774,5411,Catering costs - provisions,17.65,0.00,17.65
Regeneration and Local Services,Environmental Services,010367,C&G - South Grounds Maintenance,Supplies and Services,304221,Equipment and Materials,11-Jun-2019,000008635235079,MKM PETERLEE,5211,Direct materials,84.50,14.08,70.42
Children and Young Peoples Services,Head of Early Help Inclusion & Vulnerable Children.,088104,BA/BC/Crook 0-19 Targeted Family Support,Vehicles Equipment Furniture and Fittings,912521,Purchase-furniture and fittings,11-Jun-2019,000008635235093,ARGOS RETAIL GROUP,5310,Purchase-furniture and fittings,15.99,0.00,15.99
Regeneration and Local Services,Development and Housing,030544,Rural Employability - Client Engagement,Transport,235057,Public Transport,11-Jun-2019,000008635235099,CHEVRON TAXIS,4121,Staff travelling,60.00,0.00,60.00
Regeneration and Local Services,Corporate Property and Land,021242,Catering - County Hall,Premises,145009,Cleaning and Domestic Supplies,11-Jun-2019,000008635235105,ALLIANCE DISPOSABLES L,2842,Other cleaning and domestic costs,57.42,9.57,47.85
Regeneration and Local Services,Corporate Property and Land,021242,Catering - County Hall,Supplies and Services,324117,Provisions E324,11-Jun-2019,000008635235107,JR HOLLAND FOODSERVICE,5499,Catering costs - provisions,140.14,0.00,140.14
Regeneration and Local Services,Corporate Property and Land,021242,Catering - County Hall,Supplies and Services,324117,Provisions E324,11-Jun-2019,000008635235113,JR HOLLAND FOODSERVICE,5499,Catering costs - provisions,14.13,0.00,14.13
Regeneration and Local Services,Corporate Property and Land,021242,Catering - County Hall,Supplies and Services,324117,Provisions E324,11-Jun-2019,000008635235117,JR HOLLAND FOODSERVICE,5499,Catering costs - provisions,31.51,0.00,31.51
Regeneration and Local Services,Corporate Property and Land,021242,Catering - County Hall,Supplies and Services,324117,Provisions E324,11-Jun-2019,000008635235121,JR HOLLAND FOODSERVICE,5499,Catering costs - provisions,148.00,0.00,148.00
Children and Young Peoples Services,Head of Childrens Social Care,085650,Pre Birth Team,Supplies and Services,338045,Services,11-Jun-2019,000008635235129,MIDDLESBROUGH COUNCIL,9399,Legal expenses 338045,35.00,0.00,35.00
Transformation and Partnerships,Business Support,065461,Business Support 065461,Supplies and Services,352001,Conference Expenses,11-Jun-2019,000008635235137,NOMINET UK,7392,Conferencesseminars fees etc,31.50,5.25,26.25
Regeneration and Local Services,Development and Housing,030773,CLLD North,Supplies and Services,304259,Equipment and Materials,11-Jun-2019,000008635235185,Durham County CNCL,9399,Equipment-purchase and rental,11.00,0.00,11.00
Regeneration and Local Services,Culture Sport and Tourism,011217,Commercial Management 011217,Supplies and Services,336005,Advertising E336,11-Jun-2019,000008635235199,Amazon.co.uk M603B1NY4,5969,Advertising other than for staff,137.94,22.99,114.95
Transformation and Partnerships,Business Support,010832,Business Support 010832,Supplies and Services,304259,Equipment and Materials,11-Jun-2019,000008635235253,DVLA VEHICLE TAX,9399,Equipment-purchase and rental,262.50,0.00,262.50
Transformation and Partnerships,Business Support,010832,Business Support 010832,Supplies and Services,304259,Equipment and Materials,11-Jun-2019,000008635235255,DVLA VEHICLE TAX,9399,Equipment-purchase and rental,167.50,0.00,167.50
Transformation and Partnerships,Business Support,010832,Business Support 010832,Supplies and Services,304259,Equipment and Materials,11-Jun-2019,000008635235257,DVLA VEHICLE TAX,9399,Equipment-purchase and rental,262.50,0.00,262.50
Transformation and Partnerships,Business Support,010832,Business Support 010832,Supplies and Services,304259,Equipment and Materials,11-Jun-2019,000008635235261,DVLA VEHICLE TAX,9399,Equipment-purchase and rental,223.50,0.00,223.50
Transformation and Partnerships,Business Support,010832,Business Support 010832,Supplies and Services,304259,Equipment and Materials,11-Jun-2019,000008635235265,DVLA VEHICLE TAX,9399,Equipment-purchase and rental,202.50,0.00,202.50
Transformation and Partnerships,Business Support,010832,Business Support 010832,Supplies and Services,304259,Equipment and Materials,11-Jun-2019,000008635235271,DVLA VEHICLE TAX,9399,Equipment-purchase and rental,202.00,0.00,202.00
Transformation and Partnerships,Business Support,010832,Business Support 010832,Supplies and Services,304259,Equipment and Materials,11-Jun-2019,000008635235277,DVLA VEHICLE TAX,9399,Equipment-purchase and rental,202.50,0.00,202.50
Transformation and Partnerships,Business Support,010832,Business Support 010832,Supplies and Services,304259,Equipment and Materials,11-Jun-2019,000008635235287,DVLA VEHICLE TAX,9399,Equipment-purchase and rental,262.50,0.00,262.50
Transformation and Partnerships,Business Support,010832,Business Support 010832,Supplies and Services,304259,Equipment and Materials,11-Jun-2019,000008635235291,DVLA VEHICLE TAX,9399,Equipment-purchase and rental,262.50,0.00,262.50
Transformation and Partnerships,Business Support,010832,Business Support 010832,Supplies and Services,304259,Equipment and Materials,11-Jun-2019,000008635235295,DVLA VEHICLE TAX,9399,Equipment-purchase and rental,223.50,0.00,223.50
Transformation and Partnerships,Business Support,010832,Business Support 010832,Supplies and Services,304259,Equipment and Materials,11-Jun-2019,000008635235309,DVLA VEHICLE TAX,9399,Equipment-purchase and rental,167.50,0.00,167.50
Transformation and Partnerships,Business Support,010832,Business Support 010832,Supplies and Services,304259,Equipment and Materials,11-Jun-2019,000008635235313,DVLA VEHICLE TAX,9399,Equipment-purchase and rental,617.50,0.00,617.50
Transformation and Partnerships,Business Support,010832,Business Support 010832,Supplies and Services,304259,Equipment and Materials,11-Jun-2019,000008635235317,DVLA VEHICLE TAX,9399,Equipment-purchase and rental,617.50,0.00,617.50
Transformation and Partnerships,Business Support,010832,Business Support 010832,Supplies and Services,304259,Equipment and Materials,11-Jun-2019,000008635235319,DVLA VEHICLE TAX,9399,Equipment-purchase and rental,617.50,0.00,617.50
Transformation and Partnerships,Business Support,010832,Business Support 010832,Supplies and Services,304259,Equipment and Materials,11-Jun-2019,000008635235325,DVLA VEHICLE TAX,9399,Equipment-purchase and rental,617.50,0.00,617.50
Transformation and Partnerships,Business Support,010832,Business Support 010832,Supplies and Services,304259,Equipment and Materials,11-Jun-2019,000008635235329,DVLA VEHICLE TAX,9399,Equipment-purchase and rental,617.50,0.00,617.50
Transformation and Partnerships,Business Support,010832,Business Support 010832,Supplies and Services,304259,Equipment and Materials,11-Jun-2019,000008635235333,DVLA VEHICLE TAX,9399,Equipment-purchase and rental,617.50,0.00,617.50
Transformation and Partnerships,Business Support,010832,Business Support 010832,Supplies and Services,304259,Equipment and Materials,11-Jun-2019,000008635235337,DVLA VEHICLE TAX,9399,Equipment-purchase and rental,262.50,0.00,262.50
Transformation and Partnerships,Business Support,010832,Business Support 010832,Supplies and Services,304259,Equipment and Materials,11-Jun-2019,000008635235341,DVLA VEHICLE TAX,9399,Equipment-purchase and rental,617.50,0.00,617.50
Transformation and Partnerships,Business Support,010832,Business Support 010832,Supplies and Services,304259,Equipment and Materials,11-Jun-2019,000008635235345,DVLA VEHICLE TAX,9399,Equipment-purchase and rental,617.50,0.00,617.50
Transformation and Partnerships,Business Support,010832,Business Support 010832,Supplies and Services,304259,Equipment and Materials,11-Jun-2019,000008635235349,DVLA VEHICLE TAX,9399,Equipment-purchase and rental,617.50,0.00,617.50
Transformation and Partnerships,Business Support,010832,Business Support 010832,Supplies and Services,304259,Equipment and Materials,11-Jun-2019,000008635235353,DVLA VEHICLE TAX,9399,Equipment-purchase and rental,617.50,0.00,617.50
Transformation and Partnerships,Business Support,010832,Business Support 010832,Supplies and Services,304259,Equipment and Materials,11-Jun-2019,000008635235359,DVLA VEHICLE TAX,9399,Equipment-purchase and rental,262.50,0.00,262.50
Transformation and Partnerships,Business Support,010832,Business Support 010832,Supplies and Services,304259,Equipment and Materials,11-Jun-2019,000008635235363,DVLA VEHICLE TAX,9399,Equipment-purchase and rental,262.50,0.00,262.50
Children and Young Peoples Services,Head of Education and Skills,071732,Dean Bank Childcare,Supplies and Services,304403,Equipment and Materials,11-Jun-2019,000008635235391,AMZNMktplace,5999,Other consumables,2.49,0.42,2.07
Children and Young Peoples Services,Head of Education and Skills,071732,Dean Bank Childcare,Supplies and Services,304403,Equipment and Materials,11-Jun-2019,000008635235399,AMZNMktplace,5999,Other consumables,53.78,8.96,44.82
Children and Young Peoples Services,Head of Education and Skills,071732,Dean Bank Childcare,Supplies and Services,304403,Equipment and Materials,11-Jun-2019,000008635235401,AMZNMktplace,5999,Other consumables,7.97,1.33,6.64
Regeneration and Local Services,Development and Housing,030771,Durham Advance Flexible Fund,Employees,040029,Recruitment Instruction and Training,11-Jun-2019,000008635235427,ARRIVA NORTH EAST,4131,Interview expenses,7.50,0.00,7.50
Regeneration and Local Services,Environmental Services,031221,North Pennines - Bowlees,Supplies and Services,312011,Newspapers books and periodicals E312,11-Jun-2019,000008635235429,J RAINE & SON,5251,Books-school library,21.99,3.67,18.32
Regeneration and Local Services,Development and Housing,030771,Durham Advance Flexible Fund,Transport,235057,Public Transport,11-Jun-2019,000008635235473,ARRIVA NORTH EAST,4131,Staff travelling,7.50,0.00,7.50
Regeneration and Local Services,Environmental Services,010301,C&G - North Grounds Maintenance,Supplies and Services,304221,Equipment and Materials,11-Jun-2019,000008635235477,ARCO LTD,5085,Direct materials,172.20,28.70,143.50
Regeneration and Local Services,Environmental Services,010301,C&G - North Grounds Maintenance,Supplies and Services,304221,Equipment and Materials,11-Jun-2019,000008635235477 - 1,ARCO LTD,5085,Direct materials,0.03,,0.03
Regeneration and Local Services,Culture Sport and Tourism,054813,Gala Theatre - Technical,Supplies and Services,304403,Equipment and Materials,11-Jun-2019,000008635235491,AMZNMktplace,5999,Other consumables,6.99,0.00,6.99
Regeneration and Local Services,Environmental Services,011060,C&G - Hardwick Park Catering,Premises,145009,Cleaning and Domestic Supplies,11-Jun-2019,000008635235495,ALLIANCE DISPOSABLES L,2842,Other cleaning and domestic costs,92.94,15.49,77.45
Regeneration and Local Services,Environmental Services,011060,C&G - Hardwick Park Catering,Premises,145009,Cleaning and Domestic Supplies,11-Jun-2019,000008635235501,ALLIANCE DISPOSABLES L,2842,Other cleaning and domestic costs,186.81,31.14,155.67
Regeneration and Local Services,Environmental Services,011060,C&G - Hardwick Park Catering,Supplies and Services,324117,Provisions E324,11-Jun-2019,000008635235505,JR HOLLAND FOODSERVICE,5499,Catering costs - provisions,38.30,0.00,38.30
Regeneration and Local Services,Culture Sport and Tourism,054815,Gala Theatre Stage School,Supplies and Services,304403,Equipment and Materials,11-Jun-2019,000008635235513,AMZNMktplace,5999,Other consumables,137.38,0.00,137.38
Regeneration and Local Services,Culture Sport and Tourism,054815,Gala Theatre Stage School,Supplies and Services,304403,Equipment and Materials,11-Jun-2019,000008635235517,AMZNMktplace,5999,Other consumables,35.97,0.00,35.97
Regeneration and Local Services,Culture Sport and Tourism,054815,Gala Theatre Stage School,Supplies and Services,328041,Clothing uniforms and laundry E328,11-Jun-2019,000008635235521,PRETTYLITTLETHING.COM,5691,Clothing uniforms and laundry,48.79,0.00,48.79
Regeneration and Local Services,Culture Sport and Tourism,054815,Gala Theatre Stage School,Supplies and Services,328041,Clothing uniforms and laundry E328,11-Jun-2019,000008635235523,H & M,5691,Clothing uniforms and laundry,53.98,0.00,53.98
Regeneration and Local Services,Development and Housing,030764,Work & Health Programme (Reed),Supplies and Services,304259,Equipment and Materials,11-Jun-2019,000008635235527,GEN REGISTER OFFICE,9399,Equipment-purchase and rental,14.00,0.00,14.00
Regeneration and Local Services,Corporate Property and Land,010525,Catering - Green Lane,Supplies and Services,324117,Provisions E324,11-Jun-2019,000008635235557,JR HOLLAND FOODSERVICE,5499,Catering costs - provisions,82.47,0.00,82.47
Regeneration and Local Services,Corporate Property and Land,010525,Catering - Green Lane,Supplies and Services,324117,Provisions E324,11-Jun-2019,000008635235561,JR HOLLAND FOODSERVICE,5499,Catering costs - provisions,-6.63,0.00,-6.63
Regeneration and Local Services,Development and Housing,030771,Durham Advance Flexible Fund,Supplies and Services,304259,Equipment and Materials,11-Jun-2019,000008635235573,DURHAM TEA ROOM,9399,Equipment-purchase and rental,5.00,0.00,5.00
Children and Young Peoples Services,Head of Childrens Social Care,085611,Families First Stanley,Supplies and Services,384999,Miscellaneous Expenses,11-Jun-2019,000008635235591,WWW.ARGOS.CO.UK,5310,Other expenses,38.97,0.00,38.97
Children and Young Peoples Services,Head of Early Help Inclusion & Vulnerable Children.,071443,Stanley One Point Hub,Supplies and Services,304403,Equipment and Materials,11-Jun-2019,000008635235595,AMZNMktplace,5999,Other consumables,104.95,0.00,104.95
Children and Young Peoples Services,Head of Early Help Inclusion & Vulnerable Children.,071443,Stanley One Point Hub,Supplies and Services,304403,Equipment and Materials,11-Jun-2019,000008635235599,AMZNMktplace,5999,Other consumables,104.95,0.00,104.95
Children and Young Peoples Services,Head of Early Help Inclusion & Vulnerable Children.,071443,Stanley One Point Hub,Supplies and Services,304403,Equipment and Materials,11-Jun-2019,000008635235603,AMZNMktplace,5999,Other consumables,104.95,0.00,104.95
Regeneration and Local Services,Development and Housing,030771,Durham Advance Flexible Fund,Supplies and Services,304259,Equipment and Materials,11-Jun-2019,000008635235647,GEN REGISTER OFFICE,9399,Equipment-purchase and rental,14.00,0.00,14.00
Regeneration and Local Services,Development and Housing,030771,Durham Advance Flexible Fund,Supplies and Services,324117,Provisions E324,11-Jun-2019,000008635235651,ASDA STORES LTD,5411,Catering costs - provisions,4.45,0.00,4.45
Children and Young Peoples Services,Head of Childrens Social Care,085333,Coxhoe Satelite Home,Supplies and Services,312011,Newspapers books and periodicals E312,11-Jun-2019,000008635235663,HOME BARGAINS,5251,Books-school library,5.96,0.00,5.96
Children and Young Peoples Services,Head of Childrens Social Care,085333,Coxhoe Satelite Home,Supplies and Services,328041,Clothing uniforms and laundry E328,11-Jun-2019,000008635235669,B & M RETAIL,5310,Clothing uniforms and laundry,90.76,0.00,90.76
Adult and Health Services,Head of Adults,055301,Stanley Pathways,Supplies and Services,304259,Equipment and Materials,11-Jun-2019,000008635235691,WILKO DURHAM 426,5722,Equipment-purchase and rental,21.55,0.00,21.55
Children and Young Peoples Services,Head of Childrens Social Care,085342,9 Cedar Drive Aycliffe,Supplies and Services,324117,Provisions E324,11-Jun-2019,000008635235701,TESCO STORES 2916,5411,Catering costs - provisions,8.70,0.00,8.70
Children and Young Peoples Services,Head of Childrens Social Care,085352,Tow Law CU,Supplies and Services,324117,Provisions E324,11-Jun-2019,000008635235719,ASDA SUPERSTORE 4987,5411,Catering costs - provisions,36.52,0.00,36.52
Regeneration and Local Services,Corporate Property and Land,030691,Catering - Durham Dales Centre,Premises,145009,Cleaning and Domestic Supplies,11-Jun-2019,000008635235725,ALLIANCE DISPOSABLES L,2842,Other cleaning and domestic costs,78.66,13.11,65.55
Regeneration and Local Services,Corporate Property and Land,030691,Catering - Durham Dales Centre,Premises,145009,Cleaning and Domestic Supplies,11-Jun-2019,000008635235725 - 1,ALLIANCE DISPOSABLES L,2842,Other cleaning and domestic costs,38.12,,38.12
Adult and Health Services,Head of Adults,055643,Hawthorn House LD Respite Unit,Supplies and Services,324117,Provisions E324,11-Jun-2019,000008635235755,JR HOLLAND FOODSERVICE,5499,Catering costs - provisions,15.16,0.00,15.16
Adult and Health Services,Head of Adults,055643,Hawthorn House LD Respite Unit,Supplies and Services,324117,Provisions E324,11-Jun-2019,000008635235761,JR HOLLAND FOODSERVICE,5499,Catering costs - provisions,17.38,0.00,17.38
Regeneration and Local Services,Environmental Services,010301,C&G - North Grounds Maintenance,Supplies and Services,312011,Newspapers books and periodicals E312,11-Jun-2019,000008635235807,GRALANDS WOODWORK SUPP,5251,Books-school library,108.57,0.00,108.57
Children and Young Peoples Services,Head of Early Help Inclusion & Vulnerable Children.,074000,TTF-Attachment and Results,Transfer Payments,525033,Other,11-Jun-2019,000008635235823,AMZNMktplace,5999,Grants to individuals,51.62,8.61,43.01
Children and Young Peoples Services,Head of Early Help Inclusion & Vulnerable Children.,074000,TTF-Attachment and Results,Transfer Payments,525033,Other,11-Jun-2019,000008635235827,Amazon.co.uk M626N33O4,5969,Grants to individuals,48.00,8.01,39.99
Children and Young Peoples Services,Head of Early Help Inclusion & Vulnerable Children.,074000,TTF-Attachment and Results,Transfer Payments,525033,Other,11-Jun-2019,000008635235831,AMZNMktplace,5999,Grants to individuals,28.35,4.75,23.60
Resources BK0010,Digital and Customer Services,065335,School Services - Implementations,Supplies and Services,304259,Equipment and Materials,11-Jun-2019,000008635235839,REPLACEBASE,5732,Equipment-purchase and rental,109.50,18.25,91.25
Resources BK0010,Legal & Democratic Services,067953,Coroner County Durham & Darlington,Supplies and Services,364320,Grants to Voluntary Organisations,11-Jun-2019,000008635235875,HOTEL MERCURE,3579,Accommodation assistance,110.00,0.00,110.00
Regeneration and Local Services,Culture Sport and Tourism,054235,Bishop Auckland Town Hall Cafe,Supplies and Services,324117,Provisions E324,11-Jun-2019,000008635235885,JR HOLLAND FOODSERVICE,5499,Catering costs - provisions,56.74,0.00,56.74
Regeneration and Local Services,Transport and Contracted Services,031704,Care Connect - CCTV Countywide,Supplies and Services,384956,Miscellaneous Expenses,11-Jun-2019,000008635235889,SECURITY INDUSTRY,7393,Licences,220.00,0.00,220.00
Regeneration and Local Services,Corporate Property and Land,021324,Catering - Meadowfield,Supplies and Services,324117,Provisions E324,11-Jun-2019,000008635235899,JR HOLLAND FOODSERVICE,5499,Catering costs - provisions,47.23,0.00,47.23
Regeneration and Local Services,Corporate Property and Land,021324,Catering - Meadowfield,Supplies and Services,324117,Provisions E324,11-Jun-2019,000008635235905,JR HOLLAND FOODSERVICE,5499,Catering costs - provisions,14.19,0.00,14.19
Regeneration and Local Services,Culture Sport and Tourism,054233,Bishop Auckland Town Hall Library,Employees,040149,Recruitment Instruction and Training,11-Jun-2019,000008635235949,WWW.FILMBANK.CO.UK,7829,Training-all costs,99.60,16.60,83.00
Regeneration and Local Services,Culture Sport and Tourism,011263,Louisa Centre 011263,Supplies and Services,304999,Equipment and Materials,11-Jun-2019,000008635235989,Amazon Prime,5968,Misc equipment tools and materials,-7.99,0.00,-7.99
Transformation and Partnerships,Business Support,069010,Administration 069010,Supplies and Services,336005,Advertising E336,11-Jun-2019,000008635236013,FACEBK HC2BBLN4B2,7311,Advertising other than for staff,500.00,0.00,500.00
Regeneration and Local Services,Development and Housing,030771,Durham Advance Flexible Fund,Supplies and Services,324117,Provisions E324,11-Jun-2019,000008635236115,STARBUCKS CONSETT,5499,Catering costs - provisions,2.20,0.37,1.83
Regeneration and Local Services,Development and Housing,030771,Durham Advance Flexible Fund,Supplies and Services,324117,Provisions E324,11-Jun-2019,000008635236117,STARBUCKS CONSETT,5499,Catering costs - provisions,2.20,0.37,1.83
Children and Young Peoples Services,Head of Early Help Inclusion & Vulnerable Children.,085810,CDYOS - Interventions Team,Supplies and Services,304259,Equipment and Materials,11-Jun-2019,000008635236121,WILKO DURHAM 426,5722,Equipment-purchase and rental,4.00,0.00,4.00
Regeneration and Local Services,Development and Housing,030771,Durham Advance Flexible Fund,Employees,040029,Recruitment Instruction and Training,11-Jun-2019,000008640319293,SPORTSDIRECT.COM,5941,Interview expenses,41.99,0.00,41.99
Regeneration and Local Services,Development and Housing,030773,CLLD North,Supplies and Services,304259,Equipment and Materials,11-Jun-2019,000008640319639,WWW.LINCOLNSHIRE,9399,Equipment-purchase and rental,11.00,0.00,11.00
Regeneration and Local Services,Culture Sport and Tourism,054815,Gala Theatre Stage School,Supplies and Services,328041,Clothing uniforms and laundry E328,11-Jun-2019,000008640320159,NEW LOOK INTERNET,5621,Clothing uniforms and laundry,55.86,0.00,55.86
Transformation and Partnerships,Communications Management,060270,Communications and Marketing,Supplies and Services,372009,Subscriptions E372,12-Jun-2019,000006387157620,NEWTON PRESS,7338,Subscriptions 372009,127.50,0.00,127.50
Regeneration and Local Services,Culture Sport and Tourism,054812,Gala Theatre - Catering etc,Supplies and Services,324117,Provisions E324,12-Jun-2019,000006404729078,BATLEYS PERTH,5300,Catering costs - provisions,-0.91,0.00,-0.91
Regeneration and Local Services,Corporate Property and Land,030691,Catering - Durham Dales Centre,Supplies and Services,324117,Provisions E324,12-Jun-2019,000006404729864,BATLEYS PERTH,5300,Catering costs - provisions,-13.21,0.00,-13.21
Children and Young Peoples Services,Head of Childrens Social Care,085341,High Etherley Satelite Home,Supplies and Services,324117,Provisions E324,12-Jun-2019,000008640319165,TESCO STORES 6329,5411,Catering costs - provisions,18.05,0.00,18.05
Children and Young Peoples Services,Head of Childrens Social Care,085341,High Etherley Satelite Home,Supplies and Services,304403,Equipment and Materials,12-Jun-2019,000008640319179,AMZNMKTPLACE AMAZON.CO,5999,Other consumables,143.98,24.00,119.98
Transformation and Partnerships,Business Support,065461,Business Support 065461,Supplies and Services,304403,Equipment and Materials,12-Jun-2019,000008640319239,AMZNMktplace,5999,Other consumables,44.64,0.00,44.64
Transformation and Partnerships,Business Support,065461,Business Support 065461,Supplies and Services,304403,Equipment and Materials,12-Jun-2019,000008640319247,AMZNMKTPLACE AMAZON.CO,5999,Other consumables,238.98,39.90,199.08
Transformation and Partnerships,Business Support,065461,Business Support 065461,Transport,235057,Public Transport,12-Jun-2019,000008640319257,Oyster Online,4112,Staff travelling,50.00,0.00,50.00
Transformation and Partnerships,Business Support,065461,Business Support 065461,Transport,235057,Public Transport,12-Jun-2019,000008640319265,Oyster Online,4112,Staff travelling,50.00,0.00,50.00
Transformation and Partnerships,Business Support,065461,Business Support 065461,Transport,235057,Public Transport,12-Jun-2019,000008640319273,Oyster Online,4112,Staff travelling,50.00,0.00,50.00
Regeneration and Local Services,Development and Housing,030771,Durham Advance Flexible Fund,Employees,040029,Recruitment Instruction and Training,12-Jun-2019,000008640319285,ARRIVA NORTH EAST,4131,Interview expenses,7.50,0.00,7.50
Regeneration and Local Services,Development and Housing,030773,CLLD North,Supplies and Services,348037,Subsistence E348,12-Jun-2019,000008640319311,COSTA COFFEE,5814,Subsistence,5.10,0.00,5.10
Regeneration and Local Services,Environmental Services,010383,C&G - South Street Cleansing,Supplies and Services,304221,Equipment and Materials,12-Jun-2019,000008640319343,S&A BUILDERS MERCHANTS,5211,Direct materials,43.97,7.33,36.64
Regeneration and Local Services,Environmental Services,010383,C&G - South Street Cleansing,Supplies and Services,304221,Equipment and Materials,12-Jun-2019,000008640319351,WWW.ARCO.CO.UK,5085,Direct materials,248.93,0.00,248.93
Regeneration and Local Services,Culture Sport and Tourism,030708,VCD - Marketing & Information,Supplies and Services,384199,Miscellaneous Expenses,12-Jun-2019,000008640319377,GOOGLE ADS1872075479,5968,Other hired and contracted services,"5,000.00",0.00,5000.00
Children and Young Peoples Services,Head of Childrens Social Care,085342,9 Cedar Drive Aycliffe,Supplies and Services,324117,Provisions E324,12-Jun-2019,000008640319393,TESCO STORES 2916,5411,Catering costs - provisions,5.00,0.00,5.00
Children and Young Peoples Services,Head of Childrens Social Care,085342,9 Cedar Drive Aycliffe,Supplies and Services,324117,Provisions E324,12-Jun-2019,000008640319403,GEORGE BOLAM (FOODS) L,5499,Catering costs - provisions,150.73,0.00,150.73
Dedicated Schools Grant BG0015,DSG High Needs Block,079050,SENSS-Sensory,Supplies and Services,328041,Clothing uniforms and laundry E328,12-Jun-2019,000008640319415,ARGOS RETAIL GROUP,5310,Clothing uniforms and laundry,68.97,0.00,68.97
Children and Young Peoples Services,Head of Childrens Social Care,085332,Middlestone Moor CU,Supplies and Services,324117,Provisions E324,12-Jun-2019,000008640319423,TESCO STORES 2916,5411,Catering costs - provisions,28.94,0.00,28.94
Children and Young Peoples Services,Head of Childrens Social Care,085332,Middlestone Moor CU,Supplies and Services,384999,Miscellaneous Expenses,12-Jun-2019,000008640319431,WWW.TICKETLINE.CO.UK,7922,Other expenses,89.00,0.00,89.00
Regeneration and Local Services,Environmental Services,010367,C&G - South Grounds Maintenance,Supplies and Services,304221,Equipment and Materials,12-Jun-2019,000008640319485,MKM PETERLEE,5211,Direct materials,42.25,7.04,35.21
Regeneration and Local Services,Corporate Property and Land,021242,Catering - County Hall,Supplies and Services,324117,Provisions E324,12-Jun-2019,000008640319525,JR HOLLAND FOODSERVICE,5499,Catering costs - provisions,13.80,0.00,13.80
Regeneration and Local Services,Corporate Property and Land,021242,Catering - County Hall,Supplies and Services,324117,Provisions E324,12-Jun-2019,000008640319531,JR HOLLAND FOODSERVICE,5499,Catering costs - provisions,157.73,0.00,157.73
Children and Young Peoples Services,Head of Early Help Inclusion & Vulnerable Children.,088106,Ferryhill & N.Aycliffe 0-19 Targeted Family Support,Supplies and Services,308011,Furniture,12-Jun-2019,000008640319549,WWW.ARGOS.CO.UK,5310,Furniture repair and replacement,231.95,0.00,231.95
Regeneration and Local Services,Culture Sport and Tourism,054812,Gala Theatre - Catering etc,Supplies and Services,324117,Provisions E324,12-Jun-2019,000008640319575,JR HOLLAND FOODSERVICE,5499,Catering costs - provisions,60.36,0.00,60.36
Regeneration and Local Services,Culture Sport and Tourism,054812,Gala Theatre - Catering etc,Supplies and Services,324117,Provisions E324,12-Jun-2019,000008640319581,JR HOLLAND FOODSERVICE,5499,Catering costs - provisions,-4.26,0.00,-4.26
Regeneration and Local Services,Development and Housing,030773,CLLD North,Transport,235057,Public Transport,12-Jun-2019,000008640319645,ARRIVA NORTH EAST,4131,Staff travelling,54.00,0.00,54.00
Regeneration and Local Services,Development and Housing,030773,CLLD North,Transport,235057,Public Transport,12-Jun-2019,000008640319651,ARRIVA NORTH EAST,4131,Staff travelling,54.00,0.00,54.00
Regeneration and Local Services,Development and Housing,030773,CLLD North,Supplies and Services,324117,Provisions E324,12-Jun-2019,000008640319657,ASDA STORES,5411,Catering costs - provisions,14.10,2.35,11.75
Children and Young Peoples Services,Head of Education and Skills,071732,Dean Bank Childcare,Supplies and Services,304403,Equipment and Materials,12-Jun-2019,000008640319721,AMZNMktplace,5999,Other consumables,24.79,4.13,20.66
Children and Young Peoples Services,Head of Education and Skills,071732,Dean Bank Childcare,Supplies and Services,324117,Provisions E324,12-Jun-2019,000008640319727,TESCO STORES 2916,5411,Catering costs - provisions,46.99,0.00,46.99
Regeneration and Local Services,Culture Sport and Tourism,011223,Operations Locality 1,Supplies and Services,312011,Newspapers books and periodicals E312,12-Jun-2019,000008640319737,Amazon.co.uk M686533B4,5969,Books-school library,398.00,0.00,398.00
Regeneration and Local Services,Development and Housing,030771,Durham Advance Flexible Fund,Supplies and Services,324117,Provisions E324,12-Jun-2019,000008640319937,STARBUCKS,5814,Catering costs - provisions,5.70,0.95,4.75
Children and Young Peoples Services,Head of Early Help Inclusion & Vulnerable Children.,088107,Ferryhill & Newton Aycliffe 0-19 Community Family Hub,Supplies and Services,304403,Equipment and Materials,12-Jun-2019,000008640319965,AMZNMktplace,5999,Other consumables,31.92,5.32,26.60
Children and Young Peoples Services,Head of Early Help Inclusion & Vulnerable Children.,088107,Ferryhill & Newton Aycliffe 0-19 Community Family Hub,Supplies and Services,304403,Equipment and Materials,12-Jun-2019,000008640319965 - 1,AMZNMktplace,5999,Other consumables,0.04,,0.04
Children and Young Peoples Services,Head of Early Help Inclusion & Vulnerable Children.,088107,Ferryhill & Newton Aycliffe 0-19 Community Family Hub,Supplies and Services,304403,Equipment and Materials,12-Jun-2019,000008640319973,AMZNMktplace,5999,Other consumables,31.98,5.33,26.65
Children and Young Peoples Services,Head of Early Help Inclusion & Vulnerable Children.,088107,Ferryhill & Newton Aycliffe 0-19 Community Family Hub,Supplies and Services,304403,Equipment and Materials,12-Jun-2019,000008640319973 - 1,AMZNMktplace,5999,Other consumables,47.53,,47.53
Children and Young Peoples Services,Head of Early Help Inclusion & Vulnerable Children.,088107,Ferryhill & Newton Aycliffe 0-19 Community Family Hub,Supplies and Services,304403,Equipment and Materials,12-Jun-2019,000008640319979,AMZNMktplace,5999,Other consumables,44.95,7.49,37.46
Children and Young Peoples Services,Head of Early Help Inclusion & Vulnerable Children.,085957,Secure Management,Supplies and Services,304403,Equipment and Materials,12-Jun-2019,000008640319995,Amazon.co.uk M61OY0J34,5969,Other consumables,13.05,2.18,10.87
Children and Young Peoples Services,Head of Early Help Inclusion & Vulnerable Children.,085952,Secure Education,Supplies and Services,304403,Equipment and Materials,12-Jun-2019,000008640320003,AMZNMktplace,5999,Other consumables,54.95,0.00,54.95
Children and Young Peoples Services,Head of Early Help Inclusion & Vulnerable Children.,085957,Secure Management,Supplies and Services,304403,Equipment and Materials,12-Jun-2019,000008640320009,AMZNMktplace,5999,Other consumables,9.99,1.67,8.32
Children and Young Peoples Services,Head of Early Help Inclusion & Vulnerable Children.,085965,Barnard,Supplies and Services,328041,Clothing uniforms and laundry E328,12-Jun-2019,000008640320015,M and M Direct Ltd,5941,Clothing uniforms and laundry,12.99,0.00,12.99
Children and Young Peoples Services,Head of Early Help Inclusion & Vulnerable Children.,085955,Auckland,Supplies and Services,328041,Clothing uniforms and laundry E328,12-Jun-2019,000008640320027,M and M Direct Ltd,5941,Clothing uniforms and laundry,5.99,0.00,5.99
Children and Young Peoples Services,Head of Early Help Inclusion & Vulnerable Children.,085965,Barnard,Supplies and Services,328041,Clothing uniforms and laundry E328,12-Jun-2019,000008640320033,FOOTASYLUM PLC,5691,Clothing uniforms and laundry,38.94,0.00,38.94
Children and Young Peoples Services,Head of Early Help Inclusion & Vulnerable Children.,085955,Auckland,Supplies and Services,328041,Clothing uniforms and laundry E328,12-Jun-2019,000008640320045,PRETTYLITTLETHING.COM,5691,Clothing uniforms and laundry,17.99,0.00,17.99
Children and Young Peoples Services,Head of Early Help Inclusion & Vulnerable Children.,085952,Secure Education,Supplies and Services,304403,Equipment and Materials,12-Jun-2019,000008640320051,Amazon.co.uk M62DO4JW4,5969,Other consumables,12.47,2.08,10.39
Children and Young Peoples Services,Head of Early Help Inclusion & Vulnerable Children.,085957,Secure Management,Supplies and Services,304649,Equipment and Materials,12-Jun-2019,000008640320053,AMZNMktplace,5999,Toys,23.16,3.86,19.30
Children and Young Peoples Services,Head of Early Help Inclusion & Vulnerable Children.,085957,Secure Management,Supplies and Services,304649,Equipment and Materials,12-Jun-2019,000008640320053 - 1,AMZNMktplace,5999,Toys,0.03,,0.03
Children and Young Peoples Services,Head of Early Help Inclusion & Vulnerable Children.,085956,Lumley,Supplies and Services,304403,Equipment and Materials,12-Jun-2019,000008640320061,AMZNMktplace,5999,Other consumables,15.98,0.00,15.98
Children and Young Peoples Services,Head of Early Help Inclusion & Vulnerable Children.,085962,Aycliffe Secure - Durham,Supplies and Services,324117,Provisions E324,12-Jun-2019,000008640320065,TESCO STORES 6329,5411,Catering costs - provisions,86.21,0.00,86.21
Children and Young Peoples Services,Head of Early Help Inclusion & Vulnerable Children.,085957,Secure Management,Supplies and Services,304403,Equipment and Materials,12-Jun-2019,000008640320073,AMZNMKTPLACE AMAZON.CO,5999,Other consumables,21.99,0.00,21.99
Children and Young Peoples Services,Head of Early Help Inclusion & Vulnerable Children.,085957,Secure Management,Supplies and Services,304403,Equipment and Materials,12-Jun-2019,000008640320081,WWW.ARGOS.CO.UK,5310,Other consumables,6.95,0.00,6.95
Children and Young Peoples Services,Head of Early Help Inclusion & Vulnerable Children.,085955,Auckland,Supplies and Services,328041,Clothing uniforms and laundry E328,12-Jun-2019,000008640320087,JD SPORTS INTERNET,5941,Clothing uniforms and laundry,34.99,0.00,34.99
Children and Young Peoples Services,Head of Early Help Inclusion & Vulnerable Children.,085965,Barnard,Supplies and Services,304649,Equipment and Materials,12-Jun-2019,000008640320093,MAUDESPORT LTD,5941,Toys,44.25,0.00,44.25
Children and Young Peoples Services,Head of Early Help Inclusion & Vulnerable Children.,085962,Aycliffe Secure - Durham,Supplies and Services,324117,Provisions E324,12-Jun-2019,000008640320101,TESCO STORES 6329,5411,Catering costs - provisions,-4.00,0.00,-4.00
Regeneration and Local Services,Environmental Services,011060,C&G - Hardwick Park Catering,Supplies and Services,324117,Provisions E324,12-Jun-2019,000008640320127,JR HOLLAND FOODSERVICE,5499,Catering costs - provisions,21.66,0.00,21.66
Regeneration and Local Services,Culture Sport and Tourism,054815,Gala Theatre Stage School,Supplies and Services,304403,Equipment and Materials,12-Jun-2019,000008640320151,AMZNMktplace,5999,Other consumables,25.98,0.00,25.98
Regeneration and Local Services,Environmental Services,010919,C&G - Countryside Site Management,Supplies and Services,324117,Provisions E324,12-Jun-2019,000008640320173,WILKO.COM,5399,Catering costs - provisions,42.00,0.00,42.00
Regeneration and Local Services,Environmental Services,010919,C&G - Countryside Site Management,Supplies and Services,304403,Equipment and Materials,12-Jun-2019,000008640320181,AMZNMktplace,5999,Other consumables,7.99,0.00,7.99
Regeneration and Local Services,Corporate Property and Land,021234,Catering - Locomotion,Supplies and Services,324117,Provisions E324,12-Jun-2019,000008640320195,JR HOLLAND FOODSERVICE,5499,Catering costs - provisions,3.87,0.00,3.87
Regeneration and Local Services,Corporate Property and Land,010525,Catering - Green Lane,Supplies and Services,324117,Provisions E324,12-Jun-2019,000008640320229,JR HOLLAND FOODSERVICE,5499,Catering costs - provisions,6.50,0.00,6.50
Transformation and Partnerships,Communications Management,060131,County Records,Employees,040149,Recruitment Instruction and Training,12-Jun-2019,000008640320237,ARCHIVES AND RECORDS A,8398,Training-all costs,5.00,0.00,5.00
Resources BK0010,Resources Management CK0450,069000,Resources Management 069000,Supplies and Services,324117,Provisions E324,12-Jun-2019,000008640320307,SAINSBURYS LOC4937,5411,Catering costs - provisions,3.00,0.00,3.00
Regeneration and Local Services,Environmental Services,031200,North Pennines Core,Supplies and Services,348037,Subsistence E348,12-Jun-2019,000008640320317,HMS Host International,5814,Subsistence,10.78,0.00,10.78
Regeneration and Local Services,Environmental Services,031200,North Pennines Core,Supplies and Services,348037,Subsistence E348,12-Jun-2019,000008640320321,BURGER KING,5814,Subsistence,8.99,0.00,8.99
Children and Young Peoples Services,Head of Education and Skills,070264,EDC Premises,Supplies and Services,324117,Provisions E324,12-Jun-2019,000008640320353,ASDA STORES,5411,Catering costs - provisions,9.50,0.00,9.50
Regeneration and Local Services,Environmental Services,010301,C&G - North Grounds Maintenance,Supplies and Services,304403,Equipment and Materials,12-Jun-2019,000008640320365,BESCOL,5231,Other consumables,181.01,0.00,181.01
Regeneration and Local Services,Environmental Services,010301,C&G - North Grounds Maintenance,Supplies and Services,304221,Equipment and Materials,12-Jun-2019,000008640320369,HARELAW SAWMILL,5211,Direct materials,70.90,11.82,59.08
Children and Young Peoples Services,Head of Early Help Inclusion & Vulnerable Children.,074000,TTF-Attachment and Results,Transfer Payments,525033,Other,12-Jun-2019,000008640320377,ASDA GEORGE COM LEEDS,5411,Grants to individuals,2.94,0.49,2.45
Children and Young Peoples Services,Head of Early Help Inclusion & Vulnerable Children.,074000,TTF-Attachment and Results,Transfer Payments,525033,Other,12-Jun-2019,000008640320377 - 1,ASDA GEORGE COM LEEDS,5411,Grants to individuals,147.01,,147.01
Children and Young Peoples Services,Head of Early Help Inclusion & Vulnerable Children.,074000,TTF-Attachment and Results,Transfer Payments,525033,Other,12-Jun-2019,000008640320379,ASDA GEORGE COM LEEDS,5411,Grants to individuals,46.95,7.83,39.12
Children and Young Peoples Services,Head of Early Help Inclusion & Vulnerable Children.,074000,TTF-Attachment and Results,Transfer Payments,525033,Other,12-Jun-2019,000008640320383,ASDA GEORGE COM LEEDS,5411,Grants to individuals,91.95,15.33,76.62
Resources BK0010,Digital and Customer Services,065335,School Services - Implementations,Supplies and Services,304221,Equipment and Materials,12-Jun-2019,000008640320391,WWW.AVPARTMASTER.NET,7622,Direct materials,104.40,0.00,104.40
Children and Young Peoples Services,Head of Early Help Inclusion & Vulnerable Children.,085957,Secure Management,Supplies and Services,324117,Provisions E324,12-Jun-2019,000008640320397,WILKO.COM,5399,Catering costs - provisions,29.00,4.83,24.17
Children and Young Peoples Services,Head of Early Help Inclusion & Vulnerable Children.,085957,Secure Management,Supplies and Services,328041,Clothing uniforms and laundry E328,12-Jun-2019,000008640320401,DEBENHAMS.COM,5311,Clothing uniforms and laundry,39.99,0.00,39.99
Resources BK0010,Legal & Democratic Services,067801,Registrars,Supplies and Services,340001,Postages E340,12-Jun-2019,000008640320407,ROYAL MAIL ONLINE SHOP,9402,Postages,47.75,0.00,47.75
Transformation and Partnerships,Business Support,052986,CYPS - Locality and Operational Support,Supplies and Services,328041,Clothing uniforms and laundry E328,12-Jun-2019,000008640320411,ARGOS RETAIL GROUP,5310,Clothing uniforms and laundry,119.99,0.00,119.99
Regeneration and Local Services,Environmental Services,011060,C&G - Hardwick Park Catering,Supplies and Services,304245,Equipment and Materials,12-Jun-2019,000008640320427,PESTFIX,5199,Materials,24.28,4.05,20.23
Children and Young Peoples Services,Head of Childrens Social Care,085333,Coxhoe Satelite Home,Supplies and Services,324117,Provisions E324,12-Jun-2019,000008640320459,ASDA SUPERSTORE 4987,5411,Catering costs - provisions,68.84,0.00,68.84
Regeneration and Local Services,Corporate Property and Land,021235,Catering - Wharton Park,Supplies and Services,324117,Provisions E324,12-Jun-2019,000008640320567,JR HOLLAND FOODSERVICE,5499,Catering costs - provisions,15.68,0.00,15.68
Children and Young Peoples Services,Head of Childrens Social Care,085363,LAC & Permanence Team 3,Supplies and Services,304403,Equipment and Materials,12-Jun-2019,000008640320589,AMZNMKTPLACE AMAZON.CO,5999,Other consumables,35.46,5.91,29.55
Children and Young Peoples Services,Head of Childrens Social Care,085363,LAC & Permanence Team 3,Supplies and Services,304403,Equipment and Materials,12-Jun-2019,000008640320589 - 1,AMZNMKTPLACE AMAZON.CO,5999,Other consumables,0.06,,0.06
Regeneration and Local Services,Development and Housing,030554,International Relations 030554,Supplies and Services,384926,Miscellaneous Expenses,12-Jun-2019,000008640320629,PHANTASIALAND,5968,International visits,"2,838.91",0.00,2838.91
Children and Young Peoples Services,Head of Early Help Inclusion & Vulnerable Children.,085956,Lumley,Supplies and Services,304403,Equipment and Materials,12-Jun-2019,000008646068469,AMZNMKTPLACE AMAZON.CO,5999,Other consumables,75.96,0.00,75.96
Children and Young Peoples Services,Head of Early Help Inclusion & Vulnerable Children.,085965,Barnard,Supplies and Services,304649,Equipment and Materials,12-Jun-2019,000008646068483,SPORTSDIRECT.COM,5941,Toys,49.97,0.00,49.97
Regeneration and Local Services,Culture Sport and Tourism,054813,Gala Theatre - Technical,Supplies and Services,308011,Furniture,12-Jun-2019,000008646068491,IKEA LTD 143 GATESHEAD,5712,Furniture repair and replacement,177.20,0.00,177.20
Children and Young Peoples Services,Head of Early Help Inclusion & Vulnerable Children.,085957,Secure Management,Supplies and Services,328041,Clothing uniforms and laundry E328,12-Jun-2019,000008646068849,PAYPAL BATTLEZONEP,5661,Clothing uniforms and laundry,36.00,0.00,36.00
Regeneration and Local Services,Environmental Services,031200,North Pennines Core,Supplies and Services,352001,Conference Expenses,12-Jun-2019,000008646068899,BELLEVUE PARK HOTEL-re,7011,Conferencesseminars fees etc,208.72,0.00,208.72
Children and Young Peoples Services,Head of Childrens Social Care,085342,9 Cedar Drive Aycliffe,Supplies and Services,328041,Clothing uniforms and laundry E328,12-Jun-2019,000008646069025,LOVELL SPORTS LTD,5691,Clothing uniforms and laundry,134.99,0.00,134.99
Transformation and Partnerships,Business Support,065461,Business Support 065461,Supplies and Services,304259,Equipment and Materials,13-Jun-2019,000006387156062,HALFORDS ON LINE,5940,Equipment-purchase and rental,112.00,18.67,93.33
Regeneration and Local Services,Culture Sport and Tourism,054815,Gala Theatre Stage School,Supplies and Services,328041,Clothing uniforms and laundry E328,13-Jun-2019,000006387156994,NEW LOOK INTERNET,5621,Clothing uniforms and laundry,33.97,0.00,33.97
Regeneration and Local Services,Development and Housing,030554,International Relations 030554,Transport,235057,Public Transport,13-Jun-2019,000006387157166,PRINCE BISHOP SHOPPING,7523,Staff travelling,7.70,0.00,7.70
Regeneration and Local Services,Development and Housing,031576,B& B - Temp Accom,Supplies and Services,364320,Grants to Voluntary Organisations,13-Jun-2019,000006387157438,PREMIER INN,3811,Accommodation assistance,255.00,0.00,255.00
Regeneration and Local Services,Development and Housing,031576,B& B - Temp Accom,Supplies and Services,364320,Grants to Voluntary Organisations,13-Jun-2019,000006387157444,PREMIER INN,3811,Accommodation assistance,255.00,42.50,212.50
Regeneration and Local Services,Environmental Services,031200,North Pennines Core,Supplies and Services,352001,Conference Expenses,13-Jun-2019,000006387157488,BELLEVUE PARK HOTEL-re,7011,Conferencesseminars fees etc,1.03,0.00,1.03
Regeneration and Local Services,Corporate Property and Land,021242,Catering - County Hall,Supplies and Services,324117,Provisions E324,13-Jun-2019,000006404728994,BATLEYS PERTH,5300,Catering costs - provisions,124.86,20.81,104.05
Regeneration and Local Services,Corporate Property and Land,021242,Catering - County Hall,Supplies and Services,324117,Provisions E324,13-Jun-2019,000006404728994 - 1,BATLEYS PERTH,5300,Catering costs - provisions,216.06,,216.06
Regeneration and Local Services,Corporate Property and Land,021242,Catering - County Hall,Supplies and Services,324117,Provisions E324,13-Jun-2019,000006404729040,BATLEYS PERTH,5300,Catering costs - provisions,-43.12,0.00,-43.12
Regeneration and Local Services,Environmental Services,011060,C&G - Hardwick Park Catering,Supplies and Services,324117,Provisions E324,13-Jun-2019,000006404729542,BATLEYS PERTH,5300,Catering costs - provisions,193.26,32.21,161.05
Regeneration and Local Services,Environmental Services,011060,C&G - Hardwick Park Catering,Supplies and Services,324117,Provisions E324,13-Jun-2019,000006404729542 - 1,BATLEYS PERTH,5300,Catering costs - provisions,93.97,,93.97
Regeneration and Local Services,Corporate Property and Land,021235,Catering - Wharton Park,Supplies and Services,324117,Provisions E324,13-Jun-2019,000006404730234,BATLEYS PERTH,5300,Catering costs - provisions,30.06,5.01,25.05
Regeneration and Local Services,Corporate Property and Land,021235,Catering - Wharton Park,Supplies and Services,324117,Provisions E324,13-Jun-2019,000006404730234 - 1,BATLEYS PERTH,5300,Catering costs - provisions,21.22,,21.22
Regeneration and Local Services,Development and Housing,030554,International Relations 030554,Supplies and Services,384926,Miscellaneous Expenses,13-Jun-2019,000008640320633,PHANTASIALAND,5968,International visits,78.07,0.00,78.07
Children and Young Peoples Services,Head of Childrens Social Care,085341,High Etherley Satelite Home,Supplies and Services,312011,Newspapers books and periodicals E312,13-Jun-2019,000008646067847,Amazon.co.uk M61GK8TG4,5969,Books-school library,70.76,11.79,58.97
Children and Young Peoples Services,Head of Childrens Social Care,085341,High Etherley Satelite Home,Supplies and Services,324117,Provisions E324,13-Jun-2019,000008646067853,TESCO STORES 6329,5411,Catering costs - provisions,23.70,0.00,23.70
Children and Young Peoples Services,Head of Education and Skills,071801,Selby Cottage Childcare Centre,Supplies and Services,324117,Provisions E324,13-Jun-2019,000008646067897,ASDA SUPERSTORE,5411,Catering costs - provisions,99.70,0.00,99.70
Children and Young Peoples Services,Head of Education and Skills,071801,Selby Cottage Childcare Centre,Supplies and Services,324117,Provisions E324,13-Jun-2019,000008646067903,ASDA SUPERSTORE,5411,Catering costs - provisions,32.79,0.00,32.79
Regeneration and Local Services,Development and Housing,031617,Project Beta Sustainability Fund,Employees,040149,Recruitment Instruction and Training,13-Jun-2019,000008646067909,PP CDFHS,8398,Training-all costs,150.00,0.00,150.00
Transformation and Partnerships,Business Support,065461,Business Support 065461,Supplies and Services,312011,Newspapers books and periodicals E312,13-Jun-2019,000008646067921,Amazon.co.uk M613C7T64,5969,Books-school library,53.73,8.97,44.76
Transformation and Partnerships,Business Support,065461,Business Support 065461,Supplies and Services,304259,Equipment and Materials,13-Jun-2019,000008646067925,EVANS CYCLES LTD,5940,Equipment-purchase and rental,281.88,46.98,234.90
Regeneration and Local Services,Development and Housing,030771,Durham Advance Flexible Fund,Supplies and Services,324117,Provisions E324,13-Jun-2019,000008646067929,TESCO STORES 2916,5411,Catering costs - provisions,20.00,0.00,20.00
Children and Young Peoples Services,Head of Education and Skills,078411,16-19 Education & Training,Supplies and Services,304259,Equipment and Materials,13-Jun-2019,000008646067967,WWW.DURHAM.GOV.UK,9399,Equipment-purchase and rental,22.00,0.00,22.00
Regeneration and Local Services,Environmental Services,010383,C&G - South Street Cleansing,Supplies and Services,312011,Newspapers books and periodicals E312,13-Jun-2019,000008646067979,Snowballs,5251,Books-school library,159.94,26.66,133.28
Children and Young Peoples Services,Head of Childrens Social Care,085332,Middlestone Moor CU,Supplies and Services,304259,Equipment and Materials,13-Jun-2019,000008646067999,WILKO RETAIL LIMIT,5722,Equipment-purchase and rental,33.85,0.00,33.85
Regeneration and Local Services,Business Durham CL0850,030699,Business Growth and Innovation General,Supplies and Services,304999,Equipment and Materials,13-Jun-2019,000008646068001,MOZ INC,5817,Misc equipment tools and materials,141.36,0.00,141.36
Regeneration and Local Services,EnvironmentHealth & Consumer Protection,010934,Works in Default Holding Code,Charges,720130,Fees and Charges,13-Jun-2019,000008646068041,WWW.MONEYCLAIM.GOV,9399,Fees-legal,105.00,0.00,105.00
Children and Young Peoples Services,Head of Childrens Social Care,085352,Tow Law CU,Supplies and Services,324117,Provisions E324,13-Jun-2019,000008646068151,TESCO STORES 6329,5411,Catering costs - provisions,57.52,0.00,57.52
Children and Young Peoples Services,Head of Childrens Social Care,085352,Tow Law CU,Supplies and Services,312011,Newspapers books and periodicals E312,13-Jun-2019,000008646068153,HOME BARGAINS,5251,Books-school library,5.83,0.00,5.83
Regeneration and Local Services,Development and Housing,030544,Rural Employability - Client Engagement,Transport,235057,Public Transport,13-Jun-2019,000008646068159,ARRIVA NORTH EAST,4131,Staff travelling,26.20,0.00,26.20
Regeneration and Local Services,Corporate Property and Land,021242,Catering - County Hall,Supplies and Services,324117,Provisions E324,13-Jun-2019,000008646068165,JR HOLLAND FOODSERVICE,5499,Catering costs - provisions,13.80,0.00,13.80
Regeneration and Local Services,Corporate Property and Land,021242,Catering - County Hall,Supplies and Services,324117,Provisions E324,13-Jun-2019,000008646068169,JR HOLLAND FOODSERVICE,5499,Catering costs - provisions,101.51,0.00,101.51
Regeneration and Local Services,Development and Housing,030544,Rural Employability - Client Engagement,Supplies and Services,384700,Miscellaneous Expenses,13-Jun-2019,000008646068197,HOME BARGAINS,5251,Miscellaneous grants,40.40,6.73,33.67
Regeneration and Local Services,Development and Housing,030544,Rural Employability - Client Engagement,Supplies and Services,384700,Miscellaneous Expenses,13-Jun-2019,000008646068199,B&M RETAIL,5310,Miscellaneous grants,31.00,0.00,31.00
Regeneration and Local Services,Culture Sport and Tourism,054812,Gala Theatre - Catering etc,Supplies and Services,324117,Provisions E324,13-Jun-2019,000008646068201,JR HOLLAND FOODSERVICE,5499,Catering costs - provisions,4.26,0.00,4.26
Regeneration and Local Services,Culture Sport and Tourism,054812,Gala Theatre - Catering etc,Premises,145009,Cleaning and Domestic Supplies,13-Jun-2019,000008646068207,ALLIANCE DISPOSABLES L,2842,Other cleaning and domestic costs,68.82,11.47,57.35
Regeneration and Local Services,Development and Housing,030773,CLLD North,Transport,235057,Public Transport,13-Jun-2019,000008646068227,ARRIVA NORTH EAST,4131,Staff travelling,-54.00,0.00,-54.00
Children and Young Peoples Services,Head of Education and Skills,071732,Dean Bank Childcare,Supplies and Services,304403,Equipment and Materials,13-Jun-2019,000008646068319,AMZNMktplace,5999,Other consumables,14.99,2.50,12.49
Children and Young Peoples Services,Head of Education and Skills,071732,Dean Bank Childcare,Supplies and Services,324117,Provisions E324,13-Jun-2019,000008646068323,TESCO STORES 2916,5411,Catering costs - provisions,20.07,0.00,20.07
Children and Young Peoples Services,Head of Education and Skills,071732,Dean Bank Childcare,Supplies and Services,304403,Equipment and Materials,13-Jun-2019,000008646068327,AMZNMktplace,5999,Other consumables,45.67,0.00,45.67
Regeneration and Local Services,Environmental Services,031221,North Pennines - Bowlees,Premises,145009,Cleaning and Domestic Supplies,13-Jun-2019,000008646068347,APS BIOCONTROL LTD,7342,Other cleaning and domestic costs,206.95,0.00,206.95
Regeneration and Local Services,Development and Housing,030771,Durham Advance Flexible Fund,Transport,235057,Public Transport,13-Jun-2019,000008646068399,WALKERGATE CAR PAR,7523,Staff travelling,3.00,0.50,2.50
Children and Young Peoples Services,Head of Early Help Inclusion & Vulnerable Children.,088107,Ferryhill & Newton Aycliffe 0-19 Community Family Hub,Supplies and Services,304403,Equipment and Materials,13-Jun-2019,000008646068425,AMZNMktplace,5999,Other consumables,4.99,0.83,4.16
Children and Young Peoples Services,Head of Early Help Inclusion & Vulnerable Children.,088107,Ferryhill & Newton Aycliffe 0-19 Community Family Hub,Supplies and Services,304403,Equipment and Materials,13-Jun-2019,000008646068429,AMZNMktplace,5999,Other consumables,69.90,11.65,58.25
Children and Young Peoples Services,Head of Early Help Inclusion & Vulnerable Children.,088107,Ferryhill & Newton Aycliffe 0-19 Community Family Hub,Supplies and Services,304403,Equipment and Materials,13-Jun-2019,000008646068429 - 1,AMZNMktplace,5999,Other consumables,0.05,,0.05
Children and Young Peoples Services,Head of Early Help Inclusion & Vulnerable Children.,088107,Ferryhill & Newton Aycliffe 0-19 Community Family Hub,Supplies and Services,304403,Equipment and Materials,13-Jun-2019,000008646068431,AMZNMktplace,5999,Other consumables,26.98,4.50,22.48
Children and Young Peoples Services,Head of Early Help Inclusion & Vulnerable Children.,085957,Secure Management,Supplies and Services,304649,Equipment and Materials,13-Jun-2019,000008646068441,AMZNMktplace,5999,Toys,32.95,5.49,27.46
Children and Young Peoples Services,Head of Early Help Inclusion & Vulnerable Children.,085957,Secure Management,Supplies and Services,304649,Equipment and Materials,13-Jun-2019,000008646068445,AMZNMktplace,5999,Toys,12.94,2.16,10.78
Children and Young Peoples Services,Head of Early Help Inclusion & Vulnerable Children.,085952,Secure Education,Supplies and Services,312011,Newspapers books and periodicals E312,13-Jun-2019,000008646068451,Amazon.co.uk M68RM2J54,5969,Books-school library,24.69,0.00,24.69
Children and Young Peoples Services,Head of Early Help Inclusion & Vulnerable Children.,085957,Secure Management,Supplies and Services,304649,Equipment and Materials,13-Jun-2019,000008646068455,AMZNMktplace,5999,Toys,19.99,3.33,16.66
Children and Young Peoples Services,Head of Early Help Inclusion & Vulnerable Children.,085965,Barnard,Supplies and Services,304649,Equipment and Materials,13-Jun-2019,000008646068461,AMZNMktplace,5999,Toys,6.86,1.14,5.72
Children and Young Peoples Services,Head of Early Help Inclusion & Vulnerable Children.,085954,Walworth,Supplies and Services,328041,Clothing uniforms and laundry E328,13-Jun-2019,000008646068465,M and M Direct Ltd,5941,Clothing uniforms and laundry,16.99,0.00,16.99
Children and Young Peoples Services,Head of Early Help Inclusion & Vulnerable Children.,085965,Barnard,Supplies and Services,304649,Equipment and Materials,13-Jun-2019,000008646068473,Amazon.co.uk M64US9T54,5969,Toys,33.93,5.66,28.27
Children and Young Peoples Services,Head of Early Help Inclusion & Vulnerable Children.,085955,Auckland,Supplies and Services,324117,Provisions E324,13-Jun-2019,000008646068477,TESCO STORES 6329,5411,Catering costs - provisions,139.03,0.00,139.03
Regeneration and Local Services,Culture Sport and Tourism,054813,Gala Theatre - Technical,Supplies and Services,308011,Furniture,13-Jun-2019,000008646068495,DUNELM LTD,5714,Furniture repair and replacement,189.40,0.00,189.40
